Workbook

Sheet Calculator
D3: =+Trads!A602 -> Forze e deformazione del sistema | AB3: =+IF(OR(F9="",F11="",AND(F9="TOWER / TOWERXL",F11="SPEAREVO")),"FALSO",_xlfn.CONCAT(F9,"+",F11)) -> FALSO
C5: =+Trads!$A$4 -> Lingua | E5: Italiano | I5: =+Trads!A115 -> Data | K5: =TODAY() -> 2023-10-10
C7: =+Trads!A6 -> Rif. Progetto
C9: =PROPER(+Trads!A2) -> Supporto
C11: =PROPER(+Trads!A603) -> Assorbitore-Tensionatore | AB11: =+_xlfn.CONCAT(Trads!A372," ",Trads!A373) -> Stampa Relazione Tecnica
C13: =PROPER(+Trads!A605) -> Numero Max Di Utenti | F13: =_xlfn.IFNA(+VLOOKUP(F9,DB_Supporti,SupGen!Q11,FALSE),"") -> 
C19: =+Trads!A606 -> Carichi da manuale di installazione (EN795)
F21: =+Trads!A607 -> Interasse | H21: =+Trads!A608 -> Flessione massima Cavo | J21: =+Trads!A609 -> Fmax | L21: =PROPER(+Trads!A605) -> Numero Max Di Utenti | AM21: Angolo Sbagliato 1 VERO
F23: [m] | H23: [m] | J23: [kN] | AM23: =+COUNTIF(AM34:AM96,TRUE) -> 0
C24: =+Trads!A607&" "&"Max" -> Interasse Max | F24: =_xlfn.IFNA(VLOOKUP($F$9,DB_Supporti,SupGen!S11,FALSE),"") ->  | H24: =_xlfn.IFNA(VLOOKUP($F$9,DB_Supporti,SupGen!X11,FALSE),"") ->  | J24: =_xlfn.IFNA(VLOOKUP($F$9,DB_Supporti,SupGen!V11,FALSE),"") ->  | L24: =_xlfn.IFNA(+VLOOKUP($F$9,DB_Supporti,SupGen!Q11,FALSE),"") -> 
C26: =+Trads!A607&" "&"Min" -> Interasse Min | F26: =_xlfn.IFNA(VLOOKUP($F$9,DB_Supporti,8,FALSE),"") ->  | H26: =_xlfn.IFNA(VLOOKUP($F$9,DB_Supporti,SupGen!AB11,FALSE),"") ->  | J26: =_xlfn.IFNA(+VLOOKUP($F$9,DB_Supporti,SupGen!Z11,FALSE),"") ->  | L26: =_xlfn.IFNA(+VLOOKUP($F$9,DB_Supporti,SupGen!Q11,FALSE),"") -> 
AC30: 0
AC31: 0 | AF31: 0
AC32: 1
C33: =+Trads!$A$337 -> Da Supporto # | D33: =+Trads!$A$339 -> Direzione | F33: =+Trads!$A$338 -> A Supporto # | G33: =+Trads!$A$341 -> Angolo° | I33: =+Trads!$A$340 -> Lunghezza | K33: =PROPER(Trads!$A$342) -> Lunghezza Misurata | L33: =PROPER(Trads!A67) -> Interasse Intermedi | S33: =+IF(D178=FALSE,Trads!A632,"") -> Termine la linea vita con Fine o Loop | AC33: 1 | AJ33: Delta l | AK33: =(AH33*1000*Y31*1000)/(Y32*#REF!) ->  | AN33: =+F191 -> 0 | AO33: int
AC34: 1 | AH34: deeflection | AJ34: Delta def | AK34: =AK33*SIN(RADIANS(AH35)) ->  | AL34: =+IF(D192=Loop,AM34-$AN$33,"") ->  | AM34: =IF(M191="","",IF(OR(M191<90,M191>270),TRUE,M191)) ->  | AN34: =+F192 -> 0 | AO34: =+T191 -> 0 | AQ34: =TRANSPOSE(First_seg) -> ← (180°) | AR34: ↑ (90°) | AS34: → (0°) | AT34: ↓ (270°) | AU34: Angolo
C35: =+_xlfn.IFS(D34=start,1,D34=ShareStart,"X",D34="","") ->  | F35: =+IF(D35="","",IF(C35="X",1,C35+1)) ->  | K35: =IF(G191=0,"",G191) ->  | L35: =IF(+U191=0,"",U191) ->  | AB35: =IF(F35="","",+_xlfn.CONCAT(C35,"-",F35)) ->  | AC35: 1 | AH35: =IF((IF(ProjSpan=MaxSpan,MaxDef,IF(ProjSpan=MinSpan,MinDef,_xlfn.FORECAST.LINEAR(ProjSpan,DefDB,SpanDB)+IF(AND(ProjSpan>MinSpan,ProjSpan<MaxSpan),0.1,0))))>MaxDef,MaxDef,IF(ProjSpan=MaxSpan,MaxDef,IF(ProjSpan=MinSpan,MinDef,_xlfn.FORECAST.LINEAR(ProjSpan,DefDB,SpanDB)+IF(AND(ProjSpan>MinSpan,ProjSpan<MaxSpan),0.1,0)))) ->  | AL35: =+IF(D193=Loop,ABS(M192-$AN$33-180),"") ->  | AM35: =IF(M192="","",IF(OR(M192<90,M192>270),TRUE,M192)) ->  | AN35: 0 | AO35: 0 | AQ35: =IF(AM33=TRUE,"",TRANSPOSE(_xlfn.IFS(D35="","",AND(OR(D35=End,D35=Loop)),Partenza,D35=up,Angolosu,D35=down,Angolodw,D35=sx,Angolosx,D35=Dx,Angolodx,D35=Angle,Direzioni))) -> 
C36: =IF(OR(C35<>"",C35<>End),IF(I35="","",+F35),"") ->  | F36: =IF(OR(D36=start,D36=ShareStart),"",IF(D36=End,"",IF(D36=Loop,$C$35,IF(D36<>"",C36+1,"")))) ->  | L36: =IF(+U192=0,"",U192) ->  | AC36: 1 | AN36: 0 | AO36: 0 | AQ36: =IF(AM34=TRUE,"",TRANSPOSE(_xlfn.IFS(D36="","",AND(OR(D36=End,D36=Loop)),Partenza,D36=up,Angolosu,D36=down,Angolodw,D36=sx,Angolosx,D36=Dx,Angolodx,D36=Angle,Direzioni))) -> 
C37: =IF(D36=start,MAX(F35,C35)+1,IF(D36=ShareStart,B192,IF(OR(C36<>"",C36<>End),IF(I36="","",+F36),""))) ->  | L37: =IF(+U193=0,"",U193) ->  | AC37: 1 | AN37: 0 | AO37: 0 | AQ37: =IF(AM35=TRUE,"",TRANSPOSE(_xlfn.IFS(D37="","",AND(OR(D37=End,D37=Loop)),Partenza,D37=up,Angolosu,D37=down,Angolodw,D37=sx,Angolosx,D37=Dx,Angolodx,D37=Angle,Direzioni))) -> 
AC38: 1 | AH38: Span | AI38: Def | AJ38: Fx | AM38: =IF(M195="","",IF(OR(M195<90,M195>270),TRUE,M195)) ->  | AN38: 0 | AO38: 0 | AQ38: =IF(AM36=TRUE,"",TRANSPOSE(_xlfn.IFS(D38="","",AND(OR(D38=End,D38=Loop)),Partenza,D38=up,Angolosu,D38=down,Angolodw,D38=sx,Angolosx,D38=Dx,Angolodx,D38=Angle,Direzioni))) -> 
AC39: 1 | AH39: =+F24 ->  | AI39: =+H24 ->  | AJ39: =+J24 ->  | AN39: 0 | AO39: 0 | AQ39: =IF(AM37=TRUE,"",TRANSPOSE(_xlfn.IFS(D39="","",AND(OR(D39=End,D39=Loop)),Partenza,D39=up,Angolosu,D39=down,Angolodw,D39=sx,Angolosx,D39=Dx,Angolodx,D39=Angle,Direzioni))) -> 
L40: =IF(+U196=0,"",U196) ->  | AC40: 1 | AH40: =+F26 ->  | AI40: =+H26 ->  | AJ40: =+J26 ->  | AN40: 0 | AO40: 0 | AQ40: =IF(AM38=TRUE,"",TRANSPOSE(_xlfn.IFS(D40="","",AND(OR(D40=End,D40=Loop)),Partenza,D40=up,Angolosu,D40=down,Angolodw,D40=sx,Angolosx,D40=Dx,Angolodx,D40=Angle,Direzioni))) -> 
AC41: =+IF(L39="",0,1) -> 0 | AH41: Tata | AN41: 0 | AO41: 0 | AQ41: =IF(AM39=TRUE,"",TRANSPOSE(_xlfn.IFS(D41="","",AND(OR(D41=End,D41=Loop)),Partenza,D41=up,Angolosu,D41=down,Angolodw,D41=sx,Angolosx,D41=Dx,Angolodx,D41=Angle,Direzioni))) -> 
AC42: 0 | AH42: =DEGREES(ATAN((2*DefProjBase)/ProjSpan)) ->  | AN42: 0 | AO42: 0 | AQ42: =IF(AM40=TRUE,"",TRANSPOSE(_xlfn.IFS(D42="","",AND(OR(D42=End,D42=Loop)),Partenza,D42=up,Angolosu,D42=down,Angolodw,D42=sx,Angolosx,D42=Dx,Angolodx,D42=Angle,Direzioni))) -> 
AC43: 0 | AN43: 0 | AO43: 0 | AQ43: =IF(AM41=TRUE,"",TRANSPOSE(_xlfn.IFS(D43="","",AND(OR(D43=End,D43=Loop)),Partenza,D43=up,Angolosu,D43=down,Angolodw,D43=sx,Angolosx,D43=Dx,Angolodx,D43=Angle,Direzioni))) -> 
A44: 10,30:30,10 | AC44: 0 | AH44: fy | AI44: =#REF!*SIN(RADIANS(AI43)) ->  | AN44: 0 | AO44: 0 | AQ44: =IF(AM42=TRUE,"",TRANSPOSE(_xlfn.IFS(D44="","",AND(OR(D44=End,D44=Loop)),Partenza,D44=up,Angolosu,D44=down,Angolodw,D44=sx,Angolosx,D44=Dx,Angolodx,D44=Angle,Direzioni))) -> 
AC45: 0 | AH45: fx | AI45: =#REF!*COS(RADIANS(AI43)) ->  | AN45: 0 | AO45: 0 | AQ45: =IF(AM43=TRUE,"",TRANSPOSE(_xlfn.IFS(D45="","",AND(OR(D45=End,D45=Loop)),Partenza,D45=up,Angolosu,D45=down,Angolodw,D45=sx,Angolosx,D45=Dx,Angolodx,D45=Angle,Direzioni))) -> 
Y46: =IF(AM45="","",AM45>=90) ->  | AC46: 0 | AN46: 0 | AO46: 0 | AQ46: =IF(AM44=TRUE,"",TRANSPOSE(_xlfn.IFS(D46="","",AND(OR(D46=End,D46=Loop)),Partenza,D46=up,Angolosu,D46=down,Angolodw,D46=sx,Angolosx,D46=Dx,Angolodx,D46=Angle,Direzioni))) -> 
AC47: 0 | AN47: 0 | AO47: 0 | AQ47: =IF(AM45=TRUE,"",TRANSPOSE(_xlfn.IFS(D47="","",AND(OR(D47=End,D47=Loop)),Partenza,D47=up,Angolosu,D47=down,Angolodw,D47=sx,Angolosx,D47=Dx,Angolodx,D47=Angle,Direzioni))) -> 
AC48: 0 | AN48: 0 | AO48: 0 | AQ48: =IF(AM46=TRUE,"",TRANSPOSE(_xlfn.IFS(D48="","",AND(OR(D48=End,D48=Loop)),Partenza,D48=up,Angolosu,D48=down,Angolodw,D48=sx,Angolosx,D48=Dx,Angolodx,D48=Angle,Direzioni))) -> 
AC49: 0 | AH49: AyMaxWall | AI49: =+SupTabella!K67 -> 40.00 | AN49: 0 | AO49: 0 | AQ49: =IF(AM47=TRUE,"",TRANSPOSE(_xlfn.IFS(D49="","",AND(OR(D49=End,D49=Loop)),Partenza,D49=up,Angolosu,D49=down,Angolodw,D49=sx,Angolosx,D49=Dx,Angolodx,D49=Angle,Direzioni))) -> 
AC50: 0 | AN50: 0 | AO50: 0 | AQ50: =IF(AM48=TRUE,"",TRANSPOSE(_xlfn.IFS(D50="","",AND(OR(D50=End,D50=Loop)),Partenza,D50=up,Angolosu,D50=down,Angolodw,D50=sx,Angolosx,D50=Dx,Angolodx,D50=Angle,Direzioni))) -> 
AC51: 0 | AN51: 0 | AO51: 0 | AQ51: =IF(AM49=TRUE,"",TRANSPOSE(_xlfn.IFS(D51="","",AND(OR(D51=End,D51=Loop)),Partenza,D51=up,Angolosu,D51=down,Angolodw,D51=sx,Angolosx,D51=Dx,Angolodx,D51=Angle,Direzioni))) -> 
AC52: 0 | AN52: 0 | AO52: 0 | AQ52: =IF(AM50=TRUE,"",TRANSPOSE(_xlfn.IFS(D52="","",AND(OR(D52=End,D52=Loop)),Partenza,D52=up,Angolosu,D52=down,Angolodw,D52=sx,Angolosx,D52=Dx,Angolodx,D52=Angle,Direzioni))) -> 
AC53: 0 | AN53: 0 | AO53: 0 | AQ53: =IF(AM51=TRUE,"",TRANSPOSE(_xlfn.IFS(D53="","",AND(OR(D53=End,D53=Loop)),Partenza,D53=up,Angolosu,D53=down,Angolodw,D53=sx,Angolosx,D53=Dx,Angolodx,D53=Angle,Direzioni))) -> 
AC54: 0 | AN54: 0 | AO54: 0 | AQ54: =IF(AM52=TRUE,"",TRANSPOSE(_xlfn.IFS(D54="","",AND(OR(D54=End,D54=Loop)),Partenza,D54=up,Angolosu,D54=down,Angolodw,D54=sx,Angolosx,D54=Dx,Angolodx,D54=Angle,Direzioni))) -> 
AC55: 0 | AN55: 0 | AO55: 0 | AQ55: =IF(AM53=TRUE,"",TRANSPOSE(_xlfn.IFS(D55="","",AND(OR(D55=End,D55=Loop)),Partenza,D55=up,Angolosu,D55=down,Angolodw,D55=sx,Angolosx,D55=Dx,Angolodx,D55=Angle,Direzioni))) -> 
AC56: 0 | AH56: AyMinWall | AI56: =+SupTabella!K74 -> -40.00 | AN56: 0 | AO56: 0 | AQ56: =IF(AM54=TRUE,"",TRANSPOSE(_xlfn.IFS(D56="","",AND(OR(D56=End,D56=Loop)),Partenza,D56=up,Angolosu,D56=down,Angolodw,D56=sx,Angolosx,D56=Dx,Angolodx,D56=Angle,Direzioni))) -> 
AC57: =+IF(L55="",0,1) -> 0 | AD57: AxMinWall | AE57: =+SupTabella!G75 -> -40.00 | AF57: AxMaxWall | AG57: =+SupTabella!I75 -> 40.00 | AN57: 0 | AO57: 0 | AQ57: =IF(AM55=TRUE,"",TRANSPOSE(_xlfn.IFS(D57="","",AND(OR(D57=End,D57=Loop)),Partenza,D57=up,Angolosu,D57=down,Angolodw,D57=sx,Angolosx,D57=Dx,Angolodx,D57=Angle,Direzioni))) -> 
AC58: 0 | AN58: 0 | AO58: 0 | AQ58: =IF(AM56=TRUE,"",TRANSPOSE(_xlfn.IFS(D58="","",AND(OR(D58=End,D58=Loop)),Partenza,D58=up,Angolosu,D58=down,Angolodw,D58=sx,Angolosx,D58=Dx,Angolodx,D58=Angle,Direzioni))) -> 
AC59: 0 | AN59: 0 | AO59: 0 | AQ59: =IF(AM57=TRUE,"",TRANSPOSE(_xlfn.IFS(D59="","",AND(OR(D59=End,D59=Loop)),Partenza,D59=up,Angolosu,D59=down,Angolodw,D59=sx,Angolosx,D59=Dx,Angolodx,D59=Angle,Direzioni))) -> 
AC60: 0 | AN60: 0 | AO60: 0 | AQ60: =IF(AM58=TRUE,"",TRANSPOSE(_xlfn.IFS(D60="","",AND(OR(D60=End,D60=Loop)),Partenza,D60=up,Angolosu,D60=down,Angolodw,D60=sx,Angolosx,D60=Dx,Angolodx,D60=Angle,Direzioni))) -> 
AC61: 0 | AN61: 0 | AO61: 0 | AQ61: =IF(AM59=TRUE,"",TRANSPOSE(_xlfn.IFS(D61="","",AND(OR(D61=End,D61=Loop)),Partenza,D61=up,Angolosu,D61=down,Angolodw,D61=sx,Angolosx,D61=Dx,Angolodx,D61=Angle,Direzioni))) -> 
AC62: 0 | AN62: 0 | AO62: 0 | AQ62: =IF(AM60=TRUE,"",TRANSPOSE(_xlfn.IFS(D62="","",AND(OR(D62=End,D62=Loop)),Partenza,D62=up,Angolosu,D62=down,Angolodw,D62=sx,Angolosx,D62=Dx,Angolodx,D62=Angle,Direzioni))) -> 
AC63: 0 | AN63: 0 | AO63: 0 | AQ63: =IF(AM61=TRUE,"",TRANSPOSE(_xlfn.IFS(D63="","",AND(OR(D63=End,D63=Loop)),Partenza,D63=up,Angolosu,D63=down,Angolodw,D63=sx,Angolosx,D63=Dx,Angolodx,D63=Angle,Direzioni))) -> 
AC64: 0 | AN64: 0 | AO64: 0 | AQ64: =IF(AM62=TRUE,"",TRANSPOSE(_xlfn.IFS(D64="","",AND(OR(D64=End,D64=Loop)),Partenza,D64=up,Angolosu,D64=down,Angolodw,D64=sx,Angolosx,D64=Dx,Angolodx,D64=Angle,Direzioni))) -> 
AC65: 0 | AN65: =+F223 -> 0 | AO65: 0 | AQ65: =IF(AM63=TRUE,"",TRANSPOSE(_xlfn.IFS(D65="","",AND(OR(D65=End,D65=Loop)),Partenza,D65=up,Angolosu,D65=down,Angolodw,D65=sx,Angolosx,D65=Dx,Angolodx,D65=Angle,Direzioni))) -> 
AC66: 0 | AN66: 0 | AO66: =+T223 -> 0 | AQ66: =IF(AM64=TRUE,"",TRANSPOSE(_xlfn.IFS(D66="","",AND(OR(D66=End,D66=Loop)),Partenza,D66=up,Angolosu,D66=down,Angolodw,D66=sx,Angolosx,D66=Dx,Angolodx,D66=Angle,Direzioni))) -> 
K67: =IF(G223=0,"",G223) ->  | AB67: =IF(F67="","",+_xlfn.CONCAT(C67,"-",F67)) ->  | AC67: 0 | AL67: =+IF(D225=Loop,ABS(M224-$AN$33-180),"") ->  | AN67: 0 | AO67: 0 | AQ67: =IF(AM65=TRUE,"",TRANSPOSE(_xlfn.IFS(D67="","",AND(OR(D67=End,D67=Loop)),Partenza,D67=up,Angolosu,D67=down,Angolodw,D67=sx,Angolosx,D67=Dx,Angolodx,D67=Angle,Direzioni))) -> 
F68: =IF(OR(D68=start,D68=ShareStart),"",IF(D68=End,"",IF(D68=Loop,$C$35,IF(D68<>"",C68+1,"")))) ->  | AC68: 0 | AN68: 0 | AO68: 0 | AQ68: =IF(AM66=TRUE,"",TRANSPOSE(_xlfn.IFS(D68="","",AND(OR(D68=End,D68=Loop)),Partenza,D68=up,Angolosu,D68=down,Angolodw,D68=sx,Angolosx,D68=Dx,Angolodx,D68=Angle,Direzioni))) -> 
C69: =IF(D68=start,MAX(F67,C67)+1,IF(D68=ShareStart,B224,IF(OR(C68<>"",C68<>End),IF(I68="","",+F68),""))) ->  | AC69: 0 | AN69: 0 | AO69: 0 | AQ69: =IF(AM67=TRUE,"",TRANSPOSE(_xlfn.IFS(D69="","",AND(OR(D69=End,D69=Loop)),Partenza,D69=up,Angolosu,D69=down,Angolodw,D69=sx,Angolosx,D69=Dx,Angolodx,D69=Angle,Direzioni))) -> 
AC70: 0 | AN70: 0 | AO70: 0 | AQ70: =IF(AM68=TRUE,"",TRANSPOSE(_xlfn.IFS(D70="","",AND(OR(D70=End,D70=Loop)),Partenza,D70=up,Angolosu,D70=down,Angolodw,D70=sx,Angolosx,D70=Dx,Angolodx,D70=Angle,Direzioni))) -> 
AC71: 0 | AN71: 0 | AO71: 0 | AQ71: =IF(AM69=TRUE,"",TRANSPOSE(_xlfn.IFS(D71="","",AND(OR(D71=End,D71=Loop)),Partenza,D71=up,Angolosu,D71=down,Angolodw,D71=sx,Angolosx,D71=Dx,Angolodx,D71=Angle,Direzioni))) -> 
Y72: =IF(AM71="","",AM71>=90) ->  | AC72: 0 | AN72: 0 | AO72: 0 | AQ72: =IF(AM70=TRUE,"",TRANSPOSE(_xlfn.IFS(D72="","",AND(OR(D72=End,D72=Loop)),Partenza,D72=up,Angolosu,D72=down,Angolodw,D72=sx,Angolosx,D72=Dx,Angolodx,D72=Angle,Direzioni))) -> 
AC73: 0 | AN73: 0 | AO73: 0 | AQ73: =IF(AM71=TRUE,"",TRANSPOSE(_xlfn.IFS(D73="","",AND(OR(D73=End,D73=Loop)),Partenza,D73=up,Angolosu,D73=down,Angolodw,D73=sx,Angolosx,D73=Dx,Angolodx,D73=Angle,Direzioni))) -> 
AC74: 0 | AN74: 0 | AO74: 0 | AQ74: =IF(AM72=TRUE,"",TRANSPOSE(_xlfn.IFS(D74="","",AND(OR(D74=End,D74=Loop)),Partenza,D74=up,Angolosu,D74=down,Angolodw,D74=sx,Angolosx,D74=Dx,Angolodx,D74=Angle,Direzioni))) -> 
AC75: 0 | AN75: 0 | AO75: 0 | AQ75: =IF(AM73=TRUE,"",TRANSPOSE(_xlfn.IFS(D75="","",AND(OR(D75=End,D75=Loop)),Partenza,D75=up,Angolosu,D75=down,Angolodw,D75=sx,Angolosx,D75=Dx,Angolodx,D75=Angle,Direzioni))) -> 
AC76: 0 | AN76: 0 | AO76: 0 | AQ76: =IF(AM74=TRUE,"",TRANSPOSE(_xlfn.IFS(D76="","",AND(OR(D76=End,D76=Loop)),Partenza,D76=up,Angolosu,D76=down,Angolodw,D76=sx,Angolosx,D76=Dx,Angolodx,D76=Angle,Direzioni))) -> 
AC77: 0 | AN77: 0 | AO77: 0 | AQ77: =IF(AM75=TRUE,"",TRANSPOSE(_xlfn.IFS(D77="","",AND(OR(D77=End,D77=Loop)),Partenza,D77=up,Angolosu,D77=down,Angolodw,D77=sx,Angolosx,D77=Dx,Angolodx,D77=Angle,Direzioni))) -> 
AC78: 0 | AN78: 0 | AO78: 0 | AQ78: =IF(AM76=TRUE,"",TRANSPOSE(_xlfn.IFS(D78="","",AND(OR(D78=End,D78=Loop)),Partenza,D78=up,Angolosu,D78=down,Angolodw,D78=sx,Angolosx,D78=Dx,Angolodx,D78=Angle,Direzioni))) -> 
AC79: 0 | AN79: 0 | AO79: 0 | AQ79: =IF(AM77=TRUE,"",TRANSPOSE(_xlfn.IFS(D79="","",AND(OR(D79=End,D79=Loop)),Partenza,D79=up,Angolosu,D79=down,Angolodw,D79=sx,Angolosx,D79=Dx,Angolodx,D79=Angle,Direzioni))) -> 
AC80: 0 | AN80: 0 | AO80: 0 | AQ80: =IF(AM78=TRUE,"",TRANSPOSE(_xlfn.IFS(D80="","",AND(OR(D80=End,D80=Loop)),Partenza,D80=up,Angolosu,D80=down,Angolodw,D80=sx,Angolosx,D80=Dx,Angolodx,D80=Angle,Direzioni))) -> 
AC81: 0 | AN81: 0 | AO81: 0 | AQ81: =IF(AM79=TRUE,"",TRANSPOSE(_xlfn.IFS(D81="","",AND(OR(D81=End,D81=Loop)),Partenza,D81=up,Angolosu,D81=down,Angolodw,D81=sx,Angolosx,D81=Dx,Angolodx,D81=Angle,Direzioni))) -> 
AC82: 0 | AN82: 0 | AO82: 0 | AQ82: =IF(AM80=TRUE,"",TRANSPOSE(_xlfn.IFS(D82="","",AND(OR(D82=End,D82=Loop)),Partenza,D82=up,Angolosu,D82=down,Angolodw,D82=sx,Angolosx,D82=Dx,Angolodx,D82=Angle,Direzioni))) -> 
AC83: 0 | AN83: 0 | AO83: 0 | AQ83: =IF(AM81=TRUE,"",TRANSPOSE(_xlfn.IFS(D83="","",AND(OR(D83=End,D83=Loop)),Partenza,D83=up,Angolosu,D83=down,Angolodw,D83=sx,Angolosx,D83=Dx,Angolodx,D83=Angle,Direzioni))) -> 
AC84: 0 | AN84: 0 | AO84: 0 | AQ84: =IF(AM82=TRUE,"",TRANSPOSE(_xlfn.IFS(D84="","",AND(OR(D84=End,D84=Loop)),Partenza,D84=up,Angolosu,D84=down,Angolodw,D84=sx,Angolosx,D84=Dx,Angolodx,D84=Angle,Direzioni))) -> 
AC85: 0 | AN85: 0 | AO85: 0 | AQ85: =IF(AM83=TRUE,"",TRANSPOSE(_xlfn.IFS(D85="","",AND(OR(D85=End,D85=Loop)),Partenza,D85=up,Angolosu,D85=down,Angolodw,D85=sx,Angolosx,D85=Dx,Angolodx,D85=Angle,Direzioni))) -> 
AC86: 0 | AN86: 0 | AO86: 0 | AQ86: =IF(AM84=TRUE,"",TRANSPOSE(_xlfn.IFS(D86="","",AND(OR(D86=End,D86=Loop)),Partenza,D86=up,Angolosu,D86=down,Angolodw,D86=sx,Angolosx,D86=Dx,Angolodx,D86=Angle,Direzioni))) -> 
AC87: 0 | AH87: apri | AN87: 0 | AO87: 0 | AQ87: =IF(AM85=TRUE,"",TRANSPOSE(_xlfn.IFS(D87="","",AND(OR(D87=End,D87=Loop)),Partenza,D87=up,Angolosu,D87=down,Angolodw,D87=sx,Angolosx,D87=Dx,Angolodx,D87=Angle,Direzioni))) -> 
AC88: 0 | AN88: 0 | AO88: 0 | AQ88: =IF(AM86=TRUE,"",TRANSPOSE(_xlfn.IFS(D88="","",AND(OR(D88=End,D88=Loop)),Partenza,D88=up,Angolosu,D88=down,Angolodw,D88=sx,Angolosx,D88=Dx,Angolodx,D88=Angle,Direzioni))) -> 
AC89: 0 | AN89: 0 | AO89: 0 | AQ89: =IF(AM87=TRUE,"",TRANSPOSE(_xlfn.IFS(D89="","",AND(OR(D89=End,D89=Loop)),Partenza,D89=up,Angolosu,D89=down,Angolodw,D89=sx,Angolosx,D89=Dx,Angolodx,D89=Angle,Direzioni))) -> 
AC90: 0 | AN90: 0 | AO90: 0 | AQ90: =IF(AM88=TRUE,"",TRANSPOSE(_xlfn.IFS(D90="","",AND(OR(D90=End,D90=Loop)),Partenza,D90=up,Angolosu,D90=down,Angolodw,D90=sx,Angolosx,D90=Dx,Angolodx,D90=Angle,Direzioni))) -> 
AC91: 0 | AN91: 0 | AO91: 0 | AQ91: =IF(AM89=TRUE,"",TRANSPOSE(_xlfn.IFS(D91="","",AND(OR(D91=End,D91=Loop)),Partenza,D91=up,Angolosu,D91=down,Angolodw,D91=sx,Angolosx,D91=Dx,Angolodx,D91=Angle,Direzioni))) -> 
AC92: 0 | AN92: 0 | AO92: 0 | AQ92: =IF(AM90=TRUE,"",TRANSPOSE(_xlfn.IFS(D92="","",AND(OR(D92=End,D92=Loop)),Partenza,D92=up,Angolosu,D92=down,Angolodw,D92=sx,Angolosx,D92=Dx,Angolodx,D92=Angle,Direzioni))) -> 
AC93: 0 | AN93: 0 | AO93: 0 | AQ93: =IF(AM91=TRUE,"",TRANSPOSE(_xlfn.IFS(D93="","",AND(OR(D93=End,D93=Loop)),Partenza,D93=up,Angolosu,D93=down,Angolodw,D93=sx,Angolosx,D93=Dx,Angolodx,D93=Angle,Direzioni))) -> 
AC94: 0 | AN94: 0 | AO94: 0 | AQ94: =IF(AM92=TRUE,"",TRANSPOSE(_xlfn.IFS(D94="","",AND(OR(D94=End,D94=Loop)),Partenza,D94=up,Angolosu,D94=down,Angolodw,D94=sx,Angolosx,D94=Dx,Angolodx,D94=Angle,Direzioni))) -> 
AC95: 0 | AN95: 0 | AO95: 0 | AQ95: =IF(AM93=TRUE,"",TRANSPOSE(_xlfn.IFS(D95="","",AND(OR(D95=End,D95=Loop)),Partenza,D95=up,Angolosu,D95=down,Angolodw,D95=sx,Angolosx,D95=Dx,Angolodx,D95=Angle,Direzioni))) -> 
AC96: 0 | AN96: 0 | AQ96: =IF(AM94=TRUE,"",TRANSPOSE(_xlfn.IFS(D96="","",AND(OR(D96=End,D96=Loop)),Partenza,D96=up,Angolosu,D96=down,Angolodw,D96=sx,Angolos9,D96=Dx,Angolodx,D96=Angle,Direzioni))) -> 
AC97: 0
AC98: 0
AF99: 0
AC101: 1
C102: =+Trads!$A$340&" "&Trads!$A$79 -> Lunghezza Totale | F102: =ROUND(SUBTOTAL(9,I35:J61,K35:K61),2) -> 0.00 | AC102: 1
AC103: 1
C104: =+Trads!A610&" [m]" -> Lunghezza massima campata [m] | F104: =IF(D178=FALSE,"",MAX(L35:M88)) ->  | AC104: 1
C106: =+Trads!A611 -> Carico applicato alla campata all'interno di questo segmento | H106: =_xlfn.IFNA(+_xlfn.XLOOKUP(F104,L35:L97,AB35:AB97),"") -> 
C108: =+Trads!A612 -> Reazione sugli elementi di ancoraggio della fune a più campate
C109: Element | E109: =+Trads!A348 -> Terminali | H109: =PROPER(Trads!$A$11) -> Intermedio | K109: =+Trads!$A$613 -> Curva
E110: F1 [kN] | F110: F2 [kN] | G110: =+Trads!$A$618&" [kN]" -> Modulo [kN] | H110: F1 [kN] | I110: F2 [kN] | J110: =+Trads!$A$618&" [kN]" -> Modulo [kN] | K110: F1 [kN] | L110: F2 [kN] | M110: =+Trads!$A$618&" [kN]" -> Modulo [kN]
C111: =+Trads!A629 -> ancoraggi alla campata caricata | E111: =+IF(D178=FALSE,"",IFERROR(SupLL!P107,0)) ->  | F111: =IF(D178=FALSE,"",IFERROR(SupLL!P106,0)) ->  | G111: =+IF(D178=FALSE,"",IFERROR(_xlfn.FORECAST.LINEAR(ProjSpan,FxDb,SpanDB),0)) ->  | H111: =IF(D178=FALSE,"",IFERROR(SupLL!P107,0)) ->  | I111: =IF(D178=FALSE,"",IFERROR(SupLL!P106,0)) ->  | J111: =IF(D178=FALSE,"",IFERROR(_xlfn.FORECAST.LINEAR(ProjSpan,FxDb,SpanDB),0)) ->  | K111: =IF(D178=FALSE,"",IFERROR(VLOOKUP(M111,AA191:AC253,2,FALSE),0)) ->  | L111: =IF(D178=FALSE,"",IFERROR(VLOOKUP(M111,AA191:AC253,3,FALSE),0)) ->  | M111: =IF(D178=FALSE,"",IFERROR(AA256,0)) -> 
C112: =+Trads!A630 -> ancoraggi alla campata non caricata | E112: =+IF(D178=FALSE,"",IFERROR(_xlfn.FORECAST.LINEAR(ProjSpan,FxDb,SpanDB),0)) ->  | F112: =IF(D178=FALSE,"",0) ->  | G112: =E112 ->  | H112: =+IF(D178=FALSE,"",0) ->  | I112: =IF(D178=FALSE,"",0) ->  | J112: =IF(D178=FALSE,"",0) ->  | AQ112: Larghezza | AR112: =IF(AK123=0,"",+AK123) -> 
AQ113: Testo Etichetta | AR113: =IFERROR(+_xlfn.CONCAT(H118,": ",_xlfn.CEILING.MATH(TRUNC(AR119,2),0.01)),"") -> 
C114: =+Trads!$A$614&" [kN]" -> Carico massimo di progetto [kN] | F114: =IF(D178=FALSE,"",MAX(G111:G112,J111:J112,M111)) ->  | H114: =+Trads!$A$615 -> Freccia della fune della campata rispetto ai vincoli delle estremità di giunzione | AL114: Monocampata | AM114: =+_xlfn.XLOOKUP(AH124,AB35:AB40,AO34:AO39) -> 0
H116: =+Trads!$A$616 -> Campata caricata | K116: =IF(D178=FALSE,"",IFERROR(+H106,"")) ->  | AL116: =+IF(M111=0,TRUE,FALSE) -> FALSE
H118: =+Trads!A617&" [m]" -> Freccia [m] | K118: =IF(D178=FALSE,"",IFERROR(IF(TotLung<=MaxSpan,SupLL!S99,SupLL!S99+SupLL!S104/1000),"")) ->  | N118: * | AN118: Offeset | AP118: 15 | AR118: Freccia
H119: =IF(D178=FALSE,"",+"*"&ROUND(SupLL!S103/1000,2)&Trads!A619) ->  | AP119: =+ProjSpan ->  | AR119: =+K118 -> 
AK120: =+IF(D36=End,TRUE,FALSE) -> FALSE | AN120: =+G111 ->  | AP120: =+IF(D178=FALSE,"",IF(AP119=0,0,(AP118-AP119)/2)) -> 
C121: =+H114 -> Freccia della fune della campata rispetto ai vincoli delle estremità di giunzione | AN121: =+M111 -> 
AK122: Max | AL122: Max/2 | AM122: Etichette | AU122: Dimensione Tratto
AK123: =+ProjSpan ->  | AL123: =+IF(D178=FALSE,"",+AK123/2) ->  | AM123: Minore | AN123: Deformata | AP123: A riposo | AR123: Freccia | AU123: x | AV123: y
AH124: =+K116 ->  | AL124: Angolo Più piccolo | AM124: =_xlfn.IFNA(+_xlfn.XLOOKUP("MIN",AZ126:AZ127,AM126:AM127),"") ->  | AN124: x | AO124: y | AP124: X | AQ124: Y | AR124: x | AS124: y | AU124: =+AN126 ->  | AV124: 2
AH125: =+_xlfn.CONCAT(AH126-1,"-",AH126) -> -1-0 | AI125: =+_xlfn.XLOOKUP($AH$124,$AB$35:$AB$97,AO33:AO95) -> int | AL125: =IF(AK119=TRUE,Trads!A630,IF(AM125=0,"",+IF(AM125=$AM$124,Trads!A630,""))) ->  | AU125: =+AN128 ->  | AV125: 2 | AX125: Angoli
AH126: =_xlfn.NUMBERVALUE(LEFT(AH124,1)) -> 0 | AI126: =+_xlfn.XLOOKUP($AH$124,$AB$35:$AB$97,AO34:AO96) -> 0 | AK126: Angolo | AL126: =+IF(AI126=0,"",IF(AI126=1,"",Trads!A631)) ->  | AM126: =+IF(D178=FALSE,"",IF(AL126="",AH126,_xlfn.CONCAT(AL126," ",AH124))) ->  | AN126: =+IF(D178=FALSE,"",0+AP120) ->  | AO126: =+IF(D178=FALSE,"",0) ->  | AP126: =+AN126 ->  | AQ126: =+IF(D178=FALSE,"",0) ->  | AR126: =+AN127 ->  | AS126: =+IF(D178=FALSE,"",0) ->  | AX126: =IF(AH126=1,FALSE,VLOOKUP(AH126,CoordXY,11,FALSE)) -> 0 | AY126: =+ABS(180-AX126) -> 180 | AZ126: =+IF(AY126<=AY127,"MIN","") -> MIN
AH127: =_xlfn.NUMBERVALUE(+RIGHT(AH124,1)) -> 0 | AK127: Angolo | AL127: =+IF(AI126=0,"",Trads!A631) ->  | AM127: =+IF(D178=FALSE,"",IF(AL127="",AH127,_xlfn.CONCAT(AL127," ",AH124))) ->  | AN127: =+IF(D178=FALSE,"",AL123+AP120) ->  | AO127: =+IF(D178=FALSE,"",IFERROR(-AR119,0)) ->  | AP127: =+AN128 ->  | AQ127: =+IF(D178=FALSE,"",0) ->  | AR127: =+AR126 ->  | AS127: =+AO127 ->  | AX127: =+VLOOKUP(AH127,CoordXY,11,FALSE) -> 0 | AY127: =IFERROR(+ABS(180-AX127),"") -> 180 | AZ127: =+IF(AY127<=AY126,"MIN","") -> MIN
AH128: =+_xlfn.CONCAT(AH127,"-",AH127+1) -> 0-1 | AI128: =+_xlfn.XLOOKUP($AH$124,$AB$35:$AB$97,AO35:AO97) -> 0 | AL128: =IF(AK122=TRUE,Trads!A633,IF(AM128=0,"",+IF(AM128=$AM$124,Trads!A633,""))) ->  | AN128: =+IF(D178=FALSE,"",+AK123+AP120) ->  | AO128: =+IF(D178=FALSE,"",0) ->  | AP128: =+AP127 ->  | AQ128: =+IF(D178=FALSE,"",0) -> 
AU129: Offeset Dimension | AX129: Ultimo
AU130: 2 | AX130: =+C187 -> 0
AO131: Limite SupDx
AM132: offset | AO132: x | AP132: y | AR132: Xmax | AS132: Ymax
AH133: Sposta Sx | AI133: =IFERROR(AN141-(IF(AL126<>"",80,20)),0) -> -20 | AJ133: =+IF(AL126="",-20,0) -> -20 | AM133: 2 | AO133: =+MAX(AN126:AN130,AP126:AP130) -> 0 | AP133: =MAX(AO126:AO130,AQ126:AQ130) -> 0 | AR133: =+MAX(AN126:AN130,AP126:AP130) -> 0 | AS133: =IF(AP133=0,12,ABS(+MIN(AO126:AO130,AQ126:AQ130))) -> 12
AH134: Sposta Dx | AI134: =IFERROR(AN142-(IF(AL127<>"",80,20)),0) -> -20 | AJ134: =+IF(AL127="",-20,0) -> -20 | AM134: Limite infSIX | AO134: =+AO133+AM133 -> 2 | AP134: =IF(AP133=0,15+AP133+AM133,AP133+AM133) -> 17
AH135: TopSx | AI135: 30 | AM135: x | AN135: y | AS135: =+IFERROR((AS133/AR133)/3,0) -> 0 | AU135: =21/7 -> 3
AH136: TopDx | AI136: 30 | AM136: =+MIN(AN126:AN130,AP126:AP130) -> 0 | AN136: =+IFERROR(MIN(AO126:AO130,AQ126:AQ130)*AS135,0) -> 0.000 | AP136: =+ABS(AN136-AP133) -> 0.0000 | AQ136: Rapporto H/L
AM137: =+AM136-AM133 -> -2 | AN137: =+AN136-AM133 -> -2.000 | AP137: =+AO134 -> 2 | AQ137: =IFERROR(+AP137/AP136,0) -> 0.000
C139: =+Trads!A624 -> NOTE
C140: =+Trads!A622 -> I fissaggi e gli ancoraggi devono essere gli stessi in tutti i punti di ancoraggio.
C141: =+Trads!A623 -> Prima della costruzione, tutti i calcoli devono essere verificati e approvati dal progettista responsabile. | AL141: -2 | AM141: 0 | AN141: =IFERROR(_xlfn.FORECAST.LINEAR(AU124,$AM$141:$AM$142,$AL$141:$AL$142),0) -> 0
C142: =+Trads!A625 -> I valori di resistenza meccanica e la geometria si riferiscono alla certificazione del prodotto. | AL142: 17 | AM142: 730 | AN142: =IFERROR(+_xlfn.FORECAST.LINEAR(AU125,$AM$141:$AM$142,$AL$141:$AL$142),0) -> 0
C143: =+Trads!A626 -> La verifica della resistenza dei sistemi di ancoraggio deve essere realizzata a parte.
C144: =+Trads!A627 -> Tutti i calcoli devono essere verificati e approvati dal progettista responsabile prima dell'esecuzione. Il progettista è tenuto a verificare, ad ogni utilizzo, la conformità dei dati alle normative vigenti e al progetto. La responsabilità ultima della scelta del prodotto appropriato per una specifica applicazione spetta al progettista.
C145: =+Trads!A628 -> I risultati ottenuti in questa scheda sono di natura indicativa e vanno considerati come un servizio tecnico-commerciale nell'ambito dell'attività di vendita di Rotho Blaas srl. Il numero e lo spessore degli inserti devono essere determinati dal progettista responsabile che è tenuto a verificare l'esattezza dei risultati derivanti dall'elaborazione dei dati inseriti. Rotho Blaas srl non garantisce la conformità alla normativa vigente e la progettazione dei calcoli effettuati tramite questo foglio di calcolo. In particolare, in seguito alla modifica delle disposizioni pertinenti, quali ad esempio norme, approvazioni, ecc. il programma potrebbe diventare, in parte o in toto, non valido. Rotho Blaas srl non garantisce e non sarà responsabile per danni o conseguenze dirette o indirette o altro, in qualsiasi modo (garanzia per difetti, garanzia per malfunzionamento, responsabilità del prodotto o legale, ecc.) L'Utente dichiara di utilizzare il foglio di calcolo in qualità di professionista con l'obbligo e la responsabilità di verificare che il foglio di calcolo risponda alle sue specifiche esigenze.
D178: =+IF(OR((AM23>0),AND(D180=0,D183=0)),FALSE,TRUE) -> FALSE
D180: =+COUNTIF(D191:D252,End) -> 0
N181: numero di accessori | O181: =IF(#REF!="",0,+VLOOKUP(#REF!,N182:O184,2,FALSE)) -> 
C182: Totale Linee | D182: Loop | E182: Term | N182: =+Trads!$A$348 -> Terminali | O182: =+E183*2 -> 2
C183: 1 | D183: =+COUNTIF(D191:D252,Loop) -> 0 | E183: =+C183-D183 -> 1 | N183: =+Trads!$A$349 -> Tutti i supporti | O183: =+C187+T189+N190+P190 -> 0
N184: =+Trads!$A$350 -> n. supporti | S184: intermedi | T184: =+COUNTIF(V191:V252,"int") -> 0
M185: =IF(D192=Loop,ABS(180-ABS(L192-F191)),IF(AND(H191=H192,I191=I192),"",ABS(180-ABS(F192-F191)))) ->  | S185: Angoli | T185: =+COUNTIF(V191:V252,"ang")-1 -> -1
C186: Supporti Principali | M186: =IF(D193=Loop,ABS(180-ABS(L193-F192)),IF(AND(H192=H193,I192=I193),"",ABS(180-ABS(F193-F192)))) ->  | N186: Angoli Totali | O186: =+N190+P190 -> 0
C187: =+MAX(C190:C252) -> 0 | H187: =+OR(D35="",I35="") -> TRUE | N187: Angoli <>90° | O187: =+P190 -> 0
C188: Supporto | N188: Angoli =90° | O188: =+N190 -> 0 | S188: interasse | T188: Somma Int | Y188: costruzione
C189: Partenza | G189: Misura | H189: X | I189: Y | N189: Angoli = 90° | O189: Angoli=INT | P189: Angoli <> 90° | S189: =+F24 ->  | T189: =+SUM(T191:T252)+O190 -> 0 | X189: F interpolazione | Y189: F1 da int | Z189: F2 da int | AA189: F mod | AB189: F1 | AC189: F2 | AF189: X2-X1 | AG189: Y2-Y1 | AH189: angolo 1 | AI189: Angolo
C190: =+C35 ->  | D190: Direzione | E190: Lunghezza | F190: Angolo(°) | G190: =+IF(D190=Loop,SQRT((H190-H189)^2+(I190-I189)^2),0) -> 0.00 | H190: =+IF($H$187=TRUE,0,E31) -> 0.00 | I190: =+IF($H$187=TRUE,0,E32) -> 0.00 | J190: Sen | K190: Cos | L190: Angolo Loop | M190: Angolo | N190: =+COUNTIF(N191:N252,90) -> 0 | O190: =+COUNTIF(O191:O252,"INT") -> 0 | P190: =+COUNTIF(P191:P252,1) -> 0 | Q190: Intermedi | S190: Inter. Loop | T190: Intermedi Max | U190: Distanza Int | W190: Punto angolo | X190: [kN] | Y190: [kN] | Z190: [kN] | AA190: [kN] | AB190: [kN] | AC190: [kN] | AF190: - | AG190: - | AI190: °
B191: =IF(C190="","",_xlfn.CONCAT(C190,", ",F11)) ->  | C191: =IF(OR(D36=End,D36=Loop),F35,C36) ->  | D191: =IF(D35="","",D35) ->  | E191: =+I35 -> 0.00 | F191: =IF(OR(D191=End,D191=Loop,D191=""),0,IF(D191<>Angle,VLOOKUP(D191,Angoli,2,FALSE),G35)) -> 0 | G191: =+IF(D191=Loop,SQRT((H191-$H$190)^2+(I191-$I$190)^2),0) -> 0.00 | H191: =_xlfn.IFS($D191=Angle,(E191*J191)+H190,$D191=Loop,$H$190,OR($D191="",$D191=End),H190,OR($D191=Dx,$D191=sx,$D191=up,$D191=down),(E191*J191)+H190) -> 0.00 | I191: =_xlfn.IFS($D191=Angle,(E191*K191)+I190,$D191=Loop,$I$190,OR($D191="",$D191=End),I190,OR($D191=Dx,$D191=sx,$D191=up,$D191=down),(E191*K191)+I190) -> 0.00 | J191: =+COS(RADIANS(F191)) -> 1.0000 | K191: =SIN(RADIANS(F191)) -> 0.0000 | L191: =AI191 -> 0.00 | M191: =IF(D192=Loop,ABS(180-ABS(L192-F191)),IF(AND(H191=H192,I191=I192),"",ABS(180-ABS(F192-F191)))) ->  | N191: =IF(M191="","",+IF(OR(AND(M191>=80,M191<=105),AND(M191>=265,M191<=280)),"90",FALSE)) ->  | O191: =IF(M191="","",+IF(OR(AND(M191>=165,M191<=195),AND(M191>=345,M191<=15)),"INT",FALSE)) ->  | P191: =IF(M191="","",IF(M191="","",+IF(AND(N191=FALSE,O191=FALSE),1,0))) ->  | Q191: =+IF(OR(E191=0,E191=""),0,IF(MOD(E191,$S$189),_xlfn.FLOOR.MATH(E191/$S$189),_xlfn.FLOOR.MATH(E191/$S$189)-1)) -> 0 | S191: =+IF(G191=0,0,IF(MOD(G191,SpanTow),_xlfn.FLOOR.MATH(G191/SpanTow),_xlfn.FLOOR.MATH(G191/SpanTow)-1)) -> 0 | T191: =+MAX(Q191:S191) -> 0 | U191: =IF(C191="",0,IF(AND(E191=0,G191=0),0,IF(E191<>0,E191/(T191+1),G191/(T191+1)))) -> 0.00 | W191: =IF(D192="",FALSE,IF(OR(AND(H191-H190=0,H192-H191=0),AND(I191-I190=0,I192-I191=0)),FALSE,TRUE)) -> FALSE | X191: =IF(OR(D191=Loop,D191="Fine",AND(D191="",D192="")),FALSE,_xlfn.FORECAST.LINEAR(ProjSpan,FxDb,SpanDB)) -> FALSE | Y191: =IF(X191=FALSE,FALSE,ABS(X191*(COS(RADIANS(F192))-COS(RADIANS(F191))))) -> FALSE | Z191: =IF(X191=FALSE,FALSE,ABS(X191*(SIN(RADIANS(F192))-SIN(RADIANS(F191))))) -> FALSE | AA191: =IF(OR(D192="",AND(D191="",D192="")),FALSE,IF(D192="",X191,IF(SQRT(Y191^2+Z191^2)>X191*SQRT(2),X191*SQRT(2),SQRT(Y191^2+Z191^2)))) -> FALSE | AB191: =IF(AA191=FALSE,FALSE,IF(SQRT(Y191^2+Z191^2)>X191*SQRT(2),X191,Y191)) -> FALSE | AC191: =IF(AA191=FALSE,FALSE,IF(SQRT(Y191^2+Z191^2)>X191*SQRT(2),X191,Z191)) -> FALSE | AF191: =H191-H190 -> 0.00 | AG191: =I191-I190 -> 0.00 | AH191: =IFERROR(IF(AND(AF191=0,AG191>0),90,IF(AND(AF191=0,AG191<0),270,IF(AND(AF191>0,AG191=0),0,IF(AND(AF191<0,AG191=0),180,DEGREES(ATAN((AG191)/(AF191))))))),0) -> 0 | AI191: =IF(OR(AF191=0,AG191=0),AH191,IF(AND(AF191>=0,AG191>=0),AH191,IF(AND(AF191>0,AG191<0),360+AH191,IF(AND(AF191<0,AG191<0),180+AH191,IF(AND(AF191<0,AG191>0),180-AH191,FALSE))))) -> 0
B192: =_xlfn.IFS(C191="","",C191="","",AND(D192<>End,D191<>Loop),C191,D192=End,_xlfn.CONCAT(C191,", "&$F$11),D191=Loop,_xlfn.CONCAT($F$11&" x2,1")) ->  | C192: =IF(OR(D36=End,D36=Loop),F36,C37) ->  | E192: =IF(D191=Loop,$E$191,+I36) -> 0.00 | F192: =IF(D191=Loop,$F$191,IF(OR(D192=End,D192=Loop,D192=""),0,IF(D192<>Angle,VLOOKUP(D192,Angoli,2,FALSE),G36))) -> 0 | G192: =IF(D191=Loop,$G$191,+IF(D192=Loop,SQRT((H192-H191)^2+(I192-I191)^2),0)) -> 0.00 | H192: =IF(D191=Loop,$H$191,_xlfn.IFS($D192=Angle,(E192*J192)+H191,$D192=Loop,$H$190,OR($D192="",$D192=End),H191,OR($D192=Dx,$D192=sx,$D192=up,$D192=down),(E192*J192)+H191)) -> 0.00 | I192: =IF(D191=Loop,$I$191,_xlfn.IFS($D192=Angle,(E192*K192)+I191,$D192=Loop,$I$190,OR($D192="",$D192=End),I191,OR($D192=Dx,$D192=sx,$D192=up,$D192=down),(E192*K192)+I191)) -> 0.00 | J192: 1.0000 | K192: 0.0000 | L192: =AI192 -> 0.00 | M192: =IF(D192=Loop,ABS(180-ABS(F193-L192)),IF(D193=Loop,(ABS(180-(L193-F192))),IF(AND(H192=H193,I192=I193),"",ABS(180-ABS(F193-F192))))) ->  | O192: =IF(M192="","",+IF(OR(AND(M192>=165,M192<=195),AND(M192>=345,M192<=15)),"INT",FALSE)) ->  | P192: =IF(M192="","",IF(M192="","",+IF(AND(N192=FALSE,O192=FALSE),1,0))) ->  | Q192: 0 | S192: =+IF(G192=0,0,IF(MOD(G192,SpanTow),_xlfn.FLOOR.MATH(G192/SpanTow),_xlfn.FLOOR.MATH(G192/SpanTow)-1)) -> 0 | T192: 0 | U192: =IF(C192="",0,IF(AND(E192=0,G192=0),0,IF(E192<>0,E192/(T192+1),G192/(T192+1)))) -> 0.00 | W192: =IF(D193="",FALSE,IF(OR(AND(H192-H191=0,H193-H192=0),AND(I192-I191=0,I193-I192=0)),FALSE,TRUE)) -> FALSE | X192: FALSE | Y192: =IF(X192=FALSE,FALSE,ABS(X192*(COS(RADIANS(F193))-COS(RADIANS(F192))))) -> FALSE | Z192: =IF(X192=FALSE,FALSE,ABS(X192*(SIN(RADIANS(F193))-SIN(RADIANS(F192))))) -> FALSE | AA192: =IF(AND(D192="",D193=""),FALSE,IF(D193="",X192,IF(SQRT(Y192^2+Z192^2)>X192*SQRT(2),X192*SQRT(2),SQRT(Y192^2+Z192^2)))) -> FALSE | AB192: =IF(AA192=FALSE,FALSE,IF(SQRT(Y192^2+Z192^2)>X192*SQRT(2),X192,Y192)) -> FALSE | AC192: =IF(AA192=FALSE,FALSE,IF(SQRT(Y192^2+Z192^2)>X192*SQRT(2),X192,Z192)) -> FALSE | AF192: =H192-H191 -> 0.00 | AG192: 0.00 | AH192: 0 | AI192: =IF(OR(AF192=0,AG192=0),AH192,IF(AND(AF192>=0,AG192>=0),AH192,IF(AND(AF192>0,AG192<0),360+AH192,IF(AND(AF192<0,AG192<0),180+AH192,IF(AND(AF192<0,AG192>0),180-AH192,FALSE))))) -> 0
B193: =_xlfn.IFS(C192="","",C192="","",AND(D193<>End,D192<>Loop),C192,D193=End,_xlfn.CONCAT(C192,", "&$F$11),D192=Loop,_xlfn.CONCAT($F$11&" x2,1")) ->  | E193: 0.00 | F193: 0 | G193: 0.00 | H193: =IF(D192=Loop,$H$191,_xlfn.IFS($D193=Angle,(E193*J193)+H192,$D193=Loop,$H$190,OR($D193="",$D193=End),H192,OR($D193=Dx,$D193=sx,$D193=up,$D193=down),(E193*J193)+H192)) -> 0.00 | I193: =IF(D192=Loop,$I$191,_xlfn.IFS($D193=Angle,(E193*K193)+I192,$D193=Loop,$I$190,OR($D193="",$D193=End),I192,OR($D193=Dx,$D193=sx,$D193=up,$D193=down),(E193*K193)+I192)) -> 0.00 | J193: 1.0000 | K193: 0.0000 | L193: 0.00 | M193: =IF(D193=Loop,ABS(180-ABS(F194-L193)),IF(D194=Loop,(ABS(180-(L194-F193))),IF(AND(H193=H194,I193=I194),"",ABS(180-ABS(F194-F193))))) ->  | Q193: 0 | S193: =+IF(G193=0,0,IF(MOD(G193,SpanTow),_xlfn.FLOOR.MATH(G193/SpanTow),_xlfn.FLOOR.MATH(G193/SpanTow)-1)) -> 0 | T193: 0 | U193: 0.00 | W193: FALSE | X193: FALSE | Y193: FALSE | Z193: FALSE | AA193: FALSE | AB193: FALSE | AC193: FALSE | AF193: =H193-H192 -> 0.00 | AG193: =I193-I192 -> 0.00 | AH193: 0 | AI193: 0
B194: =_xlfn.IFS(C193="","",C193="","",AND(D194<>End,D193<>Loop),C193,D194=End,_xlfn.CONCAT(C193,", "&$F$11),D193=Loop,_xlfn.CONCAT($F$11&" x2,1")) ->  | E194: 0.00 | F194: 0 | G194: 0.00 | H194: =IF(D193=Loop,$H$191,_xlfn.IFS($D194=Angle,(E194*J194)+H193,$D194=Loop,$H$190,OR($D194="",$D194=End),H193,OR($D194=Dx,$D194=sx,$D194=up,$D194=down),(E194*J194)+H193)) -> 0.00 | I194: =IF(D193=Loop,$I$191,_xlfn.IFS($D194=Angle,(E194*K194)+I193,$D194=Loop,$I$190,OR($D194="",$D194=End),I193,OR($D194=Dx,$D194=sx,$D194=up,$D194=down),(E194*K194)+I193)) -> 0.00 | J194: 1.0000 | K194: 0.0000 | L194: 0.00 | M194: =IF(D194=Loop,ABS(180-ABS(F195-L194)),IF(D195=Loop,(ABS(180-(L195-F194))),IF(AND(H194=H195,I194=I195),"",ABS(180-ABS(F195-F194))))) ->  | Q194: 0 | S194: =+IF(G194=0,0,IF(MOD(G194,SpanTow),_xlfn.FLOOR.MATH(G194/SpanTow),_xlfn.FLOOR.MATH(G194/SpanTow)-1)) -> 0 | T194: 0 | U194: 0.00 | W194: FALSE | X194: FALSE | Y194: FALSE | Z194: FALSE | AA194: FALSE | AB194: FALSE | AC194: FALSE | AF194: 0.00 | AG194: 0.00 | AH194: 0 | AI194: 0
B195: =_xlfn.IFS(C194="","",C194="","",AND(D195<>End,D194<>Loop),C194,D195=End,_xlfn.CONCAT(C194,", "&$F$11),D194=Loop,_xlfn.CONCAT($F$11&" x2,1")) ->  | E195: 0.00 | F195: 0 | G195: 0.00 | H195: =IF(D194=Loop,$H$191,_xlfn.IFS($D195=Angle,(E195*J195)+H194,$D195=Loop,$H$190,OR($D195="",$D195=End),H194,OR($D195=Dx,$D195=sx,$D195=up,$D195=down),(E195*J195)+H194)) -> 0.00 | I195: =IF(D194=Loop,$I$191,_xlfn.IFS($D195=Angle,(E195*K195)+I194,$D195=Loop,$I$190,OR($D195="",$D195=End),I194,OR($D195=Dx,$D195=sx,$D195=up,$D195=down),(E195*K195)+I194)) -> 0.00 | J195: 1.0000 | K195: 0.0000 | L195: 0.00 | Q195: 0 | S195: =+IF(G195=0,0,IF(MOD(G195,SpanTow),_xlfn.FLOOR.MATH(G195/SpanTow),_xlfn.FLOOR.MATH(G195/SpanTow)-1)) -> 0 | T195: 0 | U195: 0.00 | W195: FALSE | X195: FALSE | Y195: FALSE | Z195: FALSE | AA195: FALSE | AB195: FALSE | AC195: FALSE | AF195: 0.00 | AG195: 0.00 | AH195: 0 | AI195: 0
B196: =_xlfn.IFS(C195="","",C195="","",AND(D196<>End,D195<>Loop),C195,D196=End,_xlfn.CONCAT(C195,", "&$F$11),D195=Loop,_xlfn.CONCAT($F$11&" x2,1")) ->  | E196: 0.00 | F196: 0 | G196: 0.00 | H196: =IF(D195=Loop,$H$191,_xlfn.IFS($D196=Angle,(E196*J196)+H195,$D196=Loop,$H$190,OR($D196="",$D196=End),H195,OR($D196=Dx,$D196=sx,$D196=up,$D196=down),(E196*J196)+H195)) -> 0.00 | I196: =IF(D195=Loop,$I$191,_xlfn.IFS($D196=Angle,(E196*K196)+I195,$D196=Loop,$I$190,OR($D196="",$D196=End),I195,OR($D196=Dx,$D196=sx,$D196=up,$D196=down),(E196*K196)+I195)) -> 0.00 | J196: 1.0000 | K196: 0.0000 | L196: 0.00 | Q196: 0 | S196: =+IF(G196=0,0,IF(MOD(G196,SpanTow),_xlfn.FLOOR.MATH(G196/SpanTow),_xlfn.FLOOR.MATH(G196/SpanTow)-1)) -> 0 | T196: 0 | U196: 0.00 | W196: FALSE | X196: FALSE | Y196: FALSE | Z196: FALSE | AA196: FALSE | AB196: FALSE | AC196: FALSE | AF196: 0.00 | AG196: 0.00 | AH196: 0 | AI196: 0
B197: =_xlfn.IFS(C196="","",C196="","",AND(D197<>End,D196<>Loop),C196,D197=End,_xlfn.CONCAT(C196,", "&$F$11),D196=Loop,_xlfn.CONCAT($F$11&" x2,1")) ->  | E197: 0.00 | F197: 0 | G197: 0.00 | H197: =IF(D196=Loop,$H$191,_xlfn.IFS($D197=Angle,(E197*J197)+H196,$D197=Loop,$H$190,OR($D197="",$D197=End),H196,OR($D197=Dx,$D197=sx,$D197=up,$D197=down),(E197*J197)+H196)) -> 0.00 | I197: =IF(D196=Loop,$I$191,_xlfn.IFS($D197=Angle,(E197*K197)+I196,$D197=Loop,$I$190,OR($D197="",$D197=End),I196,OR($D197=Dx,$D197=sx,$D197=up,$D197=down),(E197*K197)+I196)) -> 0.00 | J197: 1.0000 | K197: 0.0000 | L197: 0.00 | Q197: 0 | S197: =+IF(G197=0,0,IF(MOD(G197,SpanTow),_xlfn.FLOOR.MATH(G197/SpanTow),_xlfn.FLOOR.MATH(G197/SpanTow)-1)) -> 0 | T197: 0 | U197: 0.00 | W197: FALSE | X197: FALSE | Y197: FALSE | Z197: FALSE | AA197: FALSE | AB197: FALSE | AC197: FALSE | AF197: 0.00 | AG197: 0.00 | AH197: 0 | AI197: 0
B198: =_xlfn.IFS(C197="","",C197="","",AND(D198<>End,D197<>Loop),C197,D198=End,_xlfn.CONCAT(C197,", "&$F$11),D197=Loop,_xlfn.CONCAT($F$11&" x2,1")) ->  | E198: 0.00 | F198: 0 | G198: 0.00 | H198: =IF(D197=Loop,$H$191,_xlfn.IFS($D198=Angle,(E198*J198)+H197,$D198=Loop,$H$190,OR($D198="",$D198=End),H197,OR($D198=Dx,$D198=sx,$D198=up,$D198=down),(E198*J198)+H197)) -> 0.00 | I198: =IF(D197=Loop,$I$191,_xlfn.IFS($D198=Angle,(E198*K198)+I197,$D198=Loop,$I$190,OR($D198="",$D198=End),I197,OR($D198=Dx,$D198=sx,$D198=up,$D198=down),(E198*K198)+I197)) -> 0.00 | J198: 1.0000 | K198: 0.0000 | L198: 0.00 | Q198: 0 | S198: =+IF(G198=0,0,IF(MOD(G198,SpanTow),_xlfn.FLOOR.MATH(G198/SpanTow),_xlfn.FLOOR.MATH(G198/SpanTow)-1)) -> 0 | T198: 0 | U198: 0.00 | W198: FALSE | X198: FALSE | Y198: FALSE | Z198: FALSE | AA198: FALSE | AB198: FALSE | AC198: FALSE | AF198: 0.00 | AG198: 0.00 | AH198: =IFERROR(IF(AND(AF198=0,AG198>0),90,IF(AND(AF198=0,AG198<0),270,IF(AND(AF198>0,AG198=0),0,IF(AND(AF198<0,AG198=0),180,DEGREES(ATAN((AG198)/(AF198))))))),0) -> 0 | AI198: 0
B199: =_xlfn.IFS(C198="","",C198="","",AND(D199<>End,D198<>Loop),C198,D199=End,_xlfn.CONCAT(C198,", "&$F$11),D198=Loop,_xlfn.CONCAT($F$11&" x2,1")) ->  | E199: 0.00 | F199: 0 | G199: 0.00 | H199: =IF(D198=Loop,$H$191,_xlfn.IFS($D199=Angle,(E199*J199)+H198,$D199=Loop,$H$190,OR($D199="",$D199=End),H198,OR($D199=Dx,$D199=sx,$D199=up,$D199=down),(E199*J199)+H198)) -> 0.00 | I199: =IF(D198=Loop,$I$191,_xlfn.IFS($D199=Angle,(E199*K199)+I198,$D199=Loop,$I$190,OR($D199="",$D199=End),I198,OR($D199=Dx,$D199=sx,$D199=up,$D199=down),(E199*K199)+I198)) -> 0.00 | J199: 1.0000 | K199: 0.0000 | L199: 0.00 | Q199: 0 | S199: =+IF(G199=0,0,IF(MOD(G199,SpanTow),_xlfn.FLOOR.MATH(G199/SpanTow),_xlfn.FLOOR.MATH(G199/SpanTow)-1)) -> 0 | T199: 0 | U199: 0.00 | W199: FALSE | X199: FALSE | Y199: FALSE | Z199: FALSE | AA199: FALSE | AB199: FALSE | AC199: FALSE | AF199: 0.00 | AG199: 0.00 | AH199: =IFERROR(IF(AND(AF199=0,AG199>0),90,IF(AND(AF199=0,AG199<0),270,IF(AND(AF199>0,AG199=0),0,IF(AND(AF199<0,AG199=0),180,DEGREES(ATAN((AG199)/(AF199))))))),0) -> 0 | AI199: 0
B200: =_xlfn.IFS(C199="","",C199="","",AND(D200<>End,D199<>Loop),C199,D200=End,_xlfn.CONCAT(C199,", "&$F$11),D199=Loop,_xlfn.CONCAT($F$11&" x2,1")) ->  | E200: 0.00 | F200: 0 | G200: 0.00 | H200: =IF(D199=Loop,$H$191,_xlfn.IFS($D200=Angle,(E200*J200)+H199,$D200=Loop,$H$190,OR($D200="",$D200=End),H199,OR($D200=Dx,$D200=sx,$D200=up,$D200=down),(E200*J200)+H199)) -> 0.00 | I200: =IF(D199=Loop,$I$191,_xlfn.IFS($D200=Angle,(E200*K200)+I199,$D200=Loop,$I$190,OR($D200="",$D200=End),I199,OR($D200=Dx,$D200=sx,$D200=up,$D200=down),(E200*K200)+I199)) -> 0.00 | J200: 1.0000 | K200: 0.0000 | L200: 0.00 | Q200: 0 | S200: =+IF(G200=0,0,IF(MOD(G200,SpanTow),_xlfn.FLOOR.MATH(G200/SpanTow),_xlfn.FLOOR.MATH(G200/SpanTow)-1)) -> 0 | T200: 0 | U200: 0.00 | W200: FALSE | X200: FALSE | Y200: FALSE | Z200: FALSE | AA200: FALSE | AB200: FALSE | AC200: FALSE | AF200: 0.00 | AG200: 0.00 | AH200: 0 | AI200: 0
B201: =_xlfn.IFS(C200="","",C200="","",AND(D201<>End,D200<>Loop),C200,D201=End,_xlfn.CONCAT(C200,", "&$F$11),D200=Loop,_xlfn.CONCAT($F$11&" x2,1")) ->  | E201: 0.00 | F201: 0 | G201: 0.00 | H201: =IF(D200=Loop,$H$191,_xlfn.IFS($D201=Angle,(E201*J201)+H200,$D201=Loop,$H$190,OR($D201="",$D201=End),H200,OR($D201=Dx,$D201=sx,$D201=up,$D201=down),(E201*J201)+H200)) -> 0.00 | I201: =IF(D200=Loop,$I$191,_xlfn.IFS($D201=Angle,(E201*K201)+I200,$D201=Loop,$I$190,OR($D201="",$D201=End),I200,OR($D201=Dx,$D201=sx,$D201=up,$D201=down),(E201*K201)+I200)) -> 0.00 | J201: 1.0000 | K201: 0.0000 | L201: 0.00 | Q201: 0 | S201: =+IF(G201=0,0,IF(MOD(G201,SpanTow),_xlfn.FLOOR.MATH(G201/SpanTow),_xlfn.FLOOR.MATH(G201/SpanTow)-1)) -> 0 | T201: =+MAX(Q201:S201) -> 0 | U201: 0.00 | W201: FALSE | X201: FALSE | Y201: FALSE | Z201: FALSE | AA201: FALSE | AB201: FALSE | AC201: FALSE | AF201: 0.00 | AG201: 0.00 | AH201: 0 | AI201: 0
B202: =_xlfn.IFS(C201="","",C201="","",AND(D202<>End,D201<>Loop),C201,D202=End,_xlfn.CONCAT(C201,", "&$F$11),D201=Loop,_xlfn.CONCAT($F$11&" x2,1")) ->  | E202: 0.00 | F202: 0 | G202: 0.00 | H202: =IF(D201=Loop,$H$191,_xlfn.IFS($D202=Angle,(E202*J202)+H201,$D202=Loop,$H$190,OR($D202="",$D202=End),H201,OR($D202=Dx,$D202=sx,$D202=up,$D202=down),(E202*J202)+H201)) -> 0.00 | I202: =IF(D201=Loop,$I$191,_xlfn.IFS($D202=Angle,(E202*K202)+I201,$D202=Loop,$I$190,OR($D202="",$D202=End),I201,OR($D202=Dx,$D202=sx,$D202=up,$D202=down),(E202*K202)+I201)) -> 0.00 | J202: 1.0000 | K202: 0.0000 | L202: 0.00 | Q202: 0 | S202: =+IF(G202=0,0,IF(MOD(G202,SpanTow),_xlfn.FLOOR.MATH(G202/SpanTow),_xlfn.FLOOR.MATH(G202/SpanTow)-1)) -> 0 | T202: 0 | U202: 0.00 | W202: FALSE | X202: FALSE | Y202: FALSE | Z202: FALSE | AA202: FALSE | AB202: FALSE | AC202: FALSE | AF202: 0.00 | AG202: 0.00 | AH202: 0 | AI202: 0
B203: =_xlfn.IFS(C202="","",C202="","",AND(D203<>End,D202<>Loop),C202,D203=End,_xlfn.CONCAT(C202,", "&$F$11),D202=Loop,_xlfn.CONCAT($F$11&" x2,1")) ->  | E203: 0.00 | F203: 0 | G203: 0.00 | H203: =IF(D202=Loop,$H$191,_xlfn.IFS($D203=Angle,(E203*J203)+H202,$D203=Loop,$H$190,OR($D203="",$D203=End),H202,OR($D203=Dx,$D203=sx,$D203=up,$D203=down),(E203*J203)+H202)) -> 0.00 | I203: =IF(D202=Loop,$I$191,_xlfn.IFS($D203=Angle,(E203*K203)+I202,$D203=Loop,$I$190,OR($D203="",$D203=End),I202,OR($D203=Dx,$D203=sx,$D203=up,$D203=down),(E203*K203)+I202)) -> 0.00 | J203: 1.0000 | K203: 0.0000 | L203: 0.00 | Q203: 0 | S203: =+IF(G203=0,0,IF(MOD(G203,SpanTow),_xlfn.FLOOR.MATH(G203/SpanTow),_xlfn.FLOOR.MATH(G203/SpanTow)-1)) -> 0 | T203: 0 | U203: 0.00 | W203: FALSE | X203: FALSE | Y203: FALSE | Z203: FALSE | AA203: FALSE | AB203: FALSE | AC203: FALSE | AF203: 0.00 | AG203: 0.00 | AH203: 0 | AI203: 0
B204: =_xlfn.IFS(C203="","",C203="","",AND(D204<>End,D203<>Loop),C203,D204=End,_xlfn.CONCAT(C203,", "&$F$11),D203=Loop,_xlfn.CONCAT($F$11&" x2,1")) ->  | E204: 0.00 | F204: 0 | G204: 0.00 | H204: =IF(D203=Loop,$H$191,_xlfn.IFS($D204=Angle,(E204*J204)+H203,$D204=Loop,$H$190,OR($D204="",$D204=End),H203,OR($D204=Dx,$D204=sx,$D204=up,$D204=down),(E204*J204)+H203)) -> 0.00 | I204: =IF(D203=Loop,$I$191,_xlfn.IFS($D204=Angle,(E204*K204)+I203,$D204=Loop,$I$190,OR($D204="",$D204=End),I203,OR($D204=Dx,$D204=sx,$D204=up,$D204=down),(E204*K204)+I203)) -> 0.00 | J204: 1.0000 | K204: 0.0000 | L204: 0.00 | Q204: 0 | S204: =+IF(G204=0,0,IF(MOD(G204,SpanTow),_xlfn.FLOOR.MATH(G204/SpanTow),_xlfn.FLOOR.MATH(G204/SpanTow)-1)) -> 0 | T204: 0 | U204: 0.00 | W204: FALSE | X204: FALSE | Y204: FALSE | Z204: FALSE | AA204: FALSE | AB204: FALSE | AC204: FALSE | AF204: 0.00 | AG204: 0.00 | AH204: 0 | AI204: 0
B205: =_xlfn.IFS(C204="","",C204="","",AND(D205<>End,D204<>Loop),C204,D205=End,_xlfn.CONCAT(C204,", "&$F$11),D204=Loop,_xlfn.CONCAT($F$11&" x2,1")) ->  | E205: 0.00 | F205: 0 | G205: 0.00 | H205: =IF(D204=Loop,$H$191,_xlfn.IFS($D205=Angle,(E205*J205)+H204,$D205=Loop,$H$190,OR($D205="",$D205=End),H204,OR($D205=Dx,$D205=sx,$D205=up,$D205=down),(E205*J205)+H204)) -> 0.00 | I205: =IF(D204=Loop,$I$191,_xlfn.IFS($D205=Angle,(E205*K205)+I204,$D205=Loop,$I$190,OR($D205="",$D205=End),I204,OR($D205=Dx,$D205=sx,$D205=up,$D205=down),(E205*K205)+I204)) -> 0.00 | J205: 1.0000 | K205: 0.0000 | L205: 0.00 | Q205: 0 | S205: =+IF(G205=0,0,IF(MOD(G205,SpanTow),_xlfn.FLOOR.MATH(G205/SpanTow),_xlfn.FLOOR.MATH(G205/SpanTow)-1)) -> 0 | T205: 0 | U205: 0.00 | W205: FALSE | X205: FALSE | Y205: FALSE | Z205: FALSE | AA205: FALSE | AB205: FALSE | AC205: FALSE | AF205: 0.00 | AG205: 0.00 | AH205: 0 | AI205: 0
B206: =_xlfn.IFS(C205="","",C205="","",AND(D206<>End,D205<>Loop),C205,D206=End,_xlfn.CONCAT(C205,", "&$F$11),D205=Loop,_xlfn.CONCAT($F$11&" x2,1")) ->  | E206: 0.00 | F206: 0 | G206: 0.00 | H206: =IF(D205=Loop,$H$191,_xlfn.IFS($D206=Angle,(E206*J206)+H205,$D206=Loop,$H$190,OR($D206="",$D206=End),H205,OR($D206=Dx,$D206=sx,$D206=up,$D206=down),(E206*J206)+H205)) -> 0.00 | I206: =IF(D205=Loop,$I$191,_xlfn.IFS($D206=Angle,(E206*K206)+I205,$D206=Loop,$I$190,OR($D206="",$D206=End),I205,OR($D206=Dx,$D206=sx,$D206=up,$D206=down),(E206*K206)+I205)) -> 0.00 | J206: 1.0000 | K206: 0.0000 | L206: 0.00 | Q206: 0 | S206: =+IF(G206=0,0,IF(MOD(G206,SpanTow),_xlfn.FLOOR.MATH(G206/SpanTow),_xlfn.FLOOR.MATH(G206/SpanTow)-1)) -> 0 | T206: 0 | U206: 0.00 | W206: FALSE | X206: FALSE | Y206: FALSE | Z206: FALSE | AA206: FALSE | AB206: FALSE | AC206: FALSE | AF206: 0.00 | AG206: 0.00 | AH206: 0 | AI206: 0
B207: =_xlfn.IFS(C206="","",C206="","",AND(D207<>End,D206<>Loop),C206,D207=End,_xlfn.CONCAT(C206,", "&$F$11),D206=Loop,_xlfn.CONCAT($F$11&" x2,1")) ->  | E207: 0.00 | F207: 0 | G207: 0.00 | H207: =IF(D206=Loop,$H$191,_xlfn.IFS($D207=Angle,(E207*J207)+H206,$D207=Loop,$H$190,OR($D207="",$D207=End),H206,OR($D207=Dx,$D207=sx,$D207=up,$D207=down),(E207*J207)+H206)) -> 0.00 | I207: =IF(D206=Loop,$I$191,_xlfn.IFS($D207=Angle,(E207*K207)+I206,$D207=Loop,$I$190,OR($D207="",$D207=End),I206,OR($D207=Dx,$D207=sx,$D207=up,$D207=down),(E207*K207)+I206)) -> 0.00 | J207: 1.0000 | K207: 0.0000 | L207: 0.00 | Q207: 0 | S207: =+IF(G207=0,0,IF(MOD(G207,SpanTow),_xlfn.FLOOR.MATH(G207/SpanTow),_xlfn.FLOOR.MATH(G207/SpanTow)-1)) -> 0 | T207: 0 | U207: 0.00 | W207: FALSE | X207: FALSE | Y207: FALSE | Z207: FALSE | AA207: FALSE | AB207: FALSE | AC207: FALSE | AF207: 0.00 | AG207: 0.00 | AH207: 0 | AI207: 0
B208: =_xlfn.IFS(C207="","",C207="","",AND(D208<>End,D207<>Loop),C207,D208=End,_xlfn.CONCAT(C207,", "&$F$11),D207=Loop,_xlfn.CONCAT($F$11&" x2,1")) ->  | E208: 0.00 | F208: 0 | G208: 0.00 | H208: =IF(D207=Loop,$H$191,_xlfn.IFS($D208=Angle,(E208*J208)+H207,$D208=Loop,$H$190,OR($D208="",$D208=End),H207,OR($D208=Dx,$D208=sx,$D208=up,$D208=down),(E208*J208)+H207)) -> 0.00 | I208: =IF(D207=Loop,$I$191,_xlfn.IFS($D208=Angle,(E208*K208)+I207,$D208=Loop,$I$190,OR($D208="",$D208=End),I207,OR($D208=Dx,$D208=sx,$D208=up,$D208=down),(E208*K208)+I207)) -> 0.00 | J208: 1.0000 | K208: 0.0000 | L208: 0.00 | Q208: 0 | S208: =+IF(G208=0,0,IF(MOD(G208,SpanTow),_xlfn.FLOOR.MATH(G208/SpanTow),_xlfn.FLOOR.MATH(G208/SpanTow)-1)) -> 0 | T208: 0 | U208: 0.00 | W208: FALSE | X208: FALSE | Y208: FALSE | Z208: FALSE | AA208: FALSE | AB208: FALSE | AC208: FALSE | AF208: 0.00 | AG208: 0.00 | AH208: 0 | AI208: 0
B209: =_xlfn.IFS(C208="","",C208="","",AND(D209<>End,D208<>Loop),C208,D209=End,_xlfn.CONCAT(C208,", "&$F$11),D208=Loop,_xlfn.CONCAT($F$11&" x2,1")) ->  | E209: 0.00 | F209: 0 | G209: 0.00 | H209: =IF(D208=Loop,$H$191,_xlfn.IFS($D209=Angle,(E209*J209)+H208,$D209=Loop,$H$190,OR($D209="",$D209=End),H208,OR($D209=Dx,$D209=sx,$D209=up,$D209=down),(E209*J209)+H208)) -> 0.00 | I209: =IF(D208=Loop,$I$191,_xlfn.IFS($D209=Angle,(E209*K209)+I208,$D209=Loop,$I$190,OR($D209="",$D209=End),I208,OR($D209=Dx,$D209=sx,$D209=up,$D209=down),(E209*K209)+I208)) -> 0.00 | J209: 1.0000 | K209: 0.0000 | L209: 0.00 | Q209: 0 | S209: =+IF(G209=0,0,IF(MOD(G209,SpanTow),_xlfn.FLOOR.MATH(G209/SpanTow),_xlfn.FLOOR.MATH(G209/SpanTow)-1)) -> 0 | T209: 0 | U209: 0.00 | W209: FALSE | X209: FALSE | Y209: FALSE | Z209: FALSE | AA209: FALSE | AB209: FALSE | AC209: FALSE | AF209: 0.00 | AG209: 0.00 | AH209: 0 | AI209: 0
B210: =_xlfn.IFS(C209="","",C209="","",AND(D210<>End,D209<>Loop),C209,D210=End,_xlfn.CONCAT(C209,", "&$F$11),D209=Loop,_xlfn.CONCAT($F$11&" x2,1")) ->  | E210: 0.00 | F210: 0 | G210: 0.00 | H210: =IF(D209=Loop,$H$191,_xlfn.IFS($D210=Angle,(E210*J210)+H209,$D210=Loop,$H$190,OR($D210="",$D210=End),H209,OR($D210=Dx,$D210=sx,$D210=up,$D210=down),(E210*J210)+H209)) -> 0.00 | I210: =IF(D209=Loop,$I$191,_xlfn.IFS($D210=Angle,(E210*K210)+I209,$D210=Loop,$I$190,OR($D210="",$D210=End),I209,OR($D210=Dx,$D210=sx,$D210=up,$D210=down),(E210*K210)+I209)) -> 0.00 | J210: 1.0000 | K210: 0.0000 | L210: 0.00 | Q210: 0 | S210: =+IF(G210=0,0,IF(MOD(G210,SpanTow),_xlfn.FLOOR.MATH(G210/SpanTow),_xlfn.FLOOR.MATH(G210/SpanTow)-1)) -> 0 | T210: 0 | U210: 0.00 | W210: FALSE | X210: FALSE | Y210: FALSE | Z210: FALSE | AA210: FALSE | AB210: FALSE | AC210: FALSE | AF210: 0.00 | AG210: 0.00 | AH210: 0 | AI210: 0
B211: =_xlfn.IFS(C210="","",C210="","",AND(D211<>End,D210<>Loop),C210,D211=End,_xlfn.CONCAT(C210,", "&$F$11),D210=Loop,_xlfn.CONCAT($F$11&" x2,1")) ->  | E211: 0.00 | F211: 0 | G211: 0.00 | H211: =IF(D210=Loop,$H$191,_xlfn.IFS($D211=Angle,(E211*J211)+H210,$D211=Loop,$H$190,OR($D211="",$D211=End),H210,OR($D211=Dx,$D211=sx,$D211=up,$D211=down),(E211*J211)+H210)) -> 0.00 | I211: =IF(D210=Loop,$I$191,_xlfn.IFS($D211=Angle,(E211*K211)+I210,$D211=Loop,$I$190,OR($D211="",$D211=End),I210,OR($D211=Dx,$D211=sx,$D211=up,$D211=down),(E211*K211)+I210)) -> 0.00 | J211: 1.0000 | K211: 0.0000 | L211: 0.00 | Q211: 0 | S211: =+IF(G211=0,0,IF(MOD(G211,SpanTow),_xlfn.FLOOR.MATH(G211/SpanTow),_xlfn.FLOOR.MATH(G211/SpanTow)-1)) -> 0 | T211: 0 | U211: 0.00 | W211: FALSE | X211: FALSE | Y211: FALSE | Z211: FALSE | AA211: FALSE | AB211: FALSE | AC211: FALSE | AF211: 0.00 | AG211: 0.00 | AH211: 0 | AI211: 0
B212: =_xlfn.IFS(C211="","",C211="","",AND(D212<>End,D211<>Loop),C211,D212=End,_xlfn.CONCAT(C211,", "&$F$11),D211=Loop,_xlfn.CONCAT($F$11&" x2,1")) ->  | E212: 0.00 | F212: 0 | G212: 0.00 | H212: =IF(D211=Loop,$H$191,_xlfn.IFS($D212=Angle,(E212*J212)+H211,$D212=Loop,$H$190,OR($D212="",$D212=End),H211,OR($D212=Dx,$D212=sx,$D212=up,$D212=down),(E212*J212)+H211)) -> 0.00 | I212: =IF(D211=Loop,$I$191,_xlfn.IFS($D212=Angle,(E212*K212)+I211,$D212=Loop,$I$190,OR($D212="",$D212=End),I211,OR($D212=Dx,$D212=sx,$D212=up,$D212=down),(E212*K212)+I211)) -> 0.00 | J212: 1.0000 | K212: 0.0000 | L212: 0.00 | Q212: 0 | S212: =+IF(G212=0,0,IF(MOD(G212,SpanTow),_xlfn.FLOOR.MATH(G212/SpanTow),_xlfn.FLOOR.MATH(G212/SpanTow)-1)) -> 0 | T212: 0 | U212: 0.00 | W212: FALSE | X212: FALSE | Y212: FALSE | Z212: FALSE | AA212: FALSE | AB212: FALSE | AC212: FALSE | AF212: 0.00 | AG212: 0.00 | AH212: 0 | AI212: 0
B213: =_xlfn.IFS(C212="","",C212="","",AND(D213<>End,D212<>Loop),C212,D213=End,_xlfn.CONCAT(C212,", "&$F$11),D212=Loop,_xlfn.CONCAT($F$11&" x2,1")) ->  | E213: 0.00 | F213: 0 | G213: 0.00 | H213: =IF(D212=Loop,$H$191,_xlfn.IFS($D213=Angle,(E213*J213)+H212,$D213=Loop,$H$190,OR($D213="",$D213=End),H212,OR($D213=Dx,$D213=sx,$D213=up,$D213=down),(E213*J213)+H212)) -> 0.00 | I213: =IF(D212=Loop,$I$191,_xlfn.IFS($D213=Angle,(E213*K213)+I212,$D213=Loop,$I$190,OR($D213="",$D213=End),I212,OR($D213=Dx,$D213=sx,$D213=up,$D213=down),(E213*K213)+I212)) -> 0.00 | J213: 1.0000 | K213: 0.0000 | L213: 0.00 | Q213: 0 | S213: =+IF(G213=0,0,IF(MOD(G213,SpanTow),_xlfn.FLOOR.MATH(G213/SpanTow),_xlfn.FLOOR.MATH(G213/SpanTow)-1)) -> 0 | T213: 0 | U213: 0.00 | W213: FALSE | X213: FALSE | Y213: FALSE | Z213: FALSE | AA213: FALSE | AB213: FALSE | AC213: FALSE | AF213: 0.00 | AG213: 0.00 | AH213: 0 | AI213: 0
B214: =_xlfn.IFS(C213="","",C213="","",AND(D214<>End,D213<>Loop),C213,D214=End,_xlfn.CONCAT(C213,", "&$F$11),D213=Loop,_xlfn.CONCAT($F$11&" x2,1")) ->  | E214: 0.00 | F214: 0 | G214: 0.00 | H214: =IF(D213=Loop,$H$191,_xlfn.IFS($D214=Angle,(E214*J214)+H213,$D214=Loop,$H$190,OR($D214="",$D214=End),H213,OR($D214=Dx,$D214=sx,$D214=up,$D214=down),(E214*J214)+H213)) -> 0.00 | I214: =IF(D213=Loop,$I$191,_xlfn.IFS($D214=Angle,(E214*K214)+I213,$D214=Loop,$I$190,OR($D214="",$D214=End),I213,OR($D214=Dx,$D214=sx,$D214=up,$D214=down),(E214*K214)+I213)) -> 0.00 | J214: 1.0000 | K214: 0.0000 | L214: 0.00 | Q214: 0 | S214: =+IF(G214=0,0,IF(MOD(G214,SpanTow),_xlfn.FLOOR.MATH(G214/SpanTow),_xlfn.FLOOR.MATH(G214/SpanTow)-1)) -> 0 | T214: 0 | U214: 0.00 | W214: FALSE | X214: FALSE | Y214: FALSE | Z214: FALSE | AA214: FALSE | AB214: FALSE | AC214: FALSE | AF214: 0.00 | AG214: 0.00 | AH214: 0 | AI214: 0
B215: =_xlfn.IFS(C214="","",C214="","",AND(D215<>End,D214<>Loop),C214,D215=End,_xlfn.CONCAT(C214,", "&$F$11),D214=Loop,_xlfn.CONCAT($F$11&" x2,1")) ->  | E215: 0.00 | F215: 0 | G215: 0.00 | H215: =IF(D214=Loop,$H$191,_xlfn.IFS($D215=Angle,(E215*J215)+H214,$D215=Loop,$H$190,OR($D215="",$D215=End),H214,OR($D215=Dx,$D215=sx,$D215=up,$D215=down),(E215*J215)+H214)) -> 0.00 | I215: =IF(D214=Loop,$I$191,_xlfn.IFS($D215=Angle,(E215*K215)+I214,$D215=Loop,$I$190,OR($D215="",$D215=End),I214,OR($D215=Dx,$D215=sx,$D215=up,$D215=down),(E215*K215)+I214)) -> 0.00 | J215: 1.0000 | K215: 0.0000 | L215: 0.00 | Q215: 0 | S215: =+IF(G215=0,0,IF(MOD(G215,SpanTow),_xlfn.FLOOR.MATH(G215/SpanTow),_xlfn.FLOOR.MATH(G215/SpanTow)-1)) -> 0 | T215: 0 | U215: 0.00 | W215: FALSE | X215: FALSE | Y215: FALSE | Z215: FALSE | AA215: FALSE | AB215: FALSE | AC215: FALSE | AF215: 0.00 | AG215: 0.00 | AH215: 0 | AI215: 0
B216: =_xlfn.IFS(C215="","",C215="","",AND(D216<>End,D215<>Loop),C215,D216=End,_xlfn.CONCAT(C215,", "&$F$11),D215=Loop,_xlfn.CONCAT($F$11&" x2,1")) ->  | E216: 0.00 | F216: 0 | G216: 0.00 | H216: =IF(D215=Loop,$H$191,_xlfn.IFS($D216=Angle,(E216*J216)+H215,$D216=Loop,$H$190,OR($D216="",$D216=End),H215,OR($D216=Dx,$D216=sx,$D216=up,$D216=down),(E216*J216)+H215)) -> 0.00 | I216: =IF(D215=Loop,$I$191,_xlfn.IFS($D216=Angle,(E216*K216)+I215,$D216=Loop,$I$190,OR($D216="",$D216=End),I215,OR($D216=Dx,$D216=sx,$D216=up,$D216=down),(E216*K216)+I215)) -> 0.00 | J216: 1.0000 | K216: 0.0000 | L216: 0.00 | Q216: 0 | S216: =+IF(G216=0,0,IF(MOD(G216,SpanTow),_xlfn.FLOOR.MATH(G216/SpanTow),_xlfn.FLOOR.MATH(G216/SpanTow)-1)) -> 0 | T216: 0 | U216: 0.00 | W216: FALSE | X216: FALSE | Y216: FALSE | Z216: FALSE | AA216: FALSE | AB216: FALSE | AC216: FALSE | AF216: 0.00 | AG216: 0.00 | AH216: 0 | AI216: 0
B217: =_xlfn.IFS(C216="","",C216="","",AND(D217<>End,D216<>Loop),C216,D217=End,_xlfn.CONCAT(C216,", "&$F$11),D216=Loop,_xlfn.CONCAT($F$11&" x2,1")) ->  | E217: 0.00 | F217: 0 | G217: 0.00 | H217: =IF(D216=Loop,$H$191,_xlfn.IFS($D217=Angle,(E217*J217)+H216,$D217=Loop,$H$190,OR($D217="",$D217=End),H216,OR($D217=Dx,$D217=sx,$D217=up,$D217=down),(E217*J217)+H216)) -> 0.00 | I217: =IF(D216=Loop,$I$191,_xlfn.IFS($D217=Angle,(E217*K217)+I216,$D217=Loop,$I$190,OR($D217="",$D217=End),I216,OR($D217=Dx,$D217=sx,$D217=up,$D217=down),(E217*K217)+I216)) -> 0.00 | J217: 1.0000 | K217: 0.0000 | L217: 0.00 | Q217: 0 | S217: =+IF(G217=0,0,IF(MOD(G217,SpanTow),_xlfn.FLOOR.MATH(G217/SpanTow),_xlfn.FLOOR.MATH(G217/SpanTow)-1)) -> 0 | T217: 0 | U217: 0.00 | W217: FALSE | X217: FALSE | Y217: FALSE | Z217: FALSE | AA217: FALSE | AB217: FALSE | AC217: FALSE | AF217: 0.00 | AG217: 0.00 | AH217: 0 | AI217: 0
B218: =_xlfn.IFS(C217="","",C217="","",AND(D218<>End,D217<>Loop),C217,D218=End,_xlfn.CONCAT(C217,", "&$F$11),D217=Loop,_xlfn.CONCAT($F$11&" x2,1")) ->  | E218: 0.00 | F218: 0 | G218: 0.00 | H218: =IF(D217=Loop,$H$191,_xlfn.IFS($D218=Angle,(E218*J218)+H217,$D218=Loop,$H$190,OR($D218="",$D218=End),H217,OR($D218=Dx,$D218=sx,$D218=up,$D218=down),(E218*J218)+H217)) -> 0.00 | I218: =IF(D217=Loop,$I$191,_xlfn.IFS($D218=Angle,(E218*K218)+I217,$D218=Loop,$I$190,OR($D218="",$D218=End),I217,OR($D218=Dx,$D218=sx,$D218=up,$D218=down),(E218*K218)+I217)) -> 0.00 | J218: 1.0000 | K218: 0.0000 | L218: 0.00 | Q218: 0 | S218: =+IF(G218=0,0,IF(MOD(G218,SpanTow),_xlfn.FLOOR.MATH(G218/SpanTow),_xlfn.FLOOR.MATH(G218/SpanTow)-1)) -> 0 | T218: 0 | U218: 0.00 | W218: FALSE | X218: FALSE | Y218: FALSE | Z218: FALSE | AA218: FALSE | AB218: FALSE | AC218: FALSE | AF218: 0.00 | AG218: 0.00 | AH218: 0 | AI218: 0
B219: =_xlfn.IFS(C218="","",C218="","",AND(D219<>End,D218<>Loop),C218,D219=End,_xlfn.CONCAT(C218,", "&$F$11),D218=Loop,_xlfn.CONCAT($F$11&" x2,1")) ->  | E219: 0.00 | F219: 0 | G219: 0.00 | H219: =IF(D218=Loop,$H$191,_xlfn.IFS($D219=Angle,(E219*J219)+H218,$D219=Loop,$H$190,OR($D219="",$D219=End),H218,OR($D219=Dx,$D219=sx,$D219=up,$D219=down),(E219*J219)+H218)) -> 0.00 | I219: =IF(D218=Loop,$I$191,_xlfn.IFS($D219=Angle,(E219*K219)+I218,$D219=Loop,$I$190,OR($D219="",$D219=End),I218,OR($D219=Dx,$D219=sx,$D219=up,$D219=down),(E219*K219)+I218)) -> 0.00 | J219: 1.0000 | K219: 0.0000 | L219: 0.00 | Q219: 0 | S219: =+IF(G219=0,0,IF(MOD(G219,SpanTow),_xlfn.FLOOR.MATH(G219/SpanTow),_xlfn.FLOOR.MATH(G219/SpanTow)-1)) -> 0 | T219: 0 | U219: 0.00 | W219: FALSE | X219: FALSE | Y219: FALSE | Z219: FALSE | AA219: FALSE | AB219: FALSE | AC219: FALSE | AF219: 0.00 | AG219: 0.00 | AH219: 0 | AI219: 0
B220: =_xlfn.IFS(C219="","",C219="","",AND(D220<>End,D219<>Loop),C219,D220=End,_xlfn.CONCAT(C219,", "&$F$11),D219=Loop,_xlfn.CONCAT($F$11&" x2,1")) ->  | E220: 0.00 | F220: 0 | G220: 0.00 | H220: =IF(D219=Loop,$H$191,_xlfn.IFS($D220=Angle,(E220*J220)+H219,$D220=Loop,$H$190,OR($D220="",$D220=End),H219,OR($D220=Dx,$D220=sx,$D220=up,$D220=down),(E220*J220)+H219)) -> 0.00 | I220: =IF(D219=Loop,$I$191,_xlfn.IFS($D220=Angle,(E220*K220)+I219,$D220=Loop,$I$190,OR($D220="",$D220=End),I219,OR($D220=Dx,$D220=sx,$D220=up,$D220=down),(E220*K220)+I219)) -> 0.00 | J220: 1.0000 | K220: 0.0000 | L220: 0.00 | Q220: 0 | S220: =+IF(G220=0,0,IF(MOD(G220,SpanTow),_xlfn.FLOOR.MATH(G220/SpanTow),_xlfn.FLOOR.MATH(G220/SpanTow)-1)) -> 0 | T220: 0 | U220: 0.00 | W220: FALSE | X220: FALSE | Y220: FALSE | Z220: FALSE | AA220: FALSE | AB220: FALSE | AC220: FALSE | AF220: 0.00 | AG220: 0.00 | AH220: 0 | AI220: 0
B221: =_xlfn.IFS(C220="","",C220="","",AND(D221<>End,D220<>Loop),C220,D221=End,_xlfn.CONCAT(C220,", "&$F$11),D220=Loop,_xlfn.CONCAT($F$11&" x2,1")) ->  | E221: 0.00 | F221: 0 | G221: 0.00 | H221: =IF(D220=Loop,$H$191,_xlfn.IFS($D221=Angle,(E221*J221)+H220,$D221=Loop,$H$190,OR($D221="",$D221=End),H220,OR($D221=Dx,$D221=sx,$D221=up,$D221=down),(E221*J221)+H220)) -> 0.00 | I221: =IF(D220=Loop,$I$191,_xlfn.IFS($D221=Angle,(E221*K221)+I220,$D221=Loop,$I$190,OR($D221="",$D221=End),I220,OR($D221=Dx,$D221=sx,$D221=up,$D221=down),(E221*K221)+I220)) -> 0.00 | J221: 1.0000 | K221: 0.0000 | L221: 0.00 | Q221: 0 | S221: =+IF(G221=0,0,IF(MOD(G221,SpanTow),_xlfn.FLOOR.MATH(G221/SpanTow),_xlfn.FLOOR.MATH(G221/SpanTow)-1)) -> 0 | T221: 0 | U221: 0.00 | W221: FALSE | X221: FALSE | Y221: FALSE | Z221: FALSE | AA221: FALSE | AB221: FALSE | AC221: FALSE | AF221: 0.00 | AG221: 0.00 | AH221: 0 | AI221: 0
B222: =_xlfn.IFS(C221="","",C221="","",AND(D222<>End,D221<>Loop),C221,D222=End,_xlfn.CONCAT(C221,", "&$F$11),D221=Loop,_xlfn.CONCAT($F$11&" x2,1")) ->  | E222: 0.00 | F222: 0 | G222: 0.00 | H222: =IF(D221=Loop,$H$191,_xlfn.IFS($D222=Angle,(E222*J222)+H221,$D222=Loop,$H$190,OR($D222="",$D222=End),H221,OR($D222=Dx,$D222=sx,$D222=up,$D222=down),(E222*J222)+H221)) -> 0.00 | I222: =IF(D221=Loop,$I$191,_xlfn.IFS($D222=Angle,(E222*K222)+I221,$D222=Loop,$I$190,OR($D222="",$D222=End),I221,OR($D222=Dx,$D222=sx,$D222=up,$D222=down),(E222*K222)+I221)) -> 0.00 | J222: 1.0000 | K222: 0.0000 | L222: 0.00 | Q222: 0 | S222: =+IF(G222=0,0,IF(MOD(G222,SpanTow),_xlfn.FLOOR.MATH(G222/SpanTow),_xlfn.FLOOR.MATH(G222/SpanTow)-1)) -> 0 | T222: 0 | U222: 0.00 | W222: FALSE | X222: FALSE | Y222: FALSE | Z222: FALSE | AA222: FALSE | AB222: FALSE | AC222: FALSE | AF222: 0.00 | AG222: 0.00 | AH222: 0 | AI222: 0
B223: =_xlfn.IFS(C222="","",C222="","",AND(D223<>End,D222<>Loop),C222,D223=End,_xlfn.CONCAT(C222,", "&$F$11),D222=Loop,_xlfn.CONCAT($F$11&" x2,1")) ->  | D223: =IF(D67="","",D67) ->  | E223: 0.00 | F223: 0 | G223: 0.00 | H223: =IF(D222=Loop,$H$191,_xlfn.IFS($D223=Angle,(E223*J223)+H222,$D223=Loop,$H$190,OR($D223="",$D223=End),H222,OR($D223=Dx,$D223=sx,$D223=up,$D223=down),(E223*J223)+H222)) -> 0.00 | I223: =IF(D222=Loop,$I$191,_xlfn.IFS($D223=Angle,(E223*K223)+I222,$D223=Loop,$I$190,OR($D223="",$D223=End),I222,OR($D223=Dx,$D223=sx,$D223=up,$D223=down),(E223*K223)+I222)) -> 0.00 | J223: =+COS(RADIANS(F223)) -> 1.0000 | K223: =SIN(RADIANS(F223)) -> 0.0000 | L223: 0.00 | Q223: =+IF(OR(E223=0,E223=""),0,IF(MOD(E223,$S$189),_xlfn.FLOOR.MATH(E223/$S$189),_xlfn.FLOOR.MATH(E223/$S$189)-1)) -> 0 | S223: =+IF(G223=0,0,IF(MOD(G223,SpanTow),_xlfn.FLOOR.MATH(G223/SpanTow),_xlfn.FLOOR.MATH(G223/SpanTow)-1)) -> 0 | T223: 0 | U223: 0.00 | W223: FALSE | X223: =IF(OR(D223=Loop,D223="Fine",AND(D223="",D224="")),FALSE,_xlfn.FORECAST.LINEAR(ProjSpan,FxDb,SpanDB)) -> FALSE | Y223: FALSE | Z223: FALSE | AA223: FALSE | AB223: FALSE | AC223: FALSE | AF223: 0.00 | AG223: 0.00 | AH223: 0 | AI223: 0
B224: =_xlfn.IFS(C223="","",C223="","",AND(D224<>End,D223<>Loop),C223,D224=End,_xlfn.CONCAT(C223,", "&$F$11),D223=Loop,_xlfn.CONCAT($F$11&" x2,1")) ->  | C224: =IF(OR(D68=End,D68=Loop),F68,C69) ->  | E224: =IF(D223=Loop,$E$191,+I68) -> 0.00 | F224: =IF(D223=Loop,$F$191,IF(OR(D224=End,D224=Loop,D224=""),0,IF(D224<>Angle,VLOOKUP(D224,Angoli,2,FALSE),G68))) -> 0 | G224: =IF(D223=Loop,$G$191,+IF(D224=Loop,SQRT((H224-H223)^2+(I224-I223)^2),0)) -> 0.00 | H224: =IF(D223=Loop,$H$191,_xlfn.IFS($D224=Angle,(E224*J224)+H223,$D224=Loop,$H$190,OR($D224="",$D224=End),H223,OR($D224=Dx,$D224=sx,$D224=up,$D224=down),(E224*J224)+H223)) -> 0.00 | I224: =IF(D223=Loop,$I$191,_xlfn.IFS($D224=Angle,(E224*K224)+I223,$D224=Loop,$I$190,OR($D224="",$D224=End),I223,OR($D224=Dx,$D224=sx,$D224=up,$D224=down),(E224*K224)+I223)) -> 0.00 | J224: 1.0000 | K224: 0.0000 | L224: 0.00 | M224: =IF(D224=Loop,ABS(180-ABS(F225-L224)),IF(D225=Loop,(ABS(180-(L225-F224))),IF(AND(H224=H225,I224=I225),"",ABS(180-ABS(F225-F224))))) ->  | Q224: 0 | S224: =+IF(G224=0,0,IF(MOD(G224,SpanTow),_xlfn.FLOOR.MATH(G224/SpanTow),_xlfn.FLOOR.MATH(G224/SpanTow)-1)) -> 0 | T224: 0 | U224: 0.00 | W224: FALSE | X224: FALSE | Y224: FALSE | Z224: FALSE | AA224: FALSE | AB224: FALSE | AC224: FALSE | AF224: 0.00 | AG224: 0.00 | AH224: 0 | AI224: 0
B225: =_xlfn.IFS(C224="","",C224="","",AND(D225<>End,D224<>Loop),C224,D225=End,_xlfn.CONCAT(C224,", "&$F$11),D224=Loop,_xlfn.CONCAT($F$11&" x2,1")) ->  | E225: 0.00 | F225: 0 | G225: 0.00 | H225: =IF(D224=Loop,$H$191,_xlfn.IFS($D225=Angle,(E225*J225)+H224,$D225=Loop,$H$190,OR($D225="",$D225=End),H224,OR($D225=Dx,$D225=sx,$D225=up,$D225=down),(E225*J225)+H224)) -> 0.00 | I225: =IF(D224=Loop,$I$191,_xlfn.IFS($D225=Angle,(E225*K225)+I224,$D225=Loop,$I$190,OR($D225="",$D225=End),I224,OR($D225=Dx,$D225=sx,$D225=up,$D225=down),(E225*K225)+I224)) -> 0.00 | J225: 1.0000 | K225: 0.0000 | L225: 0.00 | Q225: 0 | S225: =+IF(G225=0,0,IF(MOD(G225,SpanTow),_xlfn.FLOOR.MATH(G225/SpanTow),_xlfn.FLOOR.MATH(G225/SpanTow)-1)) -> 0 | T225: 0 | U225: 0.00 | W225: FALSE | X225: FALSE | Y225: FALSE | Z225: FALSE | AA225: FALSE | AB225: FALSE | AC225: FALSE | AF225: 0.00 | AG225: 0.00 | AH225: 0 | AI225: 0
B226: =_xlfn.IFS(C225="","",C225="","",AND(D226<>End,D225<>Loop),C225,D226=End,_xlfn.CONCAT(C225,", "&$F$11),D225=Loop,_xlfn.CONCAT($F$11&" x2,1")) ->  | E226: 0.00 | F226: 0 | G226: 0.00 | H226: =IF(D225=Loop,$H$191,_xlfn.IFS($D226=Angle,(E226*J226)+H225,$D226=Loop,$H$190,OR($D226="",$D226=End),H225,OR($D226=Dx,$D226=sx,$D226=up,$D226=down),(E226*J226)+H225)) -> 0.00 | I226: =IF(D225=Loop,$I$191,_xlfn.IFS($D226=Angle,(E226*K226)+I225,$D226=Loop,$I$190,OR($D226="",$D226=End),I225,OR($D226=Dx,$D226=sx,$D226=up,$D226=down),(E226*K226)+I225)) -> 0.00 | J226: 1.0000 | K226: 0.0000 | L226: 0.00 | Q226: 0 | S226: =+IF(G226=0,0,IF(MOD(G226,SpanTow),_xlfn.FLOOR.MATH(G226/SpanTow),_xlfn.FLOOR.MATH(G226/SpanTow)-1)) -> 0 | T226: 0 | U226: 0.00 | W226: FALSE | X226: FALSE | Y226: FALSE | Z226: FALSE | AA226: FALSE | AB226: FALSE | AC226: FALSE | AF226: 0.00 | AG226: 0.00 | AH226: 0 | AI226: 0
B227: =_xlfn.IFS(C226="","",C226="","",AND(D227<>End,D226<>Loop),C226,D227=End,_xlfn.CONCAT(C226,", "&$F$11),D226=Loop,_xlfn.CONCAT($F$11&" x2,1")) ->  | E227: 0.00 | F227: 0 | G227: 0.00 | H227: =IF(D226=Loop,$H$191,_xlfn.IFS($D227=Angle,(E227*J227)+H226,$D227=Loop,$H$190,OR($D227="",$D227=End),H226,OR($D227=Dx,$D227=sx,$D227=up,$D227=down),(E227*J227)+H226)) -> 0.00 | I227: =IF(D226=Loop,$I$191,_xlfn.IFS($D227=Angle,(E227*K227)+I226,$D227=Loop,$I$190,OR($D227="",$D227=End),I226,OR($D227=Dx,$D227=sx,$D227=up,$D227=down),(E227*K227)+I226)) -> 0.00 | J227: 1.0000 | K227: 0.0000 | L227: 0.00 | Q227: 0 | S227: =+IF(G227=0,0,IF(MOD(G227,SpanTow),_xlfn.FLOOR.MATH(G227/SpanTow),_xlfn.FLOOR.MATH(G227/SpanTow)-1)) -> 0 | T227: 0 | U227: 0.00 | W227: FALSE | X227: FALSE | Y227: FALSE | Z227: FALSE | AA227: FALSE | AB227: FALSE | AC227: FALSE | AF227: 0.00 | AG227: 0.00 | AH227: 0 | AI227: 0
B228: =_xlfn.IFS(C227="","",C227="","",AND(D228<>End,D227<>Loop),C227,D228=End,_xlfn.CONCAT(C227,", "&$F$11),D227=Loop,_xlfn.CONCAT($F$11&" x2,1")) ->  | E228: 0.00 | F228: 0 | G228: 0.00 | H228: =IF(D227=Loop,$H$191,_xlfn.IFS($D228=Angle,(E228*J228)+H227,$D228=Loop,$H$190,OR($D228="",$D228=End),H227,OR($D228=Dx,$D228=sx,$D228=up,$D228=down),(E228*J228)+H227)) -> 0.00 | I228: =IF(D227=Loop,$I$191,_xlfn.IFS($D228=Angle,(E228*K228)+I227,$D228=Loop,$I$190,OR($D228="",$D228=End),I227,OR($D228=Dx,$D228=sx,$D228=up,$D228=down),(E228*K228)+I227)) -> 0.00 | J228: 1.0000 | K228: 0.0000 | L228: 0.00 | Q228: 0 | S228: =+IF(G228=0,0,IF(MOD(G228,SpanTow),_xlfn.FLOOR.MATH(G228/SpanTow),_xlfn.FLOOR.MATH(G228/SpanTow)-1)) -> 0 | T228: 0 | U228: 0.00 | W228: FALSE | X228: FALSE | Y228: FALSE | Z228: FALSE | AA228: FALSE | AB228: FALSE | AC228: FALSE | AF228: 0.00 | AG228: 0.00 | AH228: 0 | AI228: 0
B229: =_xlfn.IFS(C228="","",C228="","",AND(D229<>End,D228<>Loop),C228,D229=End,_xlfn.CONCAT(C228,", "&$F$11),D228=Loop,_xlfn.CONCAT($F$11&" x2,1")) ->  | E229: 0.00 | F229: 0 | G229: 0.00 | H229: =IF(D228=Loop,$H$191,_xlfn.IFS($D229=Angle,(E229*J229)+H228,$D229=Loop,$H$190,OR($D229="",$D229=End),H228,OR($D229=Dx,$D229=sx,$D229=up,$D229=down),(E229*J229)+H228)) -> 0.00 | I229: =IF(D228=Loop,$I$191,_xlfn.IFS($D229=Angle,(E229*K229)+I228,$D229=Loop,$I$190,OR($D229="",$D229=End),I228,OR($D229=Dx,$D229=sx,$D229=up,$D229=down),(E229*K229)+I228)) -> 0.00 | J229: 1.0000 | K229: 0.0000 | L229: 0.00 | Q229: 0 | S229: =+IF(G229=0,0,IF(MOD(G229,SpanTow),_xlfn.FLOOR.MATH(G229/SpanTow),_xlfn.FLOOR.MATH(G229/SpanTow)-1)) -> 0 | T229: 0 | U229: 0.00 | W229: FALSE | X229: FALSE | Y229: FALSE | Z229: FALSE | AA229: FALSE | AB229: FALSE | AC229: FALSE | AF229: 0.00 | AG229: 0.00 | AH229: 0 | AI229: 0
B230: =_xlfn.IFS(C229="","",C229="","",AND(D230<>End,D229<>Loop),C229,D230=End,_xlfn.CONCAT(C229,", "&$F$11),D229=Loop,_xlfn.CONCAT($F$11&" x2,1")) ->  | E230: 0.00 | F230: 0 | G230: 0.00 | H230: =IF(D229=Loop,$H$191,_xlfn.IFS($D230=Angle,(E230*J230)+H229,$D230=Loop,$H$190,OR($D230="",$D230=End),H229,OR($D230=Dx,$D230=sx,$D230=up,$D230=down),(E230*J230)+H229)) -> 0.00 | I230: =IF(D229=Loop,$I$191,_xlfn.IFS($D230=Angle,(E230*K230)+I229,$D230=Loop,$I$190,OR($D230="",$D230=End),I229,OR($D230=Dx,$D230=sx,$D230=up,$D230=down),(E230*K230)+I229)) -> 0.00 | J230: 1.0000 | K230: 0.0000 | L230: 0.00 | Q230: 0 | S230: =+IF(G230=0,0,IF(MOD(G230,SpanTow),_xlfn.FLOOR.MATH(G230/SpanTow),_xlfn.FLOOR.MATH(G230/SpanTow)-1)) -> 0 | T230: 0 | U230: 0.00 | W230: FALSE | X230: FALSE | Y230: FALSE | Z230: FALSE | AA230: FALSE | AB230: FALSE | AC230: FALSE | AF230: 0.00 | AG230: 0.00 | AH230: 0 | AI230: 0
B231: =_xlfn.IFS(C230="","",C230="","",AND(D231<>End,D230<>Loop),C230,D231=End,_xlfn.CONCAT(C230,", "&$F$11),D230=Loop,_xlfn.CONCAT($F$11&" x2,1")) ->  | E231: 0.00 | F231: 0 | G231: 0.00 | H231: =IF(D230=Loop,$H$191,_xlfn.IFS($D231=Angle,(E231*J231)+H230,$D231=Loop,$H$190,OR($D231="",$D231=End),H230,OR($D231=Dx,$D231=sx,$D231=up,$D231=down),(E231*J231)+H230)) -> 0.00 | I231: =IF(D230=Loop,$I$191,_xlfn.IFS($D231=Angle,(E231*K231)+I230,$D231=Loop,$I$190,OR($D231="",$D231=End),I230,OR($D231=Dx,$D231=sx,$D231=up,$D231=down),(E231*K231)+I230)) -> 0.00 | J231: 1.0000 | K231: 0.0000 | L231: 0.00 | Q231: 0 | S231: =+IF(G231=0,0,IF(MOD(G231,SpanTow),_xlfn.FLOOR.MATH(G231/SpanTow),_xlfn.FLOOR.MATH(G231/SpanTow)-1)) -> 0 | T231: 0 | U231: 0.00 | W231: FALSE | X231: FALSE | Y231: FALSE | Z231: FALSE | AA231: FALSE | AB231: FALSE | AC231: FALSE | AF231: 0.00 | AG231: 0.00 | AH231: 0 | AI231: 0
B232: =_xlfn.IFS(C231="","",C231="","",AND(D232<>End,D231<>Loop),C231,D232=End,_xlfn.CONCAT(C231,", "&$F$11),D231=Loop,_xlfn.CONCAT($F$11&" x2,1")) ->  | E232: 0.00 | F232: 0 | G232: 0.00 | H232: =IF(D231=Loop,$H$191,_xlfn.IFS($D232=Angle,(E232*J232)+H231,$D232=Loop,$H$190,OR($D232="",$D232=End),H231,OR($D232=Dx,$D232=sx,$D232=up,$D232=down),(E232*J232)+H231)) -> 0.00 | I232: =IF(D231=Loop,$I$191,_xlfn.IFS($D232=Angle,(E232*K232)+I231,$D232=Loop,$I$190,OR($D232="",$D232=End),I231,OR($D232=Dx,$D232=sx,$D232=up,$D232=down),(E232*K232)+I231)) -> 0.00 | J232: 1.0000 | K232: 0.0000 | L232: 0.00 | Q232: 0 | S232: =+IF(G232=0,0,IF(MOD(G232,SpanTow),_xlfn.FLOOR.MATH(G232/SpanTow),_xlfn.FLOOR.MATH(G232/SpanTow)-1)) -> 0 | T232: 0 | U232: 0.00 | W232: FALSE | X232: FALSE | Y232: FALSE | Z232: FALSE | AA232: FALSE | AB232: FALSE | AC232: FALSE | AF232: 0.00 | AG232: 0.00 | AH232: 0 | AI232: 0
B233: =_xlfn.IFS(C232="","",C232="","",AND(D233<>End,D232<>Loop),C232,D233=End,_xlfn.CONCAT(C232,", "&$F$11),D232=Loop,_xlfn.CONCAT($F$11&" x2,1")) ->  | E233: 0.00 | F233: 0 | G233: 0.00 | H233: =IF(D232=Loop,$H$191,_xlfn.IFS($D233=Angle,(E233*J233)+H232,$D233=Loop,$H$190,OR($D233="",$D233=End),H232,OR($D233=Dx,$D233=sx,$D233=up,$D233=down),(E233*J233)+H232)) -> 0.00 | I233: =IF(D232=Loop,$I$191,_xlfn.IFS($D233=Angle,(E233*K233)+I232,$D233=Loop,$I$190,OR($D233="",$D233=End),I232,OR($D233=Dx,$D233=sx,$D233=up,$D233=down),(E233*K233)+I232)) -> 0.00 | J233: 1.0000 | K233: 0.0000 | L233: 0.00 | Q233: 0 | S233: =+IF(G233=0,0,IF(MOD(G233,SpanTow),_xlfn.FLOOR.MATH(G233/SpanTow),_xlfn.FLOOR.MATH(G233/SpanTow)-1)) -> 0 | T233: 0 | U233: 0.00 | W233: FALSE | X233: FALSE | Y233: FALSE | Z233: FALSE | AA233: FALSE | AB233: FALSE | AC233: FALSE | AF233: 0.00 | AG233: 0.00 | AH233: 0 | AI233: 0
B234: =_xlfn.IFS(C233="","",C233="","",AND(D234<>End,D233<>Loop),C233,D234=End,_xlfn.CONCAT(C233,", "&$F$11),D233=Loop,_xlfn.CONCAT($F$11&" x2,1")) ->  | E234: 0.00 | F234: 0 | G234: 0.00 | H234: =IF(D233=Loop,$H$191,_xlfn.IFS($D234=Angle,(E234*J234)+H233,$D234=Loop,$H$190,OR($D234="",$D234=End),H233,OR($D234=Dx,$D234=sx,$D234=up,$D234=down),(E234*J234)+H233)) -> 0.00 | I234: =IF(D233=Loop,$I$191,_xlfn.IFS($D234=Angle,(E234*K234)+I233,$D234=Loop,$I$190,OR($D234="",$D234=End),I233,OR($D234=Dx,$D234=sx,$D234=up,$D234=down),(E234*K234)+I233)) -> 0.00 | J234: 1.0000 | K234: 0.0000 | L234: 0.00 | Q234: 0 | S234: =+IF(G234=0,0,IF(MOD(G234,SpanTow),_xlfn.FLOOR.MATH(G234/SpanTow),_xlfn.FLOOR.MATH(G234/SpanTow)-1)) -> 0 | T234: 0 | U234: 0.00 | W234: FALSE | X234: FALSE | Y234: FALSE | Z234: FALSE | AA234: FALSE | AB234: FALSE | AC234: FALSE | AF234: 0.00 | AG234: 0.00 | AH234: 0 | AI234: 0
B235: =_xlfn.IFS(C234="","",C234="","",AND(D235<>End,D234<>Loop),C234,D235=End,_xlfn.CONCAT(C234,", "&$F$11),D234=Loop,_xlfn.CONCAT($F$11&" x2,1")) ->  | E235: 0.00 | F235: 0 | G235: 0.00 | H235: =IF(D234=Loop,$H$191,_xlfn.IFS($D235=Angle,(E235*J235)+H234,$D235=Loop,$H$190,OR($D235="",$D235=End),H234,OR($D235=Dx,$D235=sx,$D235=up,$D235=down),(E235*J235)+H234)) -> 0.00 | I235: =IF(D234=Loop,$I$191,_xlfn.IFS($D235=Angle,(E235*K235)+I234,$D235=Loop,$I$190,OR($D235="",$D235=End),I234,OR($D235=Dx,$D235=sx,$D235=up,$D235=down),(E235*K235)+I234)) -> 0.00 | J235: 1.0000 | K235: 0.0000 | L235: 0.00 | Q235: 0 | S235: =+IF(G235=0,0,IF(MOD(G235,SpanTow),_xlfn.FLOOR.MATH(G235/SpanTow),_xlfn.FLOOR.MATH(G235/SpanTow)-1)) -> 0 | T235: 0 | U235: 0.00 | W235: FALSE | X235: FALSE | Y235: FALSE | Z235: FALSE | AA235: FALSE | AB235: FALSE | AC235: FALSE | AF235: 0.00 | AG235: 0.00 | AH235: 0 | AI235: 0
B236: =_xlfn.IFS(C235="","",C235="","",AND(D236<>End,D235<>Loop),C235,D236=End,_xlfn.CONCAT(C235,", "&$F$11),D235=Loop,_xlfn.CONCAT($F$11&" x2,1")) ->  | E236: 0.00 | F236: 0 | G236: 0.00 | H236: =IF(D235=Loop,$H$191,_xlfn.IFS($D236=Angle,(E236*J236)+H235,$D236=Loop,$H$190,OR($D236="",$D236=End),H235,OR($D236=Dx,$D236=sx,$D236=up,$D236=down),(E236*J236)+H235)) -> 0.00 | I236: =IF(D235=Loop,$I$191,_xlfn.IFS($D236=Angle,(E236*K236)+I235,$D236=Loop,$I$190,OR($D236="",$D236=End),I235,OR($D236=Dx,$D236=sx,$D236=up,$D236=down),(E236*K236)+I235)) -> 0.00 | J236: 1.0000 | K236: 0.0000 | L236: 0.00 | Q236: 0 | S236: =+IF(G236=0,0,IF(MOD(G236,SpanTow),_xlfn.FLOOR.MATH(G236/SpanTow),_xlfn.FLOOR.MATH(G236/SpanTow)-1)) -> 0 | T236: 0 | U236: 0.00 | W236: FALSE | X236: FALSE | Y236: FALSE | Z236: FALSE | AA236: FALSE | AB236: FALSE | AC236: FALSE | AF236: 0.00 | AG236: 0.00 | AH236: 0 | AI236: 0
B237: =_xlfn.IFS(C236="","",C236="","",AND(D237<>End,D236<>Loop),C236,D237=End,_xlfn.CONCAT(C236,", "&$F$11),D236=Loop,_xlfn.CONCAT($F$11&" x2,1")) ->  | E237: 0.00 | F237: 0 | G237: 0.00 | H237: =IF(D236=Loop,$H$191,_xlfn.IFS($D237=Angle,(E237*J237)+H236,$D237=Loop,$H$190,OR($D237="",$D237=End),H236,OR($D237=Dx,$D237=sx,$D237=up,$D237=down),(E237*J237)+H236)) -> 0.00 | I237: =IF(D236=Loop,$I$191,_xlfn.IFS($D237=Angle,(E237*K237)+I236,$D237=Loop,$I$190,OR($D237="",$D237=End),I236,OR($D237=Dx,$D237=sx,$D237=up,$D237=down),(E237*K237)+I236)) -> 0.00 | J237: 1.0000 | K237: 0.0000 | L237: 0.00 | Q237: 0 | S237: =+IF(G237=0,0,IF(MOD(G237,SpanTow),_xlfn.FLOOR.MATH(G237/SpanTow),_xlfn.FLOOR.MATH(G237/SpanTow)-1)) -> 0 | T237: 0 | U237: 0.00 | W237: FALSE | X237: FALSE | Y237: FALSE | Z237: FALSE | AA237: FALSE | AB237: FALSE | AC237: FALSE | AF237: 0.00 | AG237: 0.00 | AH237: 0 | AI237: 0
B238: =_xlfn.IFS(C237="","",C237="","",AND(D238<>End,D237<>Loop),C237,D238=End,_xlfn.CONCAT(C237,", "&$F$11),D237=Loop,_xlfn.CONCAT($F$11&" x2,1")) ->  | E238: 0.00 | F238: 0 | G238: 0.00 | H238: =IF(D237=Loop,$H$191,_xlfn.IFS($D238=Angle,(E238*J238)+H237,$D238=Loop,$H$190,OR($D238="",$D238=End),H237,OR($D238=Dx,$D238=sx,$D238=up,$D238=down),(E238*J238)+H237)) -> 0.00 | I238: =IF(D237=Loop,$I$191,_xlfn.IFS($D238=Angle,(E238*K238)+I237,$D238=Loop,$I$190,OR($D238="",$D238=End),I237,OR($D238=Dx,$D238=sx,$D238=up,$D238=down),(E238*K238)+I237)) -> 0.00 | J238: 1.0000 | K238: 0.0000 | L238: 0.00 | Q238: 0 | S238: =+IF(G238=0,0,IF(MOD(G238,SpanTow),_xlfn.FLOOR.MATH(G238/SpanTow),_xlfn.FLOOR.MATH(G238/SpanTow)-1)) -> 0 | T238: 0 | U238: 0.00 | W238: FALSE | X238: FALSE | Y238: FALSE | Z238: FALSE | AA238: FALSE | AB238: FALSE | AC238: FALSE | AF238: 0.00 | AG238: 0.00 | AH238: 0 | AI238: 0
B239: =_xlfn.IFS(C238="","",C238="","",AND(D239<>End,D238<>Loop),C238,D239=End,_xlfn.CONCAT(C238,", "&$F$11),D238=Loop,_xlfn.CONCAT($F$11&" x2,1")) ->  | E239: 0.00 | F239: 0 | G239: 0.00 | H239: =IF(D238=Loop,$H$191,_xlfn.IFS($D239=Angle,(E239*J239)+H238,$D239=Loop,$H$190,OR($D239="",$D239=End),H238,OR($D239=Dx,$D239=sx,$D239=up,$D239=down),(E239*J239)+H238)) -> 0.00 | I239: =IF(D238=Loop,$I$191,_xlfn.IFS($D239=Angle,(E239*K239)+I238,$D239=Loop,$I$190,OR($D239="",$D239=End),I238,OR($D239=Dx,$D239=sx,$D239=up,$D239=down),(E239*K239)+I238)) -> 0.00 | J239: 1.0000 | K239: 0.0000 | L239: 0.00 | Q239: 0 | S239: =+IF(G239=0,0,IF(MOD(G239,SpanTow),_xlfn.FLOOR.MATH(G239/SpanTow),_xlfn.FLOOR.MATH(G239/SpanTow)-1)) -> 0 | T239: 0 | U239: 0.00 | W239: FALSE | X239: FALSE | Y239: FALSE | Z239: FALSE | AA239: FALSE | AB239: FALSE | AC239: FALSE | AF239: 0.00 | AG239: 0.00 | AH239: 0 | AI239: 0
B240: =_xlfn.IFS(C239="","",C239="","",AND(D240<>End,D239<>Loop),C239,D240=End,_xlfn.CONCAT(C239,", "&$F$11),D239=Loop,_xlfn.CONCAT($F$11&" x2,1")) ->  | E240: 0.00 | F240: 0 | G240: 0.00 | H240: =IF(D239=Loop,$H$191,_xlfn.IFS($D240=Angle,(E240*J240)+H239,$D240=Loop,$H$190,OR($D240="",$D240=End),H239,OR($D240=Dx,$D240=sx,$D240=up,$D240=down),(E240*J240)+H239)) -> 0.00 | I240: =IF(D239=Loop,$I$191,_xlfn.IFS($D240=Angle,(E240*K240)+I239,$D240=Loop,$I$190,OR($D240="",$D240=End),I239,OR($D240=Dx,$D240=sx,$D240=up,$D240=down),(E240*K240)+I239)) -> 0.00 | J240: 1.0000 | K240: 0.0000 | L240: 0.00 | Q240: 0 | S240: =+IF(G240=0,0,IF(MOD(G240,SpanTow),_xlfn.FLOOR.MATH(G240/SpanTow),_xlfn.FLOOR.MATH(G240/SpanTow)-1)) -> 0 | T240: 0 | U240: 0.00 | W240: FALSE | X240: FALSE | Y240: FALSE | Z240: FALSE | AA240: FALSE | AB240: FALSE | AC240: FALSE | AF240: 0.00 | AG240: 0.00 | AH240: 0 | AI240: 0
B241: =_xlfn.IFS(C240="","",C240="","",AND(D241<>End,D240<>Loop),C240,D241=End,_xlfn.CONCAT(C240,", "&$F$11),D240=Loop,_xlfn.CONCAT($F$11&" x2,1")) ->  | E241: 0.00 | F241: 0 | G241: 0.00 | H241: =IF(D240=Loop,$H$191,_xlfn.IFS($D241=Angle,(E241*J241)+H240,$D241=Loop,$H$190,OR($D241="",$D241=End),H240,OR($D241=Dx,$D241=sx,$D241=up,$D241=down),(E241*J241)+H240)) -> 0.00 | I241: =IF(D240=Loop,$I$191,_xlfn.IFS($D241=Angle,(E241*K241)+I240,$D241=Loop,$I$190,OR($D241="",$D241=End),I240,OR($D241=Dx,$D241=sx,$D241=up,$D241=down),(E241*K241)+I240)) -> 0.00 | J241: 1.0000 | K241: 0.0000 | L241: 0.00 | Q241: 0 | S241: =+IF(G241=0,0,IF(MOD(G241,SpanTow),_xlfn.FLOOR.MATH(G241/SpanTow),_xlfn.FLOOR.MATH(G241/SpanTow)-1)) -> 0 | T241: 0 | U241: 0.00 | W241: FALSE | X241: FALSE | Y241: FALSE | Z241: FALSE | AA241: FALSE | AB241: FALSE | AC241: FALSE | AF241: 0.00 | AG241: 0.00 | AH241: 0 | AI241: 0
B242: =_xlfn.IFS(C241="","",C241="","",AND(D242<>End,D241<>Loop),C241,D242=End,_xlfn.CONCAT(C241,", "&$F$11),D241=Loop,_xlfn.CONCAT($F$11&" x2,1")) ->  | E242: 0.00 | F242: 0 | G242: 0.00 | H242: =IF(D241=Loop,$H$191,_xlfn.IFS($D242=Angle,(E242*J242)+H241,$D242=Loop,$H$190,OR($D242="",$D242=End),H241,OR($D242=Dx,$D242=sx,$D242=up,$D242=down),(E242*J242)+H241)) -> 0.00 | I242: =IF(D241=Loop,$I$191,_xlfn.IFS($D242=Angle,(E242*K242)+I241,$D242=Loop,$I$190,OR($D242="",$D242=End),I241,OR($D242=Dx,$D242=sx,$D242=up,$D242=down),(E242*K242)+I241)) -> 0.00 | J242: 1.0000 | K242: 0.0000 | L242: 0.00 | Q242: 0 | S242: =+IF(G242=0,0,IF(MOD(G242,SpanTow),_xlfn.FLOOR.MATH(G242/SpanTow),_xlfn.FLOOR.MATH(G242/SpanTow)-1)) -> 0 | T242: 0 | U242: 0.00 | W242: FALSE | X242: FALSE | Y242: FALSE | Z242: FALSE | AA242: FALSE | AB242: FALSE | AC242: FALSE | AF242: 0.00 | AG242: 0.00 | AH242: 0 | AI242: 0
B243: =_xlfn.IFS(C242="","",C242="","",AND(D243<>End,D242<>Loop),C242,D243=End,_xlfn.CONCAT(C242,", "&$F$11),D242=Loop,_xlfn.CONCAT($F$11&" x2,1")) ->  | E243: 0.00 | F243: 0 | G243: 0.00 | H243: =IF(D242=Loop,$H$191,_xlfn.IFS($D243=Angle,(E243*J243)+H242,$D243=Loop,$H$190,OR($D243="",$D243=End),H242,OR($D243=Dx,$D243=sx,$D243=up,$D243=down),(E243*J243)+H242)) -> 0.00 | I243: =IF(D242=Loop,$I$191,_xlfn.IFS($D243=Angle,(E243*K243)+I242,$D243=Loop,$I$190,OR($D243="",$D243=End),I242,OR($D243=Dx,$D243=sx,$D243=up,$D243=down),(E243*K243)+I242)) -> 0.00 | J243: 1.0000 | K243: 0.0000 | L243: 0.00 | Q243: 0 | S243: =+IF(G243=0,0,IF(MOD(G243,SpanTow),_xlfn.FLOOR.MATH(G243/SpanTow),_xlfn.FLOOR.MATH(G243/SpanTow)-1)) -> 0 | T243: 0 | U243: 0.00 | W243: FALSE | X243: FALSE | Y243: FALSE | Z243: FALSE | AA243: FALSE | AB243: FALSE | AC243: FALSE | AF243: 0.00 | AG243: 0.00 | AH243: 0 | AI243: 0
B244: =_xlfn.IFS(C243="","",C243="","",AND(D244<>End,D243<>Loop),C243,D244=End,_xlfn.CONCAT(C243,", "&$F$11),D243=Loop,_xlfn.CONCAT($F$11&" x2,1")) ->  | E244: 0.00 | F244: 0 | G244: 0.00 | H244: =IF(D243=Loop,$H$191,_xlfn.IFS($D244=Angle,(E244*J244)+H243,$D244=Loop,$H$190,OR($D244="",$D244=End),H243,OR($D244=Dx,$D244=sx,$D244=up,$D244=down),(E244*J244)+H243)) -> 0.00 | I244: =IF(D243=Loop,$I$191,_xlfn.IFS($D244=Angle,(E244*K244)+I243,$D244=Loop,$I$190,OR($D244="",$D244=End),I243,OR($D244=Dx,$D244=sx,$D244=up,$D244=down),(E244*K244)+I243)) -> 0.00 | J244: 1.0000 | K244: 0.0000 | L244: 0.00 | Q244: 0 | S244: =+IF(G244=0,0,IF(MOD(G244,SpanTow),_xlfn.FLOOR.MATH(G244/SpanTow),_xlfn.FLOOR.MATH(G244/SpanTow)-1)) -> 0 | T244: 0 | U244: 0.00 | W244: FALSE | X244: FALSE | Y244: FALSE | Z244: FALSE | AA244: FALSE | AB244: FALSE | AC244: FALSE | AF244: 0.00 | AG244: 0.00 | AH244: 0 | AI244: 0
B245: =_xlfn.IFS(C244="","",C244="","",AND(D245<>End,D244<>Loop),C244,D245=End,_xlfn.CONCAT(C244,", "&$F$11),D244=Loop,_xlfn.CONCAT($F$11&" x2,1")) ->  | E245: 0.00 | F245: 0 | G245: 0.00 | H245: =IF(D244=Loop,$H$191,_xlfn.IFS($D245=Angle,(E245*J245)+H244,$D245=Loop,$H$190,OR($D245="",$D245=End),H244,OR($D245=Dx,$D245=sx,$D245=up,$D245=down),(E245*J245)+H244)) -> 0.00 | I245: =IF(D244=Loop,$I$191,_xlfn.IFS($D245=Angle,(E245*K245)+I244,$D245=Loop,$I$190,OR($D245="",$D245=End),I244,OR($D245=Dx,$D245=sx,$D245=up,$D245=down),(E245*K245)+I244)) -> 0.00 | J245: 1.0000 | K245: 0.0000 | L245: 0.00 | Q245: 0 | S245: =+IF(G245=0,0,IF(MOD(G245,SpanTow),_xlfn.FLOOR.MATH(G245/SpanTow),_xlfn.FLOOR.MATH(G245/SpanTow)-1)) -> 0 | T245: 0 | U245: 0.00 | W245: FALSE | X245: FALSE | Y245: FALSE | Z245: FALSE | AA245: FALSE | AB245: FALSE | AC245: FALSE | AF245: 0.00 | AG245: 0.00 | AH245: 0 | AI245: 0
B246: =_xlfn.IFS(C245="","",C245="","",AND(D246<>End,D245<>Loop),C245,D246=End,_xlfn.CONCAT(C245,", "&$F$11),D245=Loop,_xlfn.CONCAT($F$11&" x2,1")) ->  | E246: 0.00 | F246: 0 | G246: 0.00 | H246: =IF(D245=Loop,$H$191,_xlfn.IFS($D246=Angle,(E246*J246)+H245,$D246=Loop,$H$190,OR($D246="",$D246=End),H245,OR($D246=Dx,$D246=sx,$D246=up,$D246=down),(E246*J246)+H245)) -> 0.00 | I246: =IF(D245=Loop,$I$191,_xlfn.IFS($D246=Angle,(E246*K246)+I245,$D246=Loop,$I$190,OR($D246="",$D246=End),I245,OR($D246=Dx,$D246=sx,$D246=up,$D246=down),(E246*K246)+I245)) -> 0.00 | J246: 1.0000 | K246: 0.0000 | L246: 0.00 | Q246: 0 | S246: =+IF(G246=0,0,IF(MOD(G246,SpanTow),_xlfn.FLOOR.MATH(G246/SpanTow),_xlfn.FLOOR.MATH(G246/SpanTow)-1)) -> 0 | T246: 0 | U246: 0.00 | W246: FALSE | X246: FALSE | Y246: FALSE | Z246: FALSE | AA246: FALSE | AB246: FALSE | AC246: FALSE | AF246: 0.00 | AG246: 0.00 | AH246: 0 | AI246: 0
B247: =_xlfn.IFS(C246="","",C246="","",AND(D247<>End,D246<>Loop),C246,D247=End,_xlfn.CONCAT(C246,", "&$F$11),D246=Loop,_xlfn.CONCAT($F$11&" x2,1")) ->  | E247: 0.00 | F247: 0 | G247: 0.00 | H247: =IF(D246=Loop,$H$191,_xlfn.IFS($D247=Angle,(E247*J247)+H246,$D247=Loop,$H$190,OR($D247="",$D247=End),H246,OR($D247=Dx,$D247=sx,$D247=up,$D247=down),(E247*J247)+H246)) -> 0.00 | I247: =IF(D246=Loop,$I$191,_xlfn.IFS($D247=Angle,(E247*K247)+I246,$D247=Loop,$I$190,OR($D247="",$D247=End),I246,OR($D247=Dx,$D247=sx,$D247=up,$D247=down),(E247*K247)+I246)) -> 0.00 | J247: 1.0000 | K247: 0.0000 | L247: 0.00 | Q247: 0 | S247: =+IF(G247=0,0,IF(MOD(G247,SpanTow),_xlfn.FLOOR.MATH(G247/SpanTow),_xlfn.FLOOR.MATH(G247/SpanTow)-1)) -> 0 | T247: 0 | U247: 0.00 | W247: FALSE | X247: FALSE | Y247: FALSE | Z247: FALSE | AA247: FALSE | AB247: FALSE | AC247: FALSE | AF247: 0.00 | AG247: 0.00 | AH247: 0 | AI247: 0
B248: =_xlfn.IFS(C247="","",C247="","",AND(D248<>End,D247<>Loop),C247,D248=End,_xlfn.CONCAT(C247,", "&$F$11),D247=Loop,_xlfn.CONCAT($F$11&" x2,1")) ->  | E248: 0.00 | F248: 0 | G248: 0.00 | H248: =IF(D247=Loop,$H$191,_xlfn.IFS($D248=Angle,(E248*J248)+H247,$D248=Loop,$H$190,OR($D248="",$D248=End),H247,OR($D248=Dx,$D248=sx,$D248=up,$D248=down),(E248*J248)+H247)) -> 0.00 | I248: =IF(D247=Loop,$I$191,_xlfn.IFS($D248=Angle,(E248*K248)+I247,$D248=Loop,$I$190,OR($D248="",$D248=End),I247,OR($D248=Dx,$D248=sx,$D248=up,$D248=down),(E248*K248)+I247)) -> 0.00 | J248: 1.0000 | K248: 0.0000 | L248: 0.00 | Q248: 0 | S248: =+IF(G248=0,0,IF(MOD(G248,SpanTow),_xlfn.FLOOR.MATH(G248/SpanTow),_xlfn.FLOOR.MATH(G248/SpanTow)-1)) -> 0 | T248: 0 | U248: 0.00 | W248: FALSE | X248: FALSE | Y248: FALSE | Z248: FALSE | AA248: FALSE | AB248: FALSE | AC248: FALSE | AF248: 0.00 | AG248: 0.00 | AH248: 0 | AI248: 0
B249: =_xlfn.IFS(C248="","",C248="","",AND(D249<>End,D248<>Loop),C248,D249=End,_xlfn.CONCAT(C248,", "&$F$11),D248=Loop,_xlfn.CONCAT($F$11&" x2,1")) ->  | E249: 0.00 | F249: 0 | G249: 0.00 | H249: =IF(D248=Loop,$H$191,_xlfn.IFS($D249=Angle,(E249*J249)+H248,$D249=Loop,$H$190,OR($D249="",$D249=End),H248,OR($D249=Dx,$D249=sx,$D249=up,$D249=down),(E249*J249)+H248)) -> 0.00 | I249: =IF(D248=Loop,$I$191,_xlfn.IFS($D249=Angle,(E249*K249)+I248,$D249=Loop,$I$190,OR($D249="",$D249=End),I248,OR($D249=Dx,$D249=sx,$D249=up,$D249=down),(E249*K249)+I248)) -> 0.00 | J249: 1.0000 | K249: 0.0000 | L249: 0.00 | Q249: 0 | S249: =+IF(G249=0,0,IF(MOD(G249,SpanTow),_xlfn.FLOOR.MATH(G249/SpanTow),_xlfn.FLOOR.MATH(G249/SpanTow)-1)) -> 0 | T249: 0 | U249: 0.00 | W249: FALSE | X249: FALSE | Y249: FALSE | Z249: FALSE | AA249: FALSE | AB249: FALSE | AC249: FALSE | AF249: 0.00 | AG249: 0.00 | AH249: 0 | AI249: 0
B250: =_xlfn.IFS(C249="","",C249="","",AND(D250<>End,D249<>Loop),C249,D250=End,_xlfn.CONCAT(C249,", "&$F$11),D249=Loop,_xlfn.CONCAT($F$11&" x2,1")) ->  | E250: 0.00 | F250: 0 | G250: 0.00 | H250: =IF(D249=Loop,$H$191,_xlfn.IFS($D250=Angle,(E250*J250)+H249,$D250=Loop,$H$190,OR($D250="",$D250=End),H249,OR($D250=Dx,$D250=sx,$D250=up,$D250=down),(E250*J250)+H249)) -> 0.00 | I250: =IF(D249=Loop,$I$191,_xlfn.IFS($D250=Angle,(E250*K250)+I249,$D250=Loop,$I$190,OR($D250="",$D250=End),I249,OR($D250=Dx,$D250=sx,$D250=up,$D250=down),(E250*K250)+I249)) -> 0.00 | J250: 1.0000 | K250: 0.0000 | L250: 0.00 | Q250: 0 | S250: =+IF(G250=0,0,IF(MOD(G250,SpanTow),_xlfn.FLOOR.MATH(G250/SpanTow),_xlfn.FLOOR.MATH(G250/SpanTow)-1)) -> 0 | T250: 0 | U250: 0.00 | W250: FALSE | X250: FALSE | Y250: FALSE | Z250: FALSE | AA250: FALSE | AB250: FALSE | AC250: FALSE | AF250: 0.00 | AG250: 0.00 | AH250: 0 | AI250: 0
B251: =_xlfn.IFS(C250="","",C250="","",AND(D251<>End,D250<>Loop),C250,D251=End,_xlfn.CONCAT(C250,", "&$F$11),D250=Loop,_xlfn.CONCAT($F$11&" x2,1")) ->  | E251: 0.00 | F251: 0 | G251: 0.00 | H251: =IF(D250=Loop,$H$191,_xlfn.IFS($D251=Angle,(E251*J251)+H250,$D251=Loop,$H$190,OR($D251="",$D251=End),H250,OR($D251=Dx,$D251=sx,$D251=up,$D251=down),(E251*J251)+H250)) -> 0.00 | I251: =IF(D250=Loop,$I$191,_xlfn.IFS($D251=Angle,(E251*K251)+I250,$D251=Loop,$I$190,OR($D251="",$D251=End),I250,OR($D251=Dx,$D251=sx,$D251=up,$D251=down),(E251*K251)+I250)) -> 0.00 | J251: 1.0000 | K251: 0.0000 | L251: 0.00 | Q251: 0 | S251: =+IF(G251=0,0,IF(MOD(G251,SpanTow),_xlfn.FLOOR.MATH(G251/SpanTow),_xlfn.FLOOR.MATH(G251/SpanTow)-1)) -> 0 | T251: 0 | U251: 0.00 | W251: FALSE | X251: FALSE | Y251: FALSE | Z251: FALSE | AA251: FALSE | AB251: FALSE | AC251: FALSE | AF251: 0.00 | AG251: 0.00 | AH251: 0 | AI251: 0
B252: =_xlfn.IFS(C251="","",C251="","",AND(D252<>End,D251<>Loop),C251,D252=End,_xlfn.CONCAT(C251,", "&$F$11),D251=Loop,_xlfn.CONCAT($F$11&" x2,1")) ->  | E252: 0.00 | F252: 0 | G252: 0.00 | H252: =IF(D251=Loop,$H$191,_xlfn.IFS($D252=Angle,(E252*J252)+H251,$D252=Loop,$H$190,OR($D252="",$D252=End),H251,OR($D252=Dx,$D252=sx,$D252=up,$D252=down),(E252*J252)+H251)) -> 0.00 | I252: =IF(D251=Loop,$I$191,_xlfn.IFS($D252=Angle,(E252*K252)+I251,$D252=Loop,$I$190,OR($D252="",$D252=End),I251,OR($D252=Dx,$D252=sx,$D252=up,$D252=down),(E252*K252)+I251)) -> 0.00 | J252: 1.0000 | K252: 0.0000 | L252: 0.00 | N252: =IF(D252="","",+IF(OR(AND(M252>=80,M252<=105),AND(M252>=265,M252<=280)),"90",FALSE)) ->  | O252: =IF(D252="","",+IF(OR(AND(M252>=165,M252<=195),AND(M252>=345,M252<=15)),"INT",FALSE)) ->  | P252: =IF(D252="","",IF(M252="","",+IF(AND(N252=FALSE,O252=FALSE),1,0))) ->  | Q252: 0 | S252: =+IF(G252=0,0,IF(MOD(G252,SpanTow),_xlfn.FLOOR.MATH(G252/SpanTow),_xlfn.FLOOR.MATH(G252/SpanTow)-1)) -> 0 | T252: 0 | U252: 0.00 | W252: FALSE | X252: FALSE | Y252: FALSE | Z252: FALSE | AA252: FALSE | AB252: FALSE | AC252: FALSE | AF252: 0.00 | AG252: 0.00 | AH252: 0 | AI252: 0
B253: =_xlfn.IFS(C252="","",C252="","",AND(D253<>End,D252<>Loop),C252,D253=End,_xlfn.CONCAT(C252,", "&$F$11),D252=Loop,_xlfn.CONCAT($F$11&" x2,1")) ->  | C253: =IF(OR(D97=End,D97=Loop),F97,C101) -> 0 | E253: 0.00 | F253: 0 | G253: 0.00 | H253: =IF(D252=Loop,$H$191,_xlfn.IFS($D253=Angle,(E253*J253)+H252,$D253=Loop,$H$190,OR($D253="",$D253=End),H252,OR($D253=Dx,$D253=sx,$D253=up,$D253=down),(E253*J253)+H252)) -> 0.00 | I253: =IF(D252=Loop,$I$191,_xlfn.IFS($D253=Angle,(E253*K253)+I252,$D253=Loop,$I$190,OR($D253="",$D253=End),I252,OR($D253=Dx,$D253=sx,$D253=up,$D253=down),(E253*K253)+I252)) -> 0.00 | J253: =+COS(RADIANS(F253)) -> 1.0000 | K253: =SIN(RADIANS(F253)) -> 0.0000 | L253: 0.00 | N253: =IF(D253="","",+IF(OR(AND(M253>=80,M253<=105),AND(M253>=265,M253<=280)),"90",FALSE)) ->  | O253: =IF(D253="","",+IF(OR(AND(M253>=165,M253<=195),AND(M253>=345,M253<=15)),"INT",FALSE)) ->  | P253: =IF(D253="","",IF(M253="","",+IF(AND(N253=FALSE,O253=FALSE),1,0))) ->  | Q253: =+IF(OR(E253=0,E253=""),0,IF(MOD(E253,$S$189),_xlfn.FLOOR.MATH(E253/$S$189),_xlfn.FLOOR.MATH(E253/$S$189)-1)) -> 0 | S253: =+IF(G253=0,0,IF(MOD(G253,SpanTow),_xlfn.FLOOR.MATH(G253/SpanTow),_xlfn.FLOOR.MATH(G253/SpanTow)-1)) -> 0 | T253: =+MAX(Q253:S253) -> 0 | U253: 0.00 | W253: FALSE | X253: FALSE | Y253: FALSE | Z253: FALSE | AA253: FALSE | AB253: FALSE | AC253: FALSE | AF253: 0.00 | AG253: 0.00 | AH253: 0 | AI253: 0
AA256: =MAX(AA191:AA253) -> 0 | AD256: MAX

Sheet SupLL (hidden)
K4: LIFELINE v1.04 | Z4: 0 | AA4: 0 | AC4: Rothoblaas CABLE | AD4: Ø8 - 7 x 7 - stainless steel - AISI316 | AI4: CC ID
U5: > | W5: SPEAR2/SPEAR | X5: SPEAR_SPEAR2.txt | Z5: 1 | AA5: 12 | AC5: user * | AD5: input data ---> | AG5: INDEFORMABILE | AH5: INDEFORMABILE | AI5: N.S.
C6: LIFELINE SYSTEMS CALCULATION | U6: < | Z6: 2 | AA6: 13 | AC6: =IF(E14=AC5,"uservalues","Rbcable") -> Rbcable | AG6: TOWER300 | AH6: TOWER300.txt | AI6: 002 | AK6: PATROL + SPEAR
C7: Forces and deflection of the system | U7: Λ | Z7: 3 | AA7: 14 | AG7: TOWER400 | AH7: TOWER400.txt | AI7: 004 | AK7: PATROL + SPEAREVO
U8: V | Z8: 4 | AA8: 15 | AG8: TOWER500 | AH8: TOWER500.txt | AI8: 005
C9: Project Name | E9: ABC | U9: Angle | AG9: TOWER | AH9: TOWER600.txt | AI9: 003
AG10: PATROLEND | AH10: PATROLEND.txt | AI10: 001
C11: System | E11: PATROL + SPEAR | H11: Data: | I11: =TODAY() -> 2023-10-10 | Z11: user | AA11: =H18*SIGN(H18) -> 15.0 kN | AG11: PATROL OVERHEAD | AH11: PATROLEND.txt | AI11: 001
C12: Anchor Point | E12: TOWER | U12: Loop | AG12: PATROL ON WALL | AH12: PATROLEND.txt | AI12: 001
K13: Nominal diameter | L13: 8 | M13: mm | AG13: SHIELD | SHIELD2
C14: Rope | E14: Rothoblaas CABLE | G14: =VLOOKUP(E14,AC4:AD5,2,) -> Ø8 - 7 x 7 - stainless steel - AISI316 | K14: Fill ratio | L14: 64 | M14: %
K15: Apparent Young's Modulus | L15: 110000 | M15: N/mm2
K16: Specific weight | L16: 76977 | M16: N/m3
C18: Max number of users | E18: =IF(E11=AK7,VLOOKUP(VLOOKUP(E12,AA100:AB107,2,FALSE),AA122:AE123,5,FALSE),VLOOKUP(VLOOKUP(E12,AA100:AB107,2,FALSE),AA111:AE113,5,FALSE)) -> 4 | H18: -15.0 | I18: kN
B20: Installation manual loads (EN795)
B21: Application | D21: Span | E21: Max deflection | F21: Fmax | G21: Number of users
D22: [m] | E22: [m] | F22: [kN]
B23: =IF(VLOOKUP(E12,AA100:AB107,2,FALSE)="WALL","HORIZONTAL/WALL","HORIZONTAL") -> HORIZONTAL | D23: =+MaxSpan ->  | E23: =IF(E11=AK7,VLOOKUP(VLOOKUP(E12,AA100:AB107,2,FALSE),AA122:AE123,4,FALSE),VLOOKUP(VLOOKUP(E12,AA100:AB107,2,FALSE),AA111:AE113,4,FALSE)) -> 3.26 | F23: =IF(E11=AK7,VLOOKUP(VLOOKUP(E12,AA100:AB107,2,FALSE),AA122:AE123,3,FALSE),VLOOKUP(VLOOKUP(E12,AA100:AB107,2,FALSE),AA111:AE113,3,FALSE)) -> 16.5 | G23: =IF(E11=AK7,VLOOKUP(VLOOKUP(E12,AA100:AB107,2,FALSE),AA122:AE123,5,FALSE),VLOOKUP(VLOOKUP(E12,AA100:AB107,2,FALSE),AA111:AE113,5,FALSE)) -> 4
B24: =IF(VLOOKUP(E12,AA100:AB107,2,FALSE)="WALL","HORIZONTAL/WALL","HORIZONTAL") -> HORIZONTAL | D24: =IF(E11=AK7,VLOOKUP(VLOOKUP(E12,AA100:AB107,2,FALSE),AG122:AK123,2,FALSE),VLOOKUP(VLOOKUP(E12,AA100:AB107,2,FALSE),AG111:AK113,2,FALSE)) -> 2.0 | E24: =IF(E11=AK7,VLOOKUP(VLOOKUP(E12,AA100:AB107,2,FALSE),AG122:AK123,4,FALSE),VLOOKUP(VLOOKUP(E12,AA100:AB107,2,FALSE),AG111:AK113,4,FALSE)) -> 1.26 | F24: =IF(E11=AK7,VLOOKUP(VLOOKUP(E12,AA100:AB107,2,FALSE),AG122:AK123,3,FALSE),VLOOKUP(VLOOKUP(E12,AA100:AB107,2,FALSE),AG111:AK113,3,FALSE)) -> 8.2 | G24: =IF(E11=AK7,VLOOKUP(VLOOKUP(E12,AA100:AB107,2,FALSE),AG122:AK123,5,FALSE),VLOOKUP(VLOOKUP(E12,AA100:AB107,2,FALSE),AG111:AK113,5,FALSE)) -> 4
C31: GEOMETRY OF THE LIFELINE
E33: X | F33: Y
C34: First Point | E34: 0.00 | F34: 0.00 | G34: m
C36: Total length | E36: =+TotLung -> 0.0 | F36: m
C38: Draw your lifeline system via table 1
B39: It is not recommended to have a lifeline with angles of less than 90°. In such cases, it is recommended to split the lifeline at that point. | O39: num anc int
O40: NON CANCELLARE NE SPOSTARE
B41: Table 1 - Vector Input | O41: =MAX(B43:B96,J43:J96) -> 7 | AD41: # operatori | AE41: carico | AL41: Fx | AM41: Fy | AN41: angolo inclinazione forza
B42: From | C42: To | D42: Direction | E42: Length | F42: Angle ° | AB42: Length | AD42: numero | AE42: kN | AF42: invertire il segno della forza? | AG42: check | AH42: ANCORAGGIO | AI42: campata | AJ42: check | AK42: DISSIPATORE | AL42: kN | AM42: kN | AN42: gradi | AP42: X | AQ42: Y
B43: 1 | C43: 2 | D43: > | E43: 10.00 | O43: =IF(AND(OR(K43<>"", L43<>""), OR(D43<>"", E43<>"")), "! ! ! Do not fill both tables", "") ->  | P43: =IF(O43="",0,1) -> 0 | R43: Nome grafico linea indeformata: | AB43: =IF(F290=0,"",F290) ->  | AD43: =IF(IF(AI43=$E$100,1,0)=1, $E$18,0) -> 0 | AE43: =VLOOKUP(AD43,$Z$4:$AA$11,2,)*IF(AF43="Y",-1,1) -> 0 | AF43: =IF(AND($E$18="user",$H$18<0),"Y","N") -> N | AG43: =IF(AND(OR(D43="",E43=""),OR(K43="",L43=""),AD43<>0),"The span where the force has been placed do not exist ! ! !","ok") -> ok | AH43: =$E$12 -> TOWER | AI43: 1 | AJ43: =IF(AG43="ok",0,1) -> 0 | AK43: SPEAR2/SPEAR | AL43: =ROUND(AE43*SIN(90*PI()/180+ATAN(1/IF(G290-G289=0,(H290-H289)/(G290-G289+0.00001),IF(H290=0,(H290+0.00001-H289)/(G290-G289),IF(G290=0,(H290-H289)/(G290+0.00001-G289),IF(H290-H289=0, (H290-H289+0.00001)/(G290-G289), (H290-H289)/(G290-G289))))))),2) -> 0.00 | AM43: =ROUND(AE43*COS(90*PI()/180+ATAN(1/IF(G290-G289=0,(H290-H289)/(G290-G289+0.00001), IF(H290=0,(H290+0.00001-H289)/(G290-G289),IF(G290=0,(H290-H289)/(G290+0.00001-G289),IF(H290-H289=0,(H290-H289+0.00001)/(G290-G289),(H290-H289)/(G290-G289))))))),2) -> 0.00 | AN43: =DEGREES(IF(AND(AL43>0,AM43>=0),ATAN(ABS(AM43/AL43)),IF(AND(AL43>0,AM43<0),-PI()/2+ATAN(ABS(AM43/AL43)),IF(AND(AL43<0,AM43>0),PI()/2+ATAN(ABS(AM43/AL43)),IF(AND(AL43<0,AM43<=0),PI()+ATAN(ABS(AM43/AL43)),IF(AND(AL43=0,AM43>0),0.5*PI(),IF(AND(AL43=0,AM43<0),-0.5*PI(),"Fx et Fy = ?"))))))) ->  | AP43: =(SupLL!G290+SupLL!G289)/2 -> 5.0 | AQ43: =(SupLL!H290+SupLL!H289)/2 -> 0.0
B44: =IF(OR(D43<>"",D43<>"End"),IF(AND(E43="",D43=""),IF(B43<10, +C43, 0),+C43),0) -> 2 | C44: =IF(D44="Loop",$B$43,IF(OR(D44<>"",E44<>"",AND(C43<10,ROW(C43)<48)),C43+1,0)) -> 3 | D44: Λ | E44: 5.00 | O44: =IF(AND(OR(K44<>"", L44<>""), OR(D44<>"", E44<>"")), "! ! ! Do not fill both tables", "") ->  | P44: =IF(O44="",0,1) -> 0 | R44: Indeformata | AD44: 0 | AE44: 0 | AF44: N | AG44: ok | AH44: =$E$12 -> TOWER | AI44: 2 | AJ44: =IF(AG44="ok",0,1) -> 0 | AL44: 0.00 | AM44: 0.00 | AP44: =(SupLL!G291+SupLL!G290)/2 -> 10.0 | AQ44: =(SupLL!H291+SupLL!H290)/2 -> 2.5
B45: 3 | C45: 4 | D45: > | E45: 6.00 | P45: 0 | AD45: 0 | AE45: 0 | AF45: N | AG45: ok | AH45: TOWER | AI45: 3 | AJ45: 0 | AL45: 0.00 | AM45: 0.00 | AP45: =(SupLL!G292+SupLL!G291)/2 -> 13.0 | AQ45: =(SupLL!H292+SupLL!H291)/2 -> 5.0
B46: 4 | C46: 5 | D46: V | E46: 10.00 | P46: 0 | AD46: 0 | AE46: 0 | AF46: N | AG46: ok | AH46: TOWER | AI46: 4 | AJ46: 0 | AL46: 0.00 | AM46: 0.00 | AP46: =(SupLL!G293+SupLL!G292)/2 -> 16.0 | AQ46: =(SupLL!H293+SupLL!H292)/2 -> 0.0
B47: 5 | C47: 6 | D47: < | E47: 12.50 | P47: 0 | AD47: 0 | AE47: 0 | AF47: N | AG47: ok | AH47: TOWER | AI47: 5 | AJ47: 0 | AL47: 0.00 | AM47: 0.00 | AP47: =(SupLL!G294+SupLL!G293)/2 -> 9.8 | AQ47: =(SupLL!H294+SupLL!H293)/2 -> -5.0
B48: 6 | C48: 7 | P48: 0 | AD48: 0 | AE48: 0 | AF48: N | AG48: ok | AH48: TOWER | AI48: 6 | AJ48: 0 | AP48: =(SupLL!G295+SupLL!G294)/2 -> 3.5 | AQ48: =(SupLL!H295+SupLL!H294)/2 -> -5.0
B49: 7 | C49: 0 | P49: 0 | AD49: 0 | AE49: 0 | AF49: N | AG49: ok | AH49: TOWER | AI49: 7 | AJ49: 0 | AP49: =(SupLL!G296+SupLL!G295)/2 -> 3.5 | AQ49: =(SupLL!H296+SupLL!H295)/2 -> -5.0
B50: 0 | C50: 0 | P50: 0 | AD50: 0 | AE50: 0 | AF50: N | AG50: ok | AH50: TOWER | AI50: 8 | AJ50: 0 | AP50: =(SupLL!G297+SupLL!G296)/2 -> 3.5 | AQ50: =(SupLL!H297+SupLL!H296)/2 -> -5.0
B51: 0 | C51: 0 | P51: 0 | AD51: 0 | AE51: 0 | AF51: N | AG51: ok | AH51: TOWER | AI51: 9 | AJ51: 0 | AP51: =(SupLL!G298+SupLL!G297)/2 -> 3.5 | AQ51: =(SupLL!H298+SupLL!H297)/2 -> -5.0
B52: 0 | C52: 0 | P52: 0 | AD52: 0 | AE52: 0 | AF52: N | AG52: ok | AH52: TOWER | AI52: 10 | AJ52: 0 | AP52: =(SupLL!G299+SupLL!G298)/2 -> 3.5 | AQ52: =(SupLL!H299+SupLL!H298)/2 -> -5.0
B53: 0 | C53: 0 | P53: 0 | AB53: =IF(F347=0,"",F347) ->  | AD53: 0 | AE53: 0 | AF53: N | AG53: ok | AH53: TOWER | AI53: 11 | AJ53: 0 | AP53: =(SupLL!G300+SupLL!G299)/2 -> 3.5 | AQ53: =(SupLL!H300+SupLL!H299)/2 -> -5.0
B54: 0 | C54: 0 | P54: 0 | AB54: =IF(F348=0,"",F348) -> MIN | AD54: 0 | AE54: 0 | AF54: N | AG54: ok | AH54: TOWER | AI54: 12 | AJ54: 0 | AP54: =(SupLL!G301+SupLL!G300)/2 -> 3.5 | AQ54: =(SupLL!H301+SupLL!H300)/2 -> -5.0
B55: 0 | C55: 0 | P55: 0 | AB55: =IF(F349=0,"",F349) -> MAX | AD55: 0 | AE55: 0 | AF55: N | AG55: ok | AH55: TOWER | AI55: 13 | AJ55: 0 | AP55: =(SupLL!G302+SupLL!G301)/2 -> 3.5 | AQ55: =(SupLL!H302+SupLL!H301)/2 -> -5.0
B56: 0 | C56: 0 | P56: 0 | AB56: =IF(F350=0,"",F350) ->  | AD56: 0 | AE56: 0 | AF56: N | AG56: ok | AH56: TOWER | AI56: 14 | AJ56: 0 | AP56: =(SupLL!G303+SupLL!G302)/2 -> 3.5 | AQ56: =(SupLL!H303+SupLL!H302)/2 -> -5.0
B57: 0 | C57: 0 | P57: 0 | AB57: =IF(F351=0,"",F351) ->  | AD57: 0 | AE57: 0 | AF57: N | AG57: ok | AH57: TOWER | AI57: 15 | AJ57: 0 | AP57: =(SupLL!G304+SupLL!G303)/2 -> 3.5 | AQ57: =(SupLL!H304+SupLL!H303)/2 -> -5.0
B58: 0 | C58: 0 | P58: 0 | AD58: 0 | AE58: 0 | AF58: N | AG58: ok | AH58: TOWER | AI58: 16 | AJ58: 0 | AP58: =(SupLL!G305+SupLL!G304)/2 -> 3.5 | AQ58: =(SupLL!H305+SupLL!H304)/2 -> -5.0
B59: 0 | C59: 0 | P59: 0 | AD59: 0 | AE59: 0 | AF59: N | AG59: ok | AH59: TOWER | AI59: 17 | AJ59: 0 | AP59: =(SupLL!G306+SupLL!G305)/2 -> 3.5 | AQ59: =(SupLL!H306+SupLL!H305)/2 -> -5.0
B60: 0 | C60: 0 | P60: 0 | AD60: 0 | AE60: 0 | AF60: N | AG60: ok | AH60: TOWER | AI60: 18 | AJ60: 0 | AP60: =(SupLL!G307+SupLL!G306)/2 -> 3.5 | AQ60: =(SupLL!H307+SupLL!H306)/2 -> -5.0
B61: 0 | C61: 0 | P61: 0 | AD61: 0 | AE61: 0 | AF61: N | AG61: ok | AH61: TOWER | AI61: 19 | AJ61: 0 | AP61: =(SupLL!G308+SupLL!G307)/2 -> 3.5 | AQ61: =(SupLL!H308+SupLL!H307)/2 -> -5.0
B62: 0 | C62: 0 | P62: 0 | AD62: 0 | AE62: 0 | AF62: N | AG62: ok | AH62: =AH61 -> TOWER | AI62: 20 | AJ62: 0 | AP62: =(SupLL!G309+SupLL!G308)/2 -> 3.5 | AQ62: =(SupLL!H309+SupLL!H308)/2 -> -5.0
B63: 0 | C63: 0 | P63: 0 | AD63: 0 | AE63: 0 | AF63: N | AG63: ok | AH63: TOWER | AI63: 21 | AJ63: 0 | AP63: =(SupLL!G310+SupLL!G309)/2 -> 3.5 | AQ63: =(SupLL!H310+SupLL!H309)/2 -> -5.0
B64: 0 | C64: 0 | P64: 0 | AD64: 0 | AE64: 0 | AF64: N | AG64: ok | AH64: TOWER | AI64: 22 | AJ64: 0 | AP64: =(SupLL!G311+SupLL!G310)/2 -> 3.5 | AQ64: =(SupLL!H311+SupLL!H310)/2 -> -5.0
B65: 0 | C65: 0 | P65: 0 | AD65: 0 | AE65: 0 | AF65: N | AG65: ok | AH65: TOWER | AI65: 23 | AJ65: 0 | AP65: =(SupLL!G312+SupLL!G311)/2 -> 3.5 | AQ65: =(SupLL!H312+SupLL!H311)/2 -> -5.0
B66: 0 | C66: 0 | P66: 0 | AD66: 0 | AE66: 0 | AF66: N | AG66: ok | AH66: TOWER | AI66: 24 | AJ66: 0 | AP66: =(SupLL!G313+SupLL!G312)/2 -> 3.5 | AQ66: =(SupLL!H313+SupLL!H312)/2 -> -5.0
B67: 0 | C67: 0 | P67: 0 | AD67: 0 | AE67: 0 | AF67: N | AG67: ok | AH67: TOWER | AI67: 25 | AJ67: 0 | AP67: =(SupLL!G314+SupLL!G313)/2 -> 3.5 | AQ67: =(SupLL!H314+SupLL!H313)/2 -> -5.0
B68: 0 | C68: 0 | P68: 0 | AD68: 0 | AE68: 0 | AF68: N | AG68: ok | AH68: TOWER | AI68: 26 | AJ68: 0 | AP68: =(SupLL!G315+SupLL!G314)/2 -> 3.5 | AQ68: =(SupLL!H315+SupLL!H314)/2 -> -5.0
B69: 0 | C69: 0 | P69: 0 | AD69: 0 | AE69: 0 | AF69: N | AG69: ok | AH69: TOWER | AI69: 27 | AJ69: 0 | AP69: =(SupLL!G316+SupLL!G315)/2 -> 3.5 | AQ69: =(SupLL!H316+SupLL!H315)/2 -> -5.0
B70: 0 | C70: 0 | P70: 0 | AD70: 0 | AE70: 0 | AF70: N | AG70: ok | AH70: TOWER | AI70: 28 | AJ70: 0 | AP70: =(SupLL!G317+SupLL!G316)/2 -> 3.5 | AQ70: =(SupLL!H317+SupLL!H316)/2 -> -5.0
B71: 0 | C71: 0 | P71: 0 | AD71: 0 | AE71: 0 | AF71: N | AG71: ok | AH71: TOWER | AI71: 29 | AJ71: 0 | AP71: =(SupLL!G318+SupLL!G317)/2 -> 3.5 | AQ71: =(SupLL!H318+SupLL!H317)/2 -> -5.0
B72: 0 | C72: 0 | P72: 0 | AD72: 0 | AE72: 0 | AF72: N | AG72: ok | AH72: TOWER | AI72: 30 | AJ72: 0 | AP72: =(SupLL!G319+SupLL!G318)/2 -> 3.5 | AQ72: =(SupLL!H319+SupLL!H318)/2 -> -5.0
B73: 0 | C73: 0 | P73: 0 | AD73: 0 | AE73: 0 | AF73: N | AG73: ok | AH73: TOWER | AI73: 31 | AJ73: 0 | AP73: =(SupLL!G320+SupLL!G319)/2 -> 3.5 | AQ73: =(SupLL!H320+SupLL!H319)/2 -> -5.0
B74: 0 | C74: 0 | P74: 0 | AD74: 0 | AE74: 0 | AF74: N | AG74: ok | AH74: TOWER | AI74: 32 | AJ74: 0 | AP74: =(SupLL!G321+SupLL!G320)/2 -> 3.5 | AQ74: =(SupLL!H321+SupLL!H320)/2 -> -5.0
B75: 0 | C75: 0 | P75: 0 | AD75: 0 | AE75: 0 | AF75: N | AG75: ok | AH75: TOWER | AI75: 33 | AJ75: 0 | AP75: =(SupLL!G322+SupLL!G321)/2 -> 3.5 | AQ75: =(SupLL!H322+SupLL!H321)/2 -> -5.0
B76: 0 | C76: 0 | P76: 0 | AD76: 0 | AE76: 0 | AF76: N | AG76: ok | AH76: TOWER | AI76: 34 | AJ76: 0 | AP76: =(SupLL!G323+SupLL!G322)/2 -> 3.5 | AQ76: =(SupLL!H323+SupLL!H322)/2 -> -5.0
B77: 0 | C77: 0 | P77: 0 | AD77: 0 | AE77: 0 | AF77: N | AG77: ok | AH77: TOWER | AI77: 35 | AJ77: 0 | AP77: =(SupLL!G324+SupLL!G323)/2 -> 3.5 | AQ77: =(SupLL!H324+SupLL!H323)/2 -> -5.0
B78: 0 | C78: 0 | P78: 0 | AD78: 0 | AE78: 0 | AF78: N | AG78: ok | AH78: TOWER | AI78: 36 | AJ78: 0 | AP78: =(SupLL!G325+SupLL!G324)/2 -> 3.5 | AQ78: =(SupLL!H325+SupLL!H324)/2 -> -5.0
B79: 0 | C79: 0 | P79: 0 | AD79: 0 | AE79: 0 | AF79: N | AG79: ok | AH79: TOWER | AI79: 37 | AJ79: 0 | AP79: =(SupLL!G326+SupLL!G325)/2 -> 3.5 | AQ79: =(SupLL!H326+SupLL!H325)/2 -> -5.0
B80: 0 | C80: 0 | P80: 0 | AD80: 0 | AE80: 0 | AF80: N | AG80: ok | AH80: TOWER | AI80: 38 | AJ80: 0 | AP80: =(SupLL!G327+SupLL!G326)/2 -> 3.5 | AQ80: =(SupLL!H327+SupLL!H326)/2 -> -5.0
B81: 0 | C81: 0 | P81: 0 | AD81: 0 | AE81: 0 | AF81: N | AG81: ok | AH81: TOWER | AI81: 39 | AJ81: 0 | AP81: =(SupLL!G328+SupLL!G327)/2 -> 3.5 | AQ81: =(SupLL!H328+SupLL!H327)/2 -> -5.0
B82: 0 | C82: 0 | P82: 0 | AD82: 0 | AE82: 0 | AF82: N | AG82: ok | AH82: TOWER | AI82: 40 | AJ82: 0 | AP82: =(SupLL!G329+SupLL!G328)/2 -> 3.5 | AQ82: =(SupLL!H329+SupLL!H328)/2 -> -5.0
B83: 0 | C83: 0 | P83: 0 | AD83: 0 | AE83: 0 | AF83: N | AG83: ok | AH83: TOWER | AI83: 41 | AJ83: 0 | AP83: =(SupLL!G330+SupLL!G329)/2 -> 3.5 | AQ83: =(SupLL!H330+SupLL!H329)/2 -> -5.0
B84: 0 | C84: 0 | P84: 0 | AD84: 0 | AE84: 0 | AF84: N | AG84: ok | AH84: TOWER | AI84: 42 | AJ84: 0 | AP84: =(SupLL!G331+SupLL!G330)/2 -> 3.5 | AQ84: =(SupLL!H331+SupLL!H330)/2 -> -5.0
B85: 0 | C85: 0 | P85: 0 | AD85: 0 | AE85: 0 | AF85: N | AG85: ok | AH85: TOWER | AI85: 43 | AJ85: 0 | AP85: =(SupLL!G332+SupLL!G331)/2 -> 3.5 | AQ85: =(SupLL!H332+SupLL!H331)/2 -> -5.0
B86: 0 | C86: 0 | P86: 0 | AD86: 0 | AE86: 0 | AF86: N | AG86: ok | AH86: TOWER | AI86: 44 | AJ86: 0 | AP86: =(SupLL!G333+SupLL!G332)/2 -> 3.5 | AQ86: =(SupLL!H333+SupLL!H332)/2 -> -5.0
B87: 0 | C87: 0 | P87: 0 | AD87: 0 | AE87: 0 | AF87: N | AG87: ok | AH87: TOWER | AI87: 45 | AJ87: 0 | AP87: =(SupLL!G334+SupLL!G333)/2 -> 3.5 | AQ87: =(SupLL!H334+SupLL!H333)/2 -> -5.0
B88: 0 | C88: 0 | P88: 0 | AD88: 0 | AE88: 0 | AF88: N | AG88: ok | AH88: TOWER | AI88: 46 | AJ88: 0 | AP88: =(SupLL!G335+SupLL!G334)/2 -> 3.5 | AQ88: =(SupLL!H335+SupLL!H334)/2 -> -5.0
B89: 0 | C89: 0 | P89: 0 | AD89: 0 | AE89: 0 | AF89: N | AG89: ok | AH89: TOWER | AI89: 47 | AJ89: 0 | AP89: =(SupLL!G336+SupLL!G335)/2 -> 3.5 | AQ89: =(SupLL!H336+SupLL!H335)/2 -> -5.0
B90: 0 | C90: 0 | P90: 0 | AD90: 0 | AE90: 0 | AF90: N | AG90: ok | AH90: TOWER | AI90: 48 | AJ90: 0 | AP90: =(SupLL!G337+SupLL!G336)/2 -> 3.5 | AQ90: =(SupLL!H337+SupLL!H336)/2 -> -5.0
B91: 0 | C91: 0 | P91: 0 | AD91: 0 | AE91: 0 | AF91: N | AG91: ok | AH91: TOWER | AI91: 49 | AJ91: 0 | AP91: =(SupLL!G338+SupLL!G337)/2 -> 3.5 | AQ91: =(SupLL!H338+SupLL!H337)/2 -> -5.0
B92: 0 | C92: 0 | P92: 0 | AD92: 0 | AE92: 0 | AF92: N | AG92: ok | AH92: TOWER | AI92: 50 | AJ92: 0 | AP92: =(SupLL!G339+SupLL!G338)/2 -> 3.5 | AQ92: =(SupLL!H339+SupLL!H338)/2 -> -5.0
B93: 0 | C93: 0 | P93: 0 | AD93: 0 | AE93: 0 | AF93: N | AG93: ok | AH93: TOWER | AI93: 51 | AJ93: 0 | AP93: =(SupLL!G340+SupLL!G339)/2 -> 3.5 | AQ93: =(SupLL!H340+SupLL!H339)/2 -> -5.0
B94: 0 | C94: 0 | P94: 0 | AD94: 0 | AE94: 0 | AF94: N | AG94: ok | AH94: TOWER | AI94: 52 | AJ94: 0 | AP94: =(SupLL!G341+SupLL!G340)/2 -> 3.5 | AQ94: =(SupLL!H341+SupLL!H340)/2 -> -5.0
B95: 0 | C95: 0 | P95: 0 | AD95: 0 | AE95: 0 | AF95: N | AG95: ok | AH95: TOWER | AI95: 53 | AJ95: 0 | AP95: =(SupLL!G342+SupLL!G341)/2 -> 3.5 | AQ95: =(SupLL!H342+SupLL!H341)/2 -> -5.0
B96: 0 | C96: 0 | P96: 0 | AG96: ok | AH96: TOWER | AI96: 54 | AJ96: 0
AI97: 55
B99: Max length span | D99: [m] | E99: =MAX(E43:E96) -> 12.50 | R99: deflection | S99: =IF((IF(ProjSpan=MaxSpan,MaxDef,IF(ProjSpan=MinSpan,MinDef,_xlfn.FORECAST.LINEAR(ProjSpan,DefDB,SpanDB)+IF(AND(ProjSpan>MinSpan,ProjSpan<MaxSpan),0.1,0))))>MaxDef,MaxDef,IF(ProjSpan=MaxSpan,MaxDef,IF(ProjSpan=MinSpan,MinDef,_xlfn.FORECAST.LINEAR(ProjSpan,DefDB,SpanDB)+IF(AND(ProjSpan>MinSpan,ProjSpan<MaxSpan),0.1,0)))) ->  | T99: m
B100: Load applied on span | E100: =VLOOKUP(MATCH(MAX(E43:E96),E43:E96,0),B43:C96,1,FALSE)&" - "&VLOOKUP(MATCH(MAX(E43:E96),E43:E96,0),B43:C96,2,FALSE) -> 5 - 6 | AA100: TOWER300 | AB100: TOWER
O101: Length | P101: =+TotLung -> 0.0 | Q101: m | R101: E rope | S101: 109000 | T101: N/mmq | AA101: TOWER400 | AB101: TOWER
O102: A rope | P102: =PI()*4^2 -> 50.26548246 | Q102: mmq | AA102: TOWER500 | AB102: TOWER
B103: Reaction on anchor elements of the multi-span rope | O103: F Ed | P103: =+Calculator!G111 ->  | Q103: kN | R103: Delta l | S103: =(P103*1000*P101*1000)/(P102*S101) ->  | T103: mm | U103: PATROL + TOWER + SPEAR | W103: [4UTENTI] | AA103: TOWER | AB103: TOWER
B104: Element | D104: Intermediate | G104: Terminal | J104: Curve | R104: Delta def | S104: =S103*SIN(RADIANS(P105)) ->  | T104: mm | U104: CAMPATA (M) | V104: FORZA MASSIMA AL TERMINALE (KN) | W104: FRECCIA CENTRO CAMPATA (M) | AA104: PATROLEND | AB104: WALL | AO104: h | AP104: l
D105: F1 [kN] | E105: F2 [kN] | F105: Module [kN] | G105: F1 [kN] | H105: F2 [kN] | I105: Module [kN] | J105: F1 [kN] | K105: F2 [kN] | L105: Module [kN] | O105: teta | P105: =DEGREES(ATAN((2*S99)/ProjSpan)) ->  | U105: 15 | V105: 16.5 | W105: 3.26 | AA105: PATROL OVERHEAD | AB105: WALL | AP105: 2 | AQ105: 6 | AR105: 8 | AS105: 10 | AT105: 12 | AU105: 15
B106: anchors at the loaded span | D106: =P107 ->  | E106: =P106 ->  | F106: =_xlfn.FORECAST.LINEAR(E99,F23:F24,D23:D24) ->  | G106: =P107 ->  | H106: =P106 ->  | I106: =_xlfn.FORECAST.LINEAR(E99,F23:F24,D23:D24) ->  | J106: =VLOOKUP(BH348,BH290:BJ344,2,FALSE) ->  | K106: =VLOOKUP(BH348,BH290:BJ344,3,FALSE) ->  | L106: =BH348 ->  | O106: fy - f2 | P106: =P103*SIN(RADIANS(P105)) ->  | S106: =+ROUND(S103/1000,2) ->  | U106: 2 | V106: 8.2 | W106: 1.26 | AA106: PATROL ON WALL | AB106: WALL | AN106: tower300 | AO106: 300 | AP106: 1.26 | AQ106: 1.55 | AR106: 1.77 | AS106: 1.97 | AT106: 2.15 | AU106: 2.4
B107: anchors at the unloaded span | D107: 0.0 | E107: 0.0 | F107: 0.0 | G107: =_xlfn.FORECAST.LINEAR(E99,F23:F24,D23:D24) ->  | H107: 0.0 | I107: =G107 ->  | O107: fx - f1 | P107: =P103*COS(RADIANS(P105)) ->  | U107: PATROL + SHIELD + SPEAR | W107: [2UTENTI] | AA107: SHIELD | SHIELD2 | AB107: SHIELD | AN107: tower400 | AO107: 400
U108: CAMPATA (M) | V108: FORZA MASSIMA AL TERMINALE (KN) | W108: FRECCIA CENTRO CAMPATA (M) | AN108: tower500 | AO108: 500
U109: 7.5 | V109: 17.1 | W109: 1.44 | AA109: MAX | AG109: MIN | AN109: tower600 | AO109: 600 | AP109: 1.33 | AQ109: 2.1 | AR109: 2.4 | AS109: 2.66 | AT109: 2.9 | AU109: 3.26
P110: anchors at the loaded span | U110: 2 | V110: 12.5 | W110: 0.62 | AB110: CAMPATA (M) | AC110: FORZA MASSIMA AL TERMINALE (KN) | AD110: FRECCIA CENTRO CAMPATA (M) | AE110: users | AH110: CAMPATA (M) | AI110: FORZA MASSIMA AL TERMINALE (KN) | AJ110: FRECCIA CENTRO CAMPATA (M) | AK110: users
B111: Max design load | E111: [kN] | F111: =MAX(F106:F107,I106:I107,L106) ->  | P111: anchors not at the loaded span | U111: PATROL + VERTICALE/ORIZZONTALE + SPEAR | W111: [4UTENTI] | AA111: TOWER | AB111: 15 | AC111: 16.5 | AD111: 3.26 | AE111: 4 | AG111: TOWER | AH111: =U106 -> 2 | AI111: =V106 -> 8.2 | AJ111: =W106 -> 1.26 | AK111: 4 | AQ111: 6 | AR111: 8 | AS111: 10 | AT111: 12
P112: corner anchors | U112: CAMPATA (M) | V112: FORZA MASSIMA AL TERMINALE (KN) | W112: FRECCIA CENTRO CAMPATA (M) | AA112: SHIELD | AB112: 7.5 | AC112: 17.1 | AD112: 1.44 | AE112: 2 | AG112: SHIELD | AH112: =U110 -> 2 | AI112: =V110 -> 12.5 | AJ112: =W110 -> 0.62 | AK112: 2 | AN112: 2 | AO112: 1.26 | AQ112: =_xlfn.FORECAST.LINEAR(AQ111,$AO$112:$AO$113,$AN$112:$AN$113) -> 1.610769231 | AR112: =_xlfn.FORECAST.LINEAR(AR111,$AO$112:$AO$113,$AN$112:$AN$113) -> 1.786153846 | AS112: =_xlfn.FORECAST.LINEAR(AS111,$AO$112:$AO$113,$AN$112:$AN$113) -> 1.961538462 | AT112: =_xlfn.FORECAST.LINEAR(AT111,$AO$112:$AO$113,$AN$112:$AN$113) -> 2.136923077
B113: Span rope deflection with respect to joining end constraints | U113: 7.5 | V113: 18.1 | W113: 1.3 | AA113: WALL | AB113: 7.5 | AC113: 18.1 | AD113: 1.3 | AE113: 4 | AG113: WALL | AH113: =U114 -> 2 | AI113: =V114 -> 14.2 | AJ113: =W114 -> 0.55 | AK113: 4 | AN113: 15 | AO113: 2.4 | AQ113: =AQ112-AQ106 -> 0.06076923077 | AR113: =AR112-AR106 -> 0.01615384615 | AS113: =AS112-AS106 -> -0.008461538462 | AT113: =AT112-AT106 -> -0.01307692308
B114: Span | D114: Deflection [m] | F114: =S106&" m for rope elongation already considered" ->  | U114: 2 | V114: 14.2 | W114: 0.55 | AQ114: 6 | AR114: 8 | AS114: 10 | AT114: 12
B115: =VLOOKUP(MATCH(MAX(E43:E96),E43:E96,0),B43:C96,1,FALSE)&" - "&VLOOKUP(MATCH(MAX(E43:E96),E43:E96,0),B43:C96,2,FALSE) -> 5 - 6 | D115: =IF(E36<=D23,S99,S99+S104/1000) ->  | AN115: 2 | AO115: 1.33 | AQ115: =_xlfn.FORECAST.LINEAR(AQ114,$AO$115:$AO$118,$AN$115:$AN$118) -> 1.923846154 | AR115: =_xlfn.FORECAST.LINEAR(AR114,$AO$115:$AO$118,$AN$115:$AN$118) -> 2.220769231 | AS115: =_xlfn.FORECAST.LINEAR(AS114,$AO$115:$AO$118,$AN$115:$AN$118) -> 2.517692308 | AT115: =_xlfn.FORECAST.LINEAR(AT114,$AO$115:$AO$118,$AN$115:$AN$118) -> 2.814615385
AF117: usati nei calcoli di interpolazione
AN118: 15 | AO118: 3.26 | AQ118: =AQ115-AQ109 -> -0.1761538462 | AR118: =AR115-AR109 -> -0.1792307692 | AS118: =AS115-AS109 -> -0.1423076923 | AT118: =AT115-AT109 -> -0.08538461538
U119: PATROL + PATROLEND/PAREND + SPEAREVO | W119: [4UTENTI]
U120: CAMPATA (M) | V120: FORZA MASSIMA AL TERMINALE (KN) | W120: FRECCIA CENTRO CAMPATA (M)
B121: NOTES | U121: 15 | V121: 14 | W121: 3.4 | AB121: CAMPATA (M) | AC121: FORZA MASSIMA AL TERMINALE (KN) | AD121: FRECCIA CENTRO CAMPATA (M) | AH121: CAMPATA (M) | AI121: FORZA MASSIMA AL TERMINALE (KN) | AJ121: FRECCIA CENTRO CAMPATA (M)
B122: Fixings and anchors must be the same in all anchor points. | U122: PATROL + SHIELD + SPEAREVO | W122: [4UTENTI] | AA122: WALL | AB122: 15 | AC122: 14 | AD122: 3.4 | AE122: 4 | AG122: WALL | AH122: 2 | AI122: 5.7 | AJ122: 1.35 | AK122: 4
B123: Before the construction, all calculation must be verified and approved by the responsible designer. | U123: CAMPATA (M) | V123: FORZA MASSIMA AL TERMINALE (KN) | W123: FRECCIA CENTRO CAMPATA (M) | AA123: SHIELD | AB123: 15 | AC123: 13.7 | AD123: 3.4 | AE123: 4 | AG123: SHIELD | AH123: 2 | AI123: 5.7 | AJ123: 1.35 | AK123: 4
B124: Mechanical resistance values and geometry refer to product certification. | U124: 15 | V124: 13.7 | W124: 3.4
B125: Verification of anchoring systems resistance must be realized apart.
B126: All calculations must be verified and approved by the responsible designer prior to execution. The designer are responsible to verify, at each use, the conformity of the data to the regulations in force and to the project. The ultimate responsibility for choosing the appropriate product for a specific application lies with the designer.
B127: The results obtained in this sheet are of an indicative nature and should be considered as a technical-commercial service within the Rotho Blaas srl sales activity. The number and thickness of the inserts must be determined by the responsible designer who is required to check the accuracy of the results deriving from the processing of the data entered. Rotho Blaas srl does not guarantee compliance with current legislation and the design of the calculations made through this spreadsheet. In particular, following the amendment of the pertinent provisions such as, for example standards, approvals, etc. the program may become, in part or in whole, invalid. Rotho Blaas srl does not guarantee and will not be responsible for direct or indirect damages or consequences or other, in any way (warranty for defects, warranty for malfunction, product or legal responsibility, etc.). The User declares to use the spreadsheet as a professional with the obligation and responsibility to verify that the spreadsheet meets his specific needs.
S192: ctrl-X
S193: Coordinate nodi deformata fune MULTICAMPATA
S194: Nodi | T194: X [m] | U194: Y [m]
S195: V_SX | T195: 0.00000 | U195: 0.00000
S196: A | T196: 0.03000 | U196: 0.00000
S197: tend A | T197: 0.28500 | U197: 0.00000
S198: N0 | T198: 0.44000 | U198: 0.00000 | X198: =IF(AND(Y199=0,Z199=0), 1, 0) -> 0 | Y198: =IF(AND(T198=0,U198=0), 0,T195) -> 0 | Z198: =IF(AND(T198=0,U198=0), 0,U195) -> 0 | AA198: V_SX
S199: N1 | T199: 7.00000 | U199: 0.00000 | X199: =IF(AND(Y200=0,Z200=0), 1, 0) -> 0 | Y199: =IF(AND(T199=0,U199=0),NA(),T196) -> 0.02999999933 | Z199: =IF(AND(T199=0,U199=0), NA(),U196) -> 0 | AA199: A
S200: N2 | T200: 7.00000 | U200: -7.00000 | X200: 0 | Y200: =IF(AND(T200=0,U200=0),NA(),T197) -> 0.2849999964 | Z200: =IF(AND(T200=0,U200=0), NA(),U197) -> 0 | AA200: tend A
S201: N3 | T201: -5.19700 | U201: -7.00000 | X201: 0 | Y201: 0.4399999976 | Z201: 0 | AA201: N0
S202: N4 | T202: -17.39400 | U202: -7.00000 | X202: 0 | Y202: 7 | Z202: 0 | AA202: N1
S203: N5 | T203: -20.54400 | U203: 0.50000 | X203: 0 | Y203: 7 | Z203: -7 | AA203: N2
S204: N6 | T204: -17.39400 | U204: 8.00000 | X204: 0 | Y204: -5.197000027 | Z204: -7 | AA204: N3
S205: N7 | T205: -11.40000 | U205: 8.00000 | X205: 0 | Y205: -17.3939991 | Z205: -7 | AA205: N4
S206: N8 | T206: -11.40000 | U206: 2.18000 | X206: 0 | Y206: -20.54400063 | Z206: 0.5 | AA206: N5
S207: N9 | T207: -11.40000 | U207: 2.59000 | X207: 0 | Y207: -17.3939991 | Z207: 8 | AA207: N6
S208: N10 | T208: -11.40000 | U208: 2.43500 | Y208: -11.39999962 | Z208: 8 | AA208: N7 | AB208: 14.40100002 | AC208: -0.5799999833
S209: N11 | AA209: N8 | AB209: 15 | AC209: 0
S210: N12 | AA210: N9 | AB210: 4.5 | AC210: 0.2840000093
S211: N13 | AA211: N10 | AB211: 4.5 | AC211: 0.02899999917
S212: N14 | AA212: N11 | AB212: 4.5 | AC212: 0
S213: N15 | AA213: N12 | AB213: -15.38700008 | AC213: 41.19900131
S214: N16 | AA214: N13 | AB214: -11.39999962 | AC214: 2.434999943
S215: N17 | AA215: N14 | AB215: -11.39999962 | AC215: 2.180000067
S216: N18 | AA216: N15 | AB216: -11.39999962 | AC216: 2.150000095
S217: N19 | T217: 0.00000 | U217: 0.00000 | AA217: N16 | AB217: 0 | AC217: -0.2840000093
S218: N20 | T218: 0.00000 | U218: 0.00000 | AA218: N17 | AB218: 0 | AC218: -0.02899999917 | AD218: N_last point
S219: N21 | T219: 0.00000 | U219: 0.00000 | AA219: N18 | AB219: 0 | AC219: 0 | AD219: tend B
S220: N22 | T220: 0.00000 | U220: 0.00000 | AA220: N19 | AB220: -5.416999817 | AC220: -10.24199963 | AD220: B
S221: N23 | T221: 0.00000 | U221: 0.00000 | X221: =_xlfn.IFNA(1, IF(AND(Y222=0,Z222=0), 1, 0)) -> 1 | AA221: N20 | AB221: -5.420000076 | AC221: -10.53499985 | AD221: V_DX
S222: N24 | T222: 0.00000 | U222: 0.00000 | X222: 1 | AA222: N21
S223: N25 | T223: 0.00000 | U223: 0.00000 | X223: 1 | AA223: N22
S224: N26 | T224: 0.00000 | U224: 0.00000 | X224: 1 | AA224: N23
S225: N27 | T225: 0.00000 | U225: 0.00000 | X225: 1 | AA225: N24
S226: N28 | T226: 0.00000 | U226: 0.00000 | X226: 1 | AA226: N25
S227: N29 | T227: 0.00000 | U227: 0.00000 | X227: 1 | AA227: N26
S228: N30 | T228: 0.00000 | U228: 0.00000 | X228: 1 | AA228: N27
S229: N31 | T229: 0.00000 | U229: 0.00000 | X229: 1 | AA229: N28
S230: N32 | T230: 0.00000 | U230: 0.00000 | X230: 1 | AA230: N29
S231: N33 | T231: 0.00000 | U231: 0.00000 | X231: 1 | AA231: N30
S232: N34 | T232: 0.00000 | U232: 0.00000 | X232: 1 | AA232: N31
S233: N35 | T233: 0.00000 | U233: 0.00000 | X233: 1 | AA233: N32
S234: N36 | T234: 0.00000 | U234: 0.00000 | X234: 1 | AA234: N33
S235: N37 | T235: 0.00000 | U235: 0.00000 | X235: 1 | AA235: N34
S236: N38 | T236: 0.00000 | U236: 0.00000 | X236: 1 | AA236: N35
S237: N39 | T237: 0.00000 | U237: 0.00000 | X237: 1 | AA237: N36
S238: N40 | T238: 0.00000 | U238: 0.00000 | X238: 1 | AA238: N37
S239: N41 | T239: 0.00000 | U239: 0.00000 | X239: 1 | AA239: N38
S240: N42 | T240: 0.00000 | U240: 0.00000 | X240: 1 | AA240: N39
S241: N43 | T241: 0.00000 | U241: 0.00000 | X241: 1 | AA241: N40
S242: N44 | T242: 0.00000 | U242: 0.00000 | X242: 1 | AA242: N41
S243: N45 | T243: 0.00000 | U243: 0.00000 | X243: 1 | AA243: N42
S244: N46 | T244: 0.00000 | U244: 0.00000 | X244: 1 | AA244: N43
S245: N47 | T245: 0.00000 | U245: 0.00000 | X245: 1 | AA245: N44
S246: N48 | T246: 0.00000 | U246: 0.00000 | X246: 1 | AA246: N45
S247: N49 | T247: 0.00000 | U247: 0.00000 | X247: 1 | AA247: N46
S248: N50 | T248: 0.00000 | U248: 0.00000 | X248: 1 | AA248: N47
S249: N51 | T249: 0.00000 | U249: 0.00000 | X249: 1 | AA249: N48
S250: N52 | T250: 0.00000 | U250: 0.00000 | X250: 1 | AA250: N49
S251: N53 | T251: 0.00000 | U251: 0.00000 | X251: 1 | AA251: N50
S252: N54 | T252: 0.00000 | U252: 0.00000 | X252: 1 | AA252: N51
S253: N55 | T253: 0.00000 | U253: 0.00000 | X253: 1 | AA253: N52
S254: N56 | T254: 0.00000 | U254: 0.00000 | X254: 1 | AA254: N53
S255: N57 | T255: 0.00000 | U255: 0.00000 | X255: 1 | AA255: N54
S256: tend B | T256: 0.00000 | U256: 0.00000 | X256: 1 | AA256: N55
S257: B | T257: 0.00000 | U257: 0.00000 | X257: 1 | AA257: N56
S258: V_DX | T258: 0.00000 | U258: 0.00000 | X258: 1 | AA258: N57
B282: =+"Posizione Supporto 1" -> Posizione Supporto 1
C283: =+IF(E34="",0,E34) -> 0 | D283: =+IF(F34="",0,F34) -> 0
P284: x | Q284: Y | T284: x/4 | U284: Y/4
B285: Supporti Principali | K285: interasse | O285: Min | P285: =+MIN(G289:G365)-1 -> -1.00 | Q285: =(MIN(H289:H365))-1 -> -6.00 | R285: =+Q285*Q288 -> -9 | T285: =P285/4 -> -0.25 | U285: =R285/4 -> -2.25
B286: =+MAX(B289:B344,B345:B365) -> 6 | D286: aggiornare formule se inserisco tramite coordinate | K286: 15 | O286: Max | P286: =+MAX(G289:G365)+1 -> 17.00 | Q286: =+MAX(H289:H365)+1 -> 6.00 | R286: =+Q286*Q288 -> 9 | T286: =P286/4 -> 4.25 | U286: =R286/4 -> 2.25
B287: Supporto | M287: Somma Int | P287: =+P286-P285 -> 18.00 | Q287: =+Q286-Q285 -> 12.00
B288: Partenza | D288: Lunghezza | E288: Angolo(°) | F288: Misura | G288: X | H288: Y | M288: =+SUM(M290:M344) -> 0 | Q288: =+P287/Q287 -> 1.5 | BB288: Fmax interpolazione | BC288: Fx | BD288: Fy | BE288: Ftot | BG288: PUNTO DI ANGOLO | BH288: carico punti spigolosi | BI288: F1 | BJ288: F2
B289: 1 | C289: Direzione | E289: 0 | F289: =+IF(C289="Loop",SQRT((G289-G288)^2+(H289-H288)^2),0) -> 0.00 | G289: =+C283 -> 0.00 | H289: =+D283 -> 0.00 | I289: Sen | J289: Cos | K289: Intermedi | L289: Inter. Loop | M289: Intermedi | N289: Distanza Int | O289: ANCORAGGIO | P289: DISSIPATORE | Q289: nome curva CC | R289: nome curva CC | BB289: kN | BC289: kN | BD289: kN | BE289: kN | BG289: [] | BH289: kn | BI289: kn | BJ289: kn
B290: =IF(OR(J43=0,AND(K43="",L43="")), +IF(C290="Loop",$B$289,IF(C290<>"",B289+1,"")),J43) -> 2 | C290: =IF(D43="","",D43) -> > | D290: =IF(E43="",0,E43) -> 10.00 | E290: =IF(C290=">",0,IF(C290="<",180,IF(C290="V",270,IF(C290="Λ",90,F43)))) -> 0 | F290: 0.00 | G290: =IF(K43="", _xlfn.IFS($C290="Angle",(D290*I290)+G289,$C290="Loop",$G$289,$C290="",G289,$C290="End",G289,$C290=">",G289+D290,$C290="<",G289-D290,OR($C290="Λ",$C290="V"),G289), K43) -> 10.00 | H290: =IF(L43="",_xlfn.IFS($C290="Angle",(D290*J290)+H289,$C290="Loop",$H$289,$C290="",H289,$C290="End",H289,$C290="Λ",H289+D290,$C290="V",H289-D290,OR($C290="<",$C290=">"),H289),L43) -> 0.00 | I290: =+COS(RADIANS(E290)) -> 1.0000 | J290: =SIN(RADIANS(E290)) -> 0.0000 | K290: =+IF(OR(D290=0,D290=""),"",IF(MOD(D290,$K$286),_xlfn.FLOOR.MATH(D290/$K$286),_xlfn.FLOOR.MATH(D290/$K$286)-1)) -> 0 | L290: =+IF(OR(F290=0,F290=""),"",IF(MOD(F290,$K$286),_xlfn.FLOOR.MATH(F290/$K$286),_xlfn.FLOOR.MATH(F290/$K$286)-1)) ->  | M290: =+MAX(K290:L290) -> 0 | N290: =IF(AND(D290=0,F290=0),0,IF(D290<>0,D290/(M290+1),F290/(M290+1))) -> 10.00 | O290: =IF(B290="", O289, AH43) -> TOWER | P290: =IF(B290="", P289, AK43) -> SPEAR2/SPEAR | Q290: =VLOOKUP(O290,$AG$5:$AH$12,2,) -> TOWER600.txt | R290: =VLOOKUP(P290,$W$5:$X$8,2,) -> SPEAR_SPEAR2.txt | BB290: =IF(AND(C290="",C291=""),0,_xlfn.FORECAST.LINEAR($E$99,$F$23:$F$24,$D$23:$D$24)) ->  | BC290: =BB290*(COS(RADIANS(E291))-COS(RADIANS(E290))) ->  | BD290: =BB290*(SIN(RADIANS(E291))-SIN(RADIANS(E290))) ->  | BE290: =IF(AND(C290="",C291=""),0,IF(C291="",BB290,IF(SQRT(BC290^2+BD290^2)>BB290*SQRT(2),BB290*SQRT(2),SQRT(BC290^2+BD290^2)))) ->  | BG290: =IF(C291="",0,IF(OR(AND(G290-G289=0,G291-G290=0),AND(H290-H289=0,H291-H290=0)),0,1)) -> 1 | BH290: =IF(BG290=1,BE290,0) ->  | BI290: =IF(BH290=0,0,IF(SQRT(BC290^2+BD290^2)>BB290*SQRT(2),BB290,BC290)) ->  | BJ290: =IF(BH290=0,0,IF(SQRT(BC290^2+BD290^2)>BB290*SQRT(2),BB290,BD290)) -> 
B291: 3 | C291: Λ | D291: 5.00 | E291: =IF(C291=">",0,IF(C291="<",180,IF(C291="V",270,IF(C291="Λ",90,F44)))) -> 90 | F291: 0.00 | G291: =IF(K44="", _xlfn.IFS($C291="Angle",(D291*I291)+G290,$C291="Loop",$G$289,$C291="",G290,$C291="End",G290,$C291=">",G290+D291,$C291="<",G290-D291,OR($C291="Λ",$C291="V"),G290), K44) -> 10.00 | H291: =IF(L44="",_xlfn.IFS($C291="Angle",(D291*J291)+H290,$C291="Loop",$H$289,$C291="",H290,$C291="End",H290,$C291="Λ",H290+D291,$C291="V",H290-D291,OR($C291="<",$C291=">"),H290),L44) -> 5.00 | I291: 0.0000 | J291: 1.0000 | K291: 0 | M291: =+MAX(K291:L291) -> 0 | N291: =IF(AND(D291=0,F291=0),0,IF(D291<>0,D291/(M291+1),F291/(M291+1))) -> 5.00 | O291: TOWER | Q291: TOWER600.txt | BC291: =BB291*(COS(RADIANS(E292))-COS(RADIANS(E291))) ->  | BD291: =BB291*(SIN(RADIANS(E292))-SIN(RADIANS(E291))) ->  | BE291: =IF(AND(C291="",C292=""),0,IF(C292="",BB291,IF(SQRT(BC291^2+BD291^2)>BB291*SQRT(2),BB291*SQRT(2),SQRT(BC291^2+BD291^2)))) ->  | BG291: =IF(C292="",0,IF(OR(AND(G291-G290=0,G292-G291=0),AND(H291-H290=0,H292-H291=0)),0,1)) -> 1 | BH291: =IF(BG291=1,BE291,0) ->  | BI291: =IF(BH291=0,0,IF(SQRT(BC291^2+BD291^2)>BB291*SQRT(2),BB291,BC291)) ->  | BJ291: =IF(BH291=0,0,IF(SQRT(BC291^2+BD291^2)>BB291*SQRT(2),BB291,BD291)) -> 
B292: 4 | C292: > | D292: 6.00 | E292: 0 | F292: 0.00 | G292: =IF(K45="", _xlfn.IFS($C292="Angle",(D292*I292)+G291,$C292="Loop",$G$289,$C292="",G291,$C292="End",G291,$C292=">",G291+D292,$C292="<",G291-D292,OR($C292="Λ",$C292="V"),G291), K45) -> 16.00 | H292: =IF(L45="",_xlfn.IFS($C292="Angle",(D292*J292)+H291,$C292="Loop",$H$289,$C292="",H291,$C292="End",H291,$C292="Λ",H291+D292,$C292="V",H291-D292,OR($C292="<",$C292=">"),H291),L45) -> 5.00 | I292: 1.0000 | J292: 0.0000 | K292: 0 | M292: 0 | N292: 6.00 | O292: TOWER | Q292: TOWER600.txt | BG292: 1
B293: 5 | C293: V | D293: 10.00 | E293: 270 | F293: 0.00 | G293: =IF(K46="", _xlfn.IFS($C293="Angle",(D293*I293)+G292,$C293="Loop",$G$289,$C293="",G292,$C293="End",G292,$C293=">",G292+D293,$C293="<",G292-D293,OR($C293="Λ",$C293="V"),G292), K46) -> 16.00 | H293: =IF(L46="",_xlfn.IFS($C293="Angle",(D293*J293)+H292,$C293="Loop",$H$289,$C293="",H292,$C293="End",H292,$C293="Λ",H292+D293,$C293="V",H292-D293,OR($C293="<",$C293=">"),H292),L46) -> -5.00 | I293: -0.0000 | J293: -1.0000 | K293: 0 | M293: 0 | N293: 10.00 | O293: TOWER | Q293: TOWER600.txt | BG293: 1
B294: 6 | C294: < | D294: 12.50 | E294: 180 | F294: 0.00 | G294: =IF(K47="", _xlfn.IFS($C294="Angle",(D294*I294)+G293,$C294="Loop",$G$289,$C294="",G293,$C294="End",G293,$C294=">",G293+D294,$C294="<",G293-D294,OR($C294="Λ",$C294="V"),G293), K47) -> 3.50 | H294: =IF(L47="",_xlfn.IFS($C294="Angle",(D294*J294)+H293,$C294="Loop",$H$289,$C294="",H293,$C294="End",H293,$C294="Λ",H293+D294,$C294="V",H293-D294,OR($C294="<",$C294=">"),H293),L47) -> -5.00 | I294: -1.0000 | J294: 0.0000 | K294: 0 | M294: 0 | N294: 12.50 | O294: TOWER | Q294: TOWER600.txt | BG294: 0 | BH294: 0 | BI294: 0 | BJ294: 0
D295: 0.00 | E295: 0 | F295: 0.00 | G295: =IF(K48="", _xlfn.IFS($C295="Angle",(D295*I295)+G294,$C295="Loop",$G$289,$C295="",G294,$C295="End",G294,$C295=">",G294+D295,$C295="<",G294-D295,OR($C295="Λ",$C295="V"),G294), K48) -> 3.50 | H295: =IF(L48="",_xlfn.IFS($C295="Angle",(D295*J295)+H294,$C295="Loop",$H$289,$C295="",H294,$C295="End",H294,$C295="Λ",H294+D295,$C295="V",H294-D295,OR($C295="<",$C295=">"),H294),L48) -> -5.00 | I295: 1.0000 | J295: 0.0000 | M295: 0 | N295: 0.00 | O295: TOWER | Q295: TOWER600.txt | BB295: 0.0 | BC295: 0.0 | BD295: 0.0 | BE295: 0.0 | BG295: 0 | BH295: 0 | BI295: 0 | BJ295: 0
D296: 0.00 | E296: 0 | F296: 0.00 | G296: =IF(K49="", _xlfn.IFS($C296="Angle",(D296*I296)+G295,$C296="Loop",$G$289,$C296="",G295,$C296="End",G295,$C296=">",G295+D296,$C296="<",G295-D296,OR($C296="Λ",$C296="V"),G295), K49) -> 3.50 | H296: =IF(L49="",_xlfn.IFS($C296="Angle",(D296*J296)+H295,$C296="Loop",$H$289,$C296="",H295,$C296="End",H295,$C296="Λ",H295+D296,$C296="V",H295-D296,OR($C296="<",$C296=">"),H295),L49) -> -5.00 | I296: 1.0000 | J296: 0.0000 | M296: 0 | N296: 0.00 | O296: TOWER | Q296: TOWER600.txt | BB296: 0.0 | BC296: 0.0 | BD296: 0.0 | BE296: 0.0 | BG296: 0 | BH296: 0 | BI296: 0 | BJ296: 0
D297: 0.00 | E297: 0 | F297: 0.00 | G297: =IF(K50="", _xlfn.IFS($C297="Angle",(D297*I297)+G296,$C297="Loop",$G$289,$C297="",G296,$C297="End",G296,$C297=">",G296+D297,$C297="<",G296-D297,OR($C297="Λ",$C297="V"),G296), K50) -> 3.50 | H297: =IF(L50="",_xlfn.IFS($C297="Angle",(D297*J297)+H296,$C297="Loop",$H$289,$C297="",H296,$C297="End",H296,$C297="Λ",H296+D297,$C297="V",H296-D297,OR($C297="<",$C297=">"),H296),L50) -> -5.00 | I297: 1.0000 | J297: 0.0000 | M297: 0 | N297: 0.00 | O297: TOWER | Q297: TOWER600.txt | BB297: 0.0 | BC297: 0.0 | BD297: 0.0 | BE297: 0.0 | BG297: 0 | BH297: 0 | BI297: 0 | BJ297: 0
D298: 0.00 | E298: =+IF(F51="",0,F51) -> 0 | F298: 0.00 | G298: =IF(K51="", _xlfn.IFS($C298="Angle",(D298*I298)+G297,$C298="Loop",$G$289,$C298="",G297,$C298="End",G297,$C298=">",G297+D298,$C298="<",G297-D298,OR($C298="Λ",$C298="V"),G297), K51) -> 3.50 | H298: =IF(L51="",_xlfn.IFS($C298="Angle",(D298*J298)+H297,$C298="Loop",$H$289,$C298="",H297,$C298="End",H297,$C298="Λ",H297+D298,$C298="V",H297-D298,OR($C298="<",$C298=">"),H297),L51) -> -5.00 | I298: 1.0000 | J298: 0.0000 | M298: 0 | N298: 0.00 | O298: TOWER | Q298: TOWER600.txt | BB298: 0.0 | BC298: 0.0 | BD298: 0.0 | BE298: 0.0 | BG298: 0 | BH298: 0 | BI298: 0 | BJ298: 0
D299: 0.00 | E299: 0 | F299: 0.00 | G299: =IF(K52="", _xlfn.IFS($C299="Angle",(D299*I299)+G298,$C299="Loop",$G$289,$C299="",G298,$C299="End",G298,$C299=">",G298+D299,$C299="<",G298-D299,OR($C299="Λ",$C299="V"),G298), K52) -> 3.50 | H299: =IF(L52="",_xlfn.IFS($C299="Angle",(D299*J299)+H298,$C299="Loop",$H$289,$C299="",H298,$C299="End",H298,$C299="Λ",H298+D299,$C299="V",H298-D299,OR($C299="<",$C299=">"),H298),L52) -> -5.00 | I299: 1.0000 | J299: 0.0000 | M299: 0 | N299: 0.00 | O299: TOWER | Q299: TOWER600.txt | BB299: 0.0 | BC299: 0.0 | BD299: 0.0 | BE299: 0.0 | BG299: 0 | BH299: 0 | BI299: 0 | BJ299: 0
D300: 0.00 | E300: 0 | F300: 0.00 | G300: =IF(K53="", _xlfn.IFS($C300="Angle",(D300*I300)+G299,$C300="Loop",$G$289,$C300="",G299,$C300="End",G299,$C300=">",G299+D300,$C300="<",G299-D300,OR($C300="Λ",$C300="V"),G299), K53) -> 3.50 | H300: =IF(L53="",_xlfn.IFS($C300="Angle",(D300*J300)+H299,$C300="Loop",$H$289,$C300="",H299,$C300="End",H299,$C300="Λ",H299+D300,$C300="V",H299-D300,OR($C300="<",$C300=">"),H299),L53) -> -5.00 | I300: 1.0000 | J300: 0.0000 | M300: 0 | N300: 0.00 | O300: TOWER | Q300: TOWER600.txt | BB300: 0.0 | BC300: 0.0 | BD300: 0.0 | BE300: 0.0 | BG300: 0 | BH300: 0 | BI300: 0 | BJ300: 0
D301: 0.00 | E301: 0 | F301: 0.00 | G301: =IF(K54="", _xlfn.IFS($C301="Angle",(D301*I301)+G300,$C301="Loop",$G$289,$C301="",G300,$C301="End",G300,$C301=">",G300+D301,$C301="<",G300-D301,OR($C301="Λ",$C301="V"),G300), K54) -> 3.50 | H301: =IF(L54="",_xlfn.IFS($C301="Angle",(D301*J301)+H300,$C301="Loop",$H$289,$C301="",H300,$C301="End",H300,$C301="Λ",H300+D301,$C301="V",H300-D301,OR($C301="<",$C301=">"),H300),L54) -> -5.00 | I301: 1.0000 | J301: 0.0000 | M301: 0 | N301: 0.00 | O301: TOWER | Q301: TOWER600.txt | BB301: 0.0 | BC301: 0.0 | BD301: 0.0 | BE301: 0.0 | BG301: 0 | BH301: 0 | BI301: 0 | BJ301: 0
D302: 0.00 | E302: 0 | F302: 0.00 | G302: =IF(K55="", _xlfn.IFS($C302="Angle",(D302*I302)+G301,$C302="Loop",$G$289,$C302="",G301,$C302="End",G301,$C302=">",G301+D302,$C302="<",G301-D302,OR($C302="Λ",$C302="V"),G301), K55) -> 3.50 | H302: =IF(L55="",_xlfn.IFS($C302="Angle",(D302*J302)+H301,$C302="Loop",$H$289,$C302="",H301,$C302="End",H301,$C302="Λ",H301+D302,$C302="V",H301-D302,OR($C302="<",$C302=">"),H301),L55) -> -5.00 | I302: 1.0000 | J302: 0.0000 | M302: 0 | N302: 0.00 | O302: TOWER | Q302: TOWER600.txt | BB302: 0.0 | BC302: 0.0 | BD302: 0.0 | BE302: 0.0 | BG302: 0 | BH302: 0 | BI302: 0 | BJ302: 0
D303: 0.00 | E303: 0 | F303: 0.00 | G303: =IF(K56="", _xlfn.IFS($C303="Angle",(D303*I303)+G302,$C303="Loop",$G$289,$C303="",G302,$C303="End",G302,$C303=">",G302+D303,$C303="<",G302-D303,OR($C303="Λ",$C303="V"),G302), K56) -> 3.50 | H303: =IF(L56="",_xlfn.IFS($C303="Angle",(D303*J303)+H302,$C303="Loop",$H$289,$C303="",H302,$C303="End",H302,$C303="Λ",H302+D303,$C303="V",H302-D303,OR($C303="<",$C303=">"),H302),L56) -> -5.00 | I303: 1.0000 | J303: 0.0000 | M303: 0 | N303: 0.00 | O303: TOWER | Q303: TOWER600.txt | BB303: 0.0 | BC303: 0.0 | BD303: 0.0 | BE303: 0.0 | BG303: 0 | BH303: 0 | BI303: 0 | BJ303: 0
... 54 more rows

Sheet SupTabella (hidden)
D2: Orario | E2: Antiorario
B3: ← (180°) | C3: 180 | F3: TOWER300 | G3: TOWERA2300 | J3: A2 (AISI 304) | L3: =+Trads!$A$345 -> ZINCATO A CALDO
B4: ↑ (90°) | C4: 90 | F4: TOWER400 | G4: TOWERA2400 | J4: A4 (AISI316) | L4: A2 (AISI 304)
B5: → (0°) | C5: 0 | F5: TOWER500 | G5: TOWERA2500
B6: ↓ (270°) | C6: 270 | F6: TOWER600 | O6: PASINT
B7: =+Trads!$A$332 -> Angolo | F7: TOWER22500 | J7: =+IF($J$6=Zinc,tower,towera2) -> TOWERA2300 | O7: PASINTA4
B8: =+Trads!$A$331 -> Loop | J8: TOWERA2400
B9: =+Trads!$A$330 -> Fine | J9: TOWERA2500 | L9: =+Calculator!J7 -> 0
K10: Intermedio | L10: =+Calculator!K5 -> 45209
B11: =+Trads!$A$335 -> Partenza | K11: Angolo | L11: =+Calculator!F15 -> 0 | N11: PATROLINT | O11: =+IF(L9=inoxa2,"PASINT","PASINTA4") -> PASINTA4
N12: PATROLMED
B13: =+Trads!$A$337 -> Da Supporto # | L13: =+IF(L9=inoxa4,PT,TipSys) -> PASSANTE
L14: NON PASSANTE
L16: =+IF(L10=PT,O11,IntNPT) -> PATROLINT
B17: =+Dx -> → (0°) | C17: =+down -> ↓ (270°) | D17: =+sx -> ← (180°) | E17: =+up -> ↑ (90°) | G17: TOPLATE | J17: =+Trads!$A$348 -> Terminali | L17: PATROLMED
B18: =+down -> ↓ (270°) | C18: =+sx -> ← (180°) | D18: =+up -> ↑ (90°) | E18: =+Dx -> → (0°) | G18: TOPLATE+TOPLATE2 | J18: =+Trads!$A$349 -> Tutti i supporti
B19: =+up -> ↑ (90°) | C19: =+Dx -> → (0°) | D19: =+down -> ↓ (270°) | E19: =+sx -> ← (180°) | G19: TOPLATE2 | J19: =+Trads!$A$350 -> n. supporti
B20: =+Angle -> Angolo | C20: =+Angle -> Angolo | D20: =+Angle -> Angolo | E20: =+Angle -> Angolo | G20: TOWERPEAK
B21: =Loop -> Loop | C21: =Loop -> Loop | D21: =Loop -> Loop | E21: =Loop -> Loop | G21: TOWERSLOPE
B22: =End -> Fine | C22: =End -> Fine | D22: =End -> Fine | E22: =End -> Fine | G22: TOWLAT | L22: A2 (AISI 304)
B23: 270 | C23: 180 | D23: 90 | E23: 0 | L23: A4 (AISI316)
B24: 90 | C24: 0 | D24: 270 | E24: 180
B26: PL-SK-CZ-HU-RO | C26: =+Calculator!L27=SupTabella!B26 -> FALSE | J26: SLIDE1
B27: NL-SE-NO-FI-RU | C27: =+Calculator!L27=SupTabella!B27 -> FALSE | J27: SLIDE2
J29: SLIDE1A4
C30: orario | D30: antiorario | E30: orario | F30: antiorario | J30: SLIDE2A4
B31: ← (180°) | C31: 90 | D31: 270 | E31: 90 | F31: 270
B32: ↑ (90°) | C32: 0 | D32: 180 | E32: 0 | F32: 180
B33: → (0°) | C33: 0 | D33: 270 | E33: 0 | F33: 90
B34: ↓ (270°) | C34: 180 | D34: 0 | E34: 180 | F34: 0
B36: 34
B42: Min
B43: Max | L43: LimY | N43: =+J49+L59+L53 -> 5.00
L45: =IF(Calculator!L35="",M58,IF(N46=FALSE,(M47+N58+N54),M47+N58+N53)) -> 40.00 | M45: =MAX(Calculator!I190:I253) -> 0.00
L46: =IFERROR(+ABS((L47-L45)),M58) -> 80.00 | M46: =IF(ABS(M47-M45)<=0.01,L50,ABS(M47-M45)) -> 0.00 | N46: =IF(M46>K50,TRUE,FALSE) -> FALSE
C47: Area Grafico | K47: =+L47<0 -> TRUE | L47: =IF(Calculator!L35="",-(M58),_xlfn.FLOOR.MATH(IF(N46=FALSE,M47-L54,M47-L53),L56)) -> -40.00 | M47: =MIN(Calculator!I190:I253) -> 0.00
C48: LargAreaW | D48: 800 | E48: Min | J48: LimX
C49: AltAreaW | D49: 800 | E49: Max | I49: =+J49<0 -> TRUE | J49: =IF(Calculator!L35="",-(M58),(_xlfn.FLOOR.MATH(IF(K51=FALSE,J50-L53,J50-L54),L56))) -> -40.00 | K49: =+IFERROR(ABS(J49-L49),M58) -> 80.00 | L49: =IF(Calculator!L35="",M58,IF(K51=FALSE,(J50+L58+N53),J50+L58+N54)) -> 40.00 | N49: Max
E50: Alt | J50: =MIN(Calculator!H190:H253) -> 0.00 | K50: =IF(ABS(J50-L50)<=0.1,M46,ABS(J50-L50)) -> 0.00 | L50: =MAX(Calculator!H190:H253) -> 0.0 | N50: =+MAX(K50,M46) -> 0.00
K51: =+K50>M46 -> FALSE
L52: =+L53*I54 -> 5
I53: Rapporto L/H | L53: 5 | M53: =-L53 -> -5 | N53: =+L53*O53 -> 5 | O53: =+IF(N50<=M58,1,2) -> 1
I54: =IF(M46=0,1,K50/M46) -> 1.0000 | L54: =+L53/I54 -> 5.00 | M54: =-L54 -> -5 | N54: =+L54*O53 -> 5
C55: Impostazioni | I55: Larghezz
C56: AngEtic | D56: =IF(Calculator!Z105="",0,Calculator!Z105) -> 0 ° | K56: Arro | L56: 5
C57: Label#1 | D57: =_xlfn.IFNA(VLOOKUP(Calculator!X105,C71:D74,2,FALSE),2) -> 2 | M57: =+AND(L58<M58,N58<M58) -> TRUE
C58: Labels | D58: =_xlfn.IFNA(VLOOKUP(Calculator!X103,C71:D74,2,FALSE),2) -> 2 | L58: =+IF(N46=TRUE,ABS(J50-L50)/I54,ABS(J50-L50)) -> 0 | M58: 40 | N58: =+IF(K51=TRUE,ABS(M47-M45)*I54,ABS(M47-M45)) -> 0
L59: =IF(M57=TRUE,M58,IF(N46=TRUE,ABS(J50-L50)/I54,ABS(J50-L50))) -> 40.00 | N59: =+IF(M57=TRUE,M58,IF(K51=TRUE,ABS(M47-M45)*I54,ABS(M47-M45))) -> 40.00
C60: AxMinWall | D60: -35 | L60: X | N60: Y
C61: AxMaxWall | D61: 60 | L61: =+L59/2 -> 20.00 | N61: =+N59/2 -> 20.00
C62: AyMinWall | D62: -40
C63: AyMaxWall | D63: 25
J67: AyMaxWall | K67: =IFERROR(+L45,M58) -> 40.00
C71: ← | D71: 1
C72: ↑ | D72: 2
C73: → | D73: 3
C74: ↓ | D74: 4 | J74: AyMinWall | K74: =IFERROR(L47,0) -> -40.00
F75: AxMinWall | G75: =IFERROR(J49,0) -> -40.00 | H75: AxMaxWall | I75: =IFERROR(L49,M58) -> 40.00

Sheet SupGen (hidden)
N1: =+_xlfn.SEQUENCE(,20) -> 1 | O1: 2 | P1: 3 | Q1: 4 | R1: 5 | S1: 6 | T1: 7 | U1: 8 | V1: 9 | W1: 10 | X1: 11 | Y1: 12 | Z1: 13 | AA1: 14 | AB1: 15 | AC1: 16 | AD1: 17 | AE1: 18 | AF1: 19 | AG1: 20
Q2: Operatori | S2: Interasse max | U2: Interasse min | V2: Carico con Interasse Max | X2: Freccia con Interasse Max | Z2: Carico con Interasse Min | AB2: Freccia con Interasse Min
G3: A2 | I3: A4 | Q3: SPEAR | R3: SPEAREVO | S3: SPEAR | T3: SPEAREVO | V3: SPEAR | W3: SPEAREVO | X3: SPEAR | Y3: SPEAREVO | Z3: SPEAR | AA3: SPEAREVO | AB3: SPEAR | AC3: SPEAREVO
B4: =+Trads!$A$17 -> PASSANTE | G4: PASINT | J4: SPEAR | L4: TOWER300 | N4: TOWER / TOWERXL | O4: =+Spear -> SPEAR | Q4: 4 | S4: 15 | U4: 2 | V4: 16.5 | X4: 3.26 | Z4: 8.2 | AB4: 1.26
B5: =+Trads!$A$18 -> NON PASSANTE | J5: SPEAREVO | L5: TOWER400 | N5: SHIELD / SHIELD2 | O5: =+Spear -> SPEAR | P5: =+Spearevo -> SPEAREVO | Q5: 2 | R5: 4 | S5: 7.5 | T5: 15 | U5: 2 | V5: 17.1 | W5: =+B52 -> 13.7 | X5: 1.44 | Y5: =+J51 -> 3.4 | Z5: 12.5 | AA5: 5.7 | AB5: 0.62 | AC5: 1.35
L6: TOWER500 | N6: PATROLEND | O6: =+Spear -> SPEAR | P6: =+Spearevo -> SPEAREVO | Q6: 4 | R6: 4 | S6: 7.5 | T6: 15 | U6: 2 | V6: 18.1 | W6: 14 | X6: 1.3 | Y6: 3.4 | Z6: 14.2 | AA6: 5.7 | AB6: 0.55 | AC6: 1.35
L7: TOWER600 | N7: PATROL OVERHEAD | O7: SPEAR | P7: =+Spearevo -> SPEAREVO | Q7: 4 | R7: 4 | S7: 7.5 | T7: 15 | U7: 2 | V7: 18.1 | W7: 14 | X7: 1.3 | Y7: 3.4 | Z7: 14.2 | AA7: 5.7 | AB7: 0.55 | AC7: 1.35
L8: PATROLEND | N8: PATROL ON WALL | O8: =+Spear -> SPEAR | P8: =+Spearevo -> SPEAREVO | Q8: 4 | R8: 4 | S8: 7.5 | T8: 15 | U8: 2 | V8: 18.1 | W8: 14 | X8: 1.3 | Y8: 3.4 | Z8: 14.2 | AA8: 5.7 | AB8: 0.55 | AC8: 1.35
B9: =+Trads!$A$19 -> LEGNO | L9: PATROL OVERHEAD
B10: =+Trads!$A$20 -> CEMENTO | L10: PATROL ON WALL | N10: Dal Foglio Calc | Q10: Operatori | S10: Interassi | V10: Carico Max | X10: Freccia Max | Z10: Carico Min | AB10: Freccia Max
B11: =+Trads!$A$21 -> ACCIAIO | L11: SHIELD | SHIELD2 | N11: =+Calculator!F9 -> 0 | O11: =+Calculator!F11 -> 0 | Q11: =IF(O11=Spear,4,5) -> 5 | S11: =IF(O11=Spear,6,7) -> 7 | V11: =IF(O11=Spear,9,10) -> 10 | X11: =IF(O11=Spear,11,12) -> 12 | Z11: =IF(O11=Spear,13,14) -> 14 | AB11: =IF(O11=Spear,15,16) -> 16
N13: AssorbitoreLista
N14: =+VLOOKUP(N11,N4:P8,2,FALSE) -> 
N15: =_xlfn.IFNA(VLOOKUP(N11,N4:P8,3,FALSE),"") -> 
G28: TOWER300 | H28: TOWER
G29: TOWER400 | H29: TOWER
G30: TOWER500 | H30: TOWER
A31: PATROL + TOWER + SPEAR | C31: [4UTENTI] | G31: TOWER | H31: TOWER
A32: CAMPATA (M) | B32: FORZA MASSIMA AL TERMINALE (KN) | C32: FRECCIA CENTRO CAMPATA (M) | G32: PATROLEND | H32: WALL
A33: 15 | B33: 16.5 | C33: 3.26 | G33: PATROL OVERHEAD | H33: WALL
A34: 2 | B34: 8.2 | C34: 1.26 | G34: PATROL ON WALL | H34: WALL
A35: PATROL + SHIELD + SPEAR | C35: [2UTENTI] | G35: SHIELD | SHIELD2 | H35: SHIELD
A36: CAMPATA (M) | B36: FORZA MASSIMA AL TERMINALE (KN) | C36: FRECCIA CENTRO CAMPATA (M)
A37: 7.5 | B37: 17.1 | C37: 1.44 | G37: MAX | M37: MIN
A38: 2 | B38: 12.5 | C38: 0.62 | H38: CAMPATA (M) | I38: FORZA MASSIMA AL TERMINALE (KN) | J38: FRECCIA CENTRO CAMPATA (M) | K38: users | N38: CAMPATA (M) | O38: FORZA MASSIMA AL TERMINALE (KN) | P38: FRECCIA CENTRO CAMPATA (M) | Q38: users
A39: PATROL + VERTICALE/ORIZZONTALE + SPEAR | C39: [4UTENTI] | G39: TOWER | H39: 15 | I39: 16.5 | J39: 3.26 | K39: 4 | M39: TOWER | N39: =A34 -> 2 | O39: =B34 -> 8.2 | P39: =C34 -> 1.26 | Q39: 4
A40: CAMPATA (M) | B40: FORZA MASSIMA AL TERMINALE (KN) | C40: FRECCIA CENTRO CAMPATA (M) | G40: SHIELD | H40: 7.5 | I40: 17.1 | J40: 1.44 | K40: 2 | M40: SHIELD | N40: =A38 -> 2 | O40: =B38 -> 12.5 | P40: =C38 -> 0.62 | Q40: 2
A41: 7.5 | B41: 18.1 | C41: 1.3 | G41: WALL | H41: 7.5 | I41: 18.1 | J41: 1.3 | K41: 4 | M41: WALL | N41: =A42 -> 2 | O41: =B42 -> 14.2 | P41: =C42 -> 0.55 | Q41: 4
A42: 2 | B42: 14.2 | C42: 0.55
L45: usati nei calcoli di interpolazione
A47: PATROL + PATROLEND/PAREND + SPEAREVO | C47: [4UTENTI]
A48: CAMPATA (M) | B48: FORZA MASSIMA AL TERMINALE (KN) | C48: FRECCIA CENTRO CAMPATA (M)
A49: 15 | B49: 14 | C49: 3.4 | H49: CAMPATA (M) | I49: FORZA MASSIMA AL TERMINALE (KN) | J49: FRECCIA CENTRO CAMPATA (M) | N49: CAMPATA (M) | O49: FORZA MASSIMA AL TERMINALE (KN) | P49: FRECCIA CENTRO CAMPATA (M)
A50: PATROL + SHIELD + SPEAREVO | C50: [4UTENTI] | G50: WALL | H50: 15 | I50: 14 | J50: 3.4 | K50: 4 | M50: WALL | N50: 2 | O50: 5.7 | P50: 1.35 | Q50: 4
A51: CAMPATA (M) | B51: FORZA MASSIMA AL TERMINALE (KN) | C51: FRECCIA CENTRO CAMPATA (M) | G51: SHIELD | H51: 15 | I51: 13.7 | J51: 3.4 | K51: 4 | M51: SHIELD | N51: 2 | O51: 5.7 | P51: 1.35 | Q51: 4
A52: 15 | B52: 13.7 | C52: 3.4

Sheet Dwh_mig (hidden)
A2: Descrizione Indice | B2: =+VLOOKUP(Calculator!E5,Dwh_mig!A3:B28,2,FALSE) -> 1 | C2: Codice Lingua Sistema
A3: Italiano | B3: 1 | C3: 1040 | D3: Italiano
A4: čeština | B4: 2 | C4: 1029 | D4: Français
A5: 汉语 | B5: 3 | C5: 2052 | D5: English
A6: Hrvatski | B6: 4 | C6: 1050 | D6: Español
A7: Français | B7: 5 | C7: 1036 | D7: Deutsch
A8: 日本 | B8: 6 | C8: 1041
A9: Γκρέγκο | B9: 7 | C9: 1032
A10: English | B10: 8 | C10: 1033
A11: Latvietis | B11: 9 | C11: 1062
A12: Polski | B12: 10 | C12: 1045
A13: Português | B13: 11 | C13: 2070
A14: Română | B14: 12 | C14: 1048
A15: Русский | B15: 13 | C15: 1049
A16: Slovenčina | B16: 14 | C16: 1051
A17: Slovenščina | B17: 15 | C17: 1060
A18: Español | B18: 16 | C18: 1034
A19: Svenska | B19: 17 | C19: 1053
A20: Deutsch | B20: 18 | C20: 1031
A21: Türkçe | B21: 19 | C21: 1055
A22: Magyar Nyelv | B22: 20 | C22: 1038
A23: Português Brasileiro | B23: 11 | C23: 2070
B24: 22
B25: 23
B26: 24
B27: 25
B28: 26

Sheet Trads (hidden)
A1: Lingua Selezionata | B1: #
A2: =+INDEX(Traduzioni,,Dwh_mig!B2) -> SUPPORTO | B2: =+_xlfn.SEQUENCE(1499,,2) -> 2 | C2: =+_xlfn.CONCAT("Trads",B2) -> Trads2 | E2: =+Dwh_mig!B2 -> 1
A3: Listino Prezzi | B3: 3 | C3: =+_xlfn.CONCAT("Trads",B3) -> Trads3
A4: Lingua | B4: 4 | C4: Trads4
A5: Valuta | B5: 5 | C5: Trads5
A6: Rif. Progetto | B6: 6 | C6: Trads6
A7: SOTTOSTRUTTURA | B7: 7 | C7: Trads7
A8: SUPPORTO PRINCIPALE | B8: 8 | C8: Trads8
A9: COMPONENTI | B9: 9 | C9: Trads9
A10: TIPO INTERMEDIO | B10: 10 | C10: Trads10
A11: INTERMEDIO | B11: 11 | C11: Trads11
A12: Codice | B12: 12 | C12: Trads12
A13: TIPO ANGOLO | B13: 13 | C13: Trads13
A14: TIPO NAVETTA | B14: 14 | C14: Trads14
A15: NUMERO DI NAVETTE | B15: 15 | C15: Trads15
A16: N. DI NAVETTE PER LINEA VITA | B16: 16 | C16: Trads16
A17: PASSANTE | B17: 17 | C17: Trads17
A18: NON PASSANTE | B18: 18 | C18: Trads18
A19: LEGNO | B19: 19 | C19: Trads19
A20: CEMENTO | B20: 20 | C20: Trads20
A21: ACCIAIO | B21: 21 | C21: Trads21
A22: Descrizione | B22: 22 | C22: Trads22
A23: n. | B23: 23 | C23: Trads23
A24: Prezzo Lordo | B24: 24 | C24: Trads24
A25: Subtotale Lordo | B25: 25 | C25: Trads25
A26: Sconto | B26: 26 | C26: Trads26
A27: ACCESSORI | B27: 27 | C27: Trads27
A28: TIPO DI SCALA | B28: 28 | C28: Trads28
A29: Normativa | B29: 29 | C29: Trads29
A30: CON GABBIA | B30: 30 | C30: Trads30
A31: SENZA GABBIA | B31: 31 | C31: Trads31
A32: NO | B32: 32 | C32: Trads32
A33: SI | B33: 33 | C33: Trads33
A34: Prezzo Netto | B34: 34 | C34: Trads34
A35: ALTEZZA ALLO SBARCO | B35: 35 | C35: Trads35
A36: PROFONDITA' STAFFE | B36: 36 | C36: Trads36
A37: PROTEZIONE FINALE | B37: 37 | C37: Trads37
A38: ESTENSIONE RIMOVIBILE | B38: 38 | C38: Trads38
A39: PEDANA DI SBARCO | B39: 39 | C39: Trads39
A40: SBARCO 500x500 | B40: 40 | C40: Trads40
A41: SBARCO 500x750 | B41: 41 | C41: Trads41
A42: PROTEZIONE SBARCO | B42: 42 | C42: Trads42
A43: PEDANA DI RIPOSO | B43: 43 | C43: Trads43
A44: PEDANA RIBALTABILE | B44: 44 | C44: Trads44
A45: RIBALTABILE PER LV VERTICALE | B45: 45 | C45: Trads45
A46: NORMATIVA PEDANA | B46: 46 | C46: Trads46
A47: BOTOLA DI CHIUSURA | B47: 47 | C47: Trads47
A48: TIPO PIEDINI | B48: 48 | C48: Trads48
A49: PIEDINI REGOLABILI | B49: 49 | C49: Trads49
A50: PIEDINI SNODATI | B50: 50 | C50: Trads50
A51: GANCIO PER SCALE | B51: 51 | C51: Trads51
A52: MANIGLIONI | B52: 52 | C52: Trads52
A53: MODULI SCALE | B53: 53 | C53: Trads53
A54: PZ | B54: 54 | C54: Trads54
A55: Gruppo | B55: 55 | C55: Trads55
A56: ASTE GABBIA | B56: 56 | C56: Trads56
A57: ANELLI | B57: 57 | C57: Trads57
A58: STAFFE | B58: 58 | C58: Trads58
A59: GIUNZIONI | B59: 59 | C59: Trads59
A60: TAPPI | B60: 60 | C60: Trads60
A61: TARGHETTA | B61: 61 | C61: Trads61
A62: FISSAGGI | B62: 62 | C62: Trads62
A63: FISSAGGI STAFFE | B63: 63 | C63: Trads63
A64: FISSAGGIO INTERMEDIO | B64: 64 | C64: Trads64
A65: LINGUA TARGHETTA | B65: 65 | C65: Trads65
A66: ESTENSIONE SUPERIORE | B66: 66 | C66: Trads66
A67: INTERASSE INTERMEDI | B67: 67 | C67: =+_xlfn.CONCAT("Trads",B67) -> Trads67
A68: INTERASSE 5 MT (SUGGERITO) | B68: 68 | C68: Trads68
A69: NESSUN INTERMEDIO | B69: 69 | C69: Trads69
A70: N.1 INTERMEDIO | B70: 70 | C70: Trads70
A71: N.2 INTERMEDIO | B71: 71 | C71: Trads71
A72: N.3 INTERMEDIO | B72: 72 | C72: Trads72
A73: N.4 INTERMEDIO | B73: 73 | C73: Trads73
A74: N.5 INTERMEDIO | B74: 74 | C74: Trads74
A75: NAVETTA INCLUSA | B75: 75 | C75: Trads75
A76: MANIGLIE | B76: 76 | C76: Trads76
A77: FISSAGGIO ALLA BASE | B77: 77 | C77: Trads77
A78: RINFORZO PER SCALE | B78: 78 | C78: Trads78
A79: Totale | B79: 79 | C79: Trads79
A80: Totale prezzo Netto | B80: 80 | C80: Trads80
A81: Info Cliente | B81: 81 | C81: Trads81
A82: Numero Cliente | B82: 82 | C82: Trads82
A83: Codice Semiramis | B83: 83 | C83: Trads83
A84: Nome Cliente | B84: 84 | C84: Trads84
A85: Email | B85: 85 | C85: Trads85
A86: Telefono | B86: 86 | C86: Trads86
A87: Sito Web | B87: 87 | C87: Trads87
A88: Tecnico Commerciale | B88: 88 | C88: Trads88
A89: Partita IVA | B89: 89 | C89: Trads89
A90: Codice IBAN | B90: 90 | C90: Trads90
A91: Codice SWIFT | B91: 91 | C91: Trads91
A92: Indirizzo Fatturazione | B92: 92 | C92: Trads92
A93: Via | B93: 93 | C93: Trads93
A94: Città | B94: 94 | C94: Trads94
A95: CAP | B95: 95 | C95: Trads95
A96: Nazione | B96: 96 | C96: Trads96
A97: Provincia | B97: 97 | C97: Trads97
A98: Indirizzo per la Spedizione | B98: 98 | C98: Trads98
A99: Listino Prezzi e Valuta | B99: 99 | C99: Trads99
A100: Fatturato | B100: 100 | C100: Trads100
A101: LINEA PRODOTTO | B101: 101 | C101: Trads101
A102: PUNTI SINGOLI | B102: 102 | C102: Trads102
A103: LINEE VITA | B103: 103 | C103: Trads103
A104: SUPPORTI | B104: 104 | C104: Trads104
A105: COMPONENTI LINEE VITA | B105: 105 | C105: Trads105
A106: ANTICADUTA | B106: 106 | C106: Trads106
A107: PROTEZIONI COLLETTIVE | B107: 107 | C107: Trads107
A108: DPI - DISPOSITIVI DI PROTEZIONE INDIVIDUALE | B108: 108 | C108: Trads108
A109: ALTRE LINEE VITA | B109: 109 | C109: Trads109
A110: CAVO IN ACCIAIO | B110: 110 | C110: Trads110
A111: Tasso di cambio: | B111: 111 | C111: Trads111
A112: Pagamento | B112: 112 | C112: Trads112
A113: ORDINE | B113: 113 | C113: Trads113
A114: Rif. | B114: 114 | C114: Trads114
A115: Data | B115: 115 | C115: Trads115
A116: Cellulare | B116: 116 | C116: Trads116
A117: Persona di riferimento | B117: 117 | C117: Trads117
A118: Linea | B118: 118 | C118: Trads118
A119: Qt. | B119: 119 | C119: Trads119
A120: Subtotale | B120: 120 | C120: Trads120
A121: Peso | B121: 121 | C121: Trads121
A122: Note | B122: 122 | C122: Trads122
A123: Cliente | B123: 123 | C123: Trads123
A124: RETI DI SICUREZZA | B124: 124 | C124: Trads124
A125: PARAPETTI | B125: 125 | C125: Trads125
A126: GANCI SCALE | B126: 126 | C126: Trads126
A127: CASCHI | B127: 127 | C127: Trads127
A128: IMBRACHI | B128: 128 | C128: Trads128
A129: CORDINI | B129: 129 | C129: Trads129
A130: DISCENSORI | B130: 130 | C130: Trads130
A131: RETRATTILI | B131: 131 | C131: =+_xlfn.CONCAT("Trads",B131) -> Trads131
A132: POSIZIONAMENTO | B132: 132 | C132: Trads132
A133: ANCORANTI | B133: 133 | C133: Trads133
A134: CONNETTORI | B134: 134 | C134: Trads134
A135: TRIPODI | B135: 135 | C135: Trads135
A136: BIPODI | B136: 136 | C136: Trads136
A137: GUANTI | B137: 137 | C137: Trads137
A138: ORECCHIE | B138: 138 | C138: Trads138
A139: OCCHI | B139: 139 | C139: Trads139
A140: FISSAGGI | B140: 140 | C140: Trads140
A141: SITEMI DI FISSAGGIO | B141: 141 | C141: Trads141
A142: Corrimano | B142: 142 | C142: Trads142
A143: Dritto | B143: 143 | C143: Trads143
A144: Inclinato | B144: 144 | C144: Trads144
A145: Tavola Fermapiede | B145: 145 | C145: Trads145
A146: Prezzo Listino/ml | B146: 146 | C146: Trads146
A147: Lingua | B147: 147 | C147: Trads147
A148: AUTOPORTANTE | B148: 148 | C148: Trads148
A149: Montante | B149: 149 | C149: Trads149
A150: Diritto | B150: 150 | C150: Trads150
A151: Corrente | B151: 151 | C151: Trads151
A152: Altezza Montante | B152: 152 | C152: Trads152
A153: Normativa di riferimento | B153: 153 | C153: Trads153
A154: Composizione Parapetto | B154: 154 | C154: Trads154
A155: Lunghezza totale parapetto | B155: 155 | C155: Trads155
A156: Angoli | B156: 156 | C156: Trads156
A157: Fissaggi a muro | B157: 157 | C157: Trads157
A158: Terminali non a muro | B158: 158 | C158: Trads158
A159: Kit cancelletto | B159: 159 | C159: Trads159
A160: Versione Alu | B160: 160 | C160: Trads160
A161: Tipo Montante | B161: 161 | C161: Trads161
A162: Arrodondamento ml | B162: 162 | C162: Trads162
A163: Interasse Montanti | B163: 163 | C163: Trads163
A164: N. montanti | B164: 164 | C164: Trads164
A165: Input n. montanti | B165: 165 | C165: Trads165
A166: Larghezza | B166: 166 | C166: Trads166
A167: Peso Totale | B167: 167 | C167: Trads167
A168: Costo Gestione Ordine | B168: 168 | C168: Trads168
A169: Totale Prezzo Lordo | B169: 169 | C169: Trads169
A170: Costo di trasporto | B170: 170 | C170: Trads170
A171: Prezzo Netto/ml | B171: 171 | C171: Trads171
A172: Costo Materiale + trasporto e gestione | B172: 172 | C172: Trads172
A173: Costo Materiale + altre spese/ml | B173: 173 | C173: Trads173
A174: Kit Impermeabilizzazione | B174: 174 | C174: Trads174
A175: % Cuneo spessore/montanti | B175: 175 | C175: Trads175
A176: Distanza Extra | B176: 176 | C176: Trads176
A177: Tipo Base Verticale | B177: 177 | C177: Trads177
A178: Dati Progetti | B178: 178 | C178: Trads178
A179: Versione Plastica | B179: 179 | C179: Trads179
A180: Cartaceo | B180: 180 | C180: Trads180
A181: Online | B181: 181 | C181: Trads181
A182: Manuale | B182: 182 | C182: Trads182
A183: da spedire | B183: 183 | C183: Trads183
A184: Interasse greche pannello | B184: 184 | C184: Trads184
A185: Fissaggi Inclusi | B185: 185 | C185: Trads185
A186: Rondella in EPDM | B186: 186 | C186: Trads186
A187: TIPO DI CHIUSURA | B187: 187 | C187: Trads187
A188: PORTA DI CHIUSURA | B188: 188 | C188: Trads188
A189: SCALA SGANCIABILE | B189: 189 | C189: Trads189
A190: Parallela alle greche | B190: 190 | C190: Trads190
A191: Perpendicolare alle greche | B191: 191 | C191: Trads191
A192: SISTEMA DI RIPOSO | B192: 192 | C192: Trads192
A193: MODULO DI SDOPPIAMENTO | B193: 193 | C193: Trads193
A194: DESTRA | B194: 194 | C194: Trads194
A195: SINISTRA | B195: 195 | C195: =+_xlfn.CONCAT("Trads",B195) -> Trads195
A196: DIREZIONE PRIMO SDOPPIAMENTO | B196: 196 | C196: Trads196
A197: PRIMO MODULO REMOVIBILE | B197: 197 | C197: Trads197
A198: TIPO VERSIONE ACCIAIO | B198: 198 | C198: Trads198
A199: ACCIAIO INOX A2 | B199: 199 | C199: Trads199
A200: ACCIAIO INOX A4 | B200: 200 | C200: Trads200
... 1301 more rows

Sheet TradsDB (hidden)
A1: # | C1: Italiano | D1: čeština | E1: 汉语 | F1: Hrvatski | G1: Français | H1: 大和 | I1: Γκρέγκο | J1: English | K1: Latvietis | L1: Polski | M1: Português | N1: Română | O1: Русский | P1: Slovenčina | Q1: Slovenščina | R1: Español | S1: Svenska | T1: Deutsch | U1: Türkçe | V1: Magyar Nyelv
A2: 2 | B2: =+_xlfn.CONCAT("Trad",A2) -> Trad2 | C2: SUPPORTO | D2: PODPORA | E2: 支持 | F2: PODRŠKA | G2: SOUTIEN | H2: サポート | I2: ΥΠΟΣΤΗΡΙΞΗ | J2: SUPPORT | K2: ATBALSTS | L2: POMOC | M2: APOIO | N2: SUPORT | O2: ПОДДЕРЖКА | P2: PODPORA | Q2: PODPORA | R2: SOPORTE | S2: STÖD | T2: GRUNDPLATTE | U2: DESTEK | V2: TÁMOGATÁS
A3: 3 | B3: Trad3 | C3: Listino Prezzi | D3: Ceník | E3: 价格表 | F3: Cjenik | G3: Liste des prix | H3: 価格表 | I3: Λίστα τιμών | J3: Price List | K3: Cenrādis | L3: Cennik | M3: Lista de preços | N3: Lista de prețuri | O3: Прайс-лист | P3: Cenník | Q3: Cenik | R3: Lista de precios | S3: Prislista | T3: Preislisten | U3: Fiyat listesi | V3: Árlista
A4: 4 | B4: Trad4 | C4: Lingua | D4: Jazyk | E4: 语言 | F4: Jezik | G4: Langue | H4: 言語 | I4: Γλώσσα | J4: Language | K4: Valoda | L4: Język | M4: Idioma | N4: Limba | O4: Язык | P4: Jazyk | Q4: Jezik | R4: Idioma | S4: Språk | T4: Sprache | U4: Dilim | V4: Nyelv
A5: 5 | B5: Trad5 | C5: Valuta | D5: Měna | E5: 货币 | F5: Valuta | G5: Devise | H5: 通貨 | I5: Νόμισμα | J5: Currency | K5: Valūta | L5: Waluta | M5: Moeda | N5: Monedă | O5: Валюта | P5: Mena | Q5: Valuta | R5: Moneda | S5: Valuta | T5: Währung | U5: Para birimi | V5: Pénznem
A6: 6 | B6: Trad6 | C6: Rif. Progetto | D6: Projekt Ref. | E6: 项目编号。 | F6: Projekt Ref. | G6: Réf. du projet | H6: 参照プロジェクト | I6: Υπεύθυνος Έργου | J6: Project Ref. | K6: Projekta atsauces Nr. | L6: Nr ref. projektu | M6: Projecto Ref. | N6: Proiect Ref. | O6: Ссылка на проект. | P6: Ref. projektu | Q6: Ref. projekta | R6: Ref. del proyecto | S6: Projekt Ref. | T6: Projekt Ref. | U6: Proje Referansı | V6: Projekt Ref.
A7: 7 | B7: Trad7 | C7: SOTTOSTRUTTURA | D7: SUBSTRUKTURA | E7: 结构 | F7: PODSTRUKTURA | G7: SUBSTRUCTURE | H7: サブストラクチャー | I7: ΥΠΟΔΟΜΗ | J7: SUBSTRUCTURE | K7: SUBSTRUKTŪRA | L7: PODBUDOWA | M7: SUBSTRUTURA | N7: SUBSTRUCTURA | O7: СУБСТРУКТУРА | P7: SUBSTRUKTÚRA | Q7: SUBSTRUKCIJA | R7: SUBESTRUCTURA | S7: SUBSTRUKTUR | T7: Unterkonstruktion | U7: ALT YAPI | V7: ALSZERKEZET
A8: 8 | B8: Trad8 | C8: SUPPORTO PRINCIPALE | D8: HLAVNÍ PODPORA | E8: 主要支持 | F8: GLAVNA PODRŠKA | G8: SUPPORT PRINCIPAL | H8: メインサポート | I8: ΚΥΡΙΑ ΥΠΟΣΤΗΡΙΞΗ | J8: MAIN SUPPORT | K8: GALVENIS ATBALSTS | L8: WSPARCIE GŁÓWNE | M8: APOIO PRINCIPAL | N8: SUPORT PRINCIPAL | O8: ГЛАВНАЯ ОПОРА | P8: HLAVNÁ PODPORA | Q8: GLAVNA PODPORA | R8: SOPORTE PRINCIPAL | S8: HUVUDSTÖD | T8: Grundplatte | U8: ANA DESTEK | V8: FŐ TÁMOGATÁS
A9: 9 | B9: Trad9 | C9: COMPONENTI | D9: KOMPONENTY | E9: 构成部分 | F9: KOMPONENTE OD | G9: COMPOSANTS DE | H9: コンポーネント | I9: ΣΥΣΤΑΤΙΚΑ ΤΗΣ | J9: COMPONENTS OF | K9: KOMPONENTI | L9: CZĘŚCI | M9: COMPONENTES DE | N9: COMPONENTE DE | O9: КОМПОНЕНТЫ | P9: KOMPONENTY | Q9: SESTAVNI DELI | R9: COMPONENTES | S9: KOMPONENTER AV | T9: Komponenten | U9: IN BİLEŞENLERİ | V9: ÖSSZETEVŐK
A10: 10 | B10: Trad10 | C10: TIPO INTERMEDIO | D10: STŘEDOVÝ TYP | E10: 中间件类型 | F10: SREDNJI TIP | G10: TYPE INTERMÉDIAIRE | H10: 中間タイプ | I10: ΕΝΔΙΑΜΕΣΟΣ ΤΥΠΟΣ | J10: INTERMEDIATE TYPE | K10: STARPPOSMA TIPS | L10: TYP POŚREDNI | M10: TIPO INTERMÉDIO | N10: TIP INTERMEDIAR | O10: ПРОМЕЖУТОЧНЫЙ ТИП | P10: PRECHODNÝ TYP | Q10: VMESNI TIP | R10: TIPO INTERMEDIO | S10: MELLAN TYP | T10: Art des Zwischenstück | U10: ARA TİP | V10: KÖZTES TÍPUS
A11: 11 | B11: Trad11 | C11: INTERMEDIO | D11: STŘEDOVÝ | E11: 中间的 | F11: SREDNJI | G11: INTERMEDIAIRE | H11: 中間 | I11: ΕΝΔΙΑΜΕΣΟΣ | J11: INTERMEDIATE | K11: STARPPOSMS | L11: MEDIATOR | M11: INTERMÉDIO | N11: INTERMEDIARĂ | O11: ПРОМЕЖУТОЧНЫЙ | P11: MEDZINÁRODNÝ | Q11: VMESNI | R11: INTERMEDIO | S11: MELLANLIGGANDE | T11: Zwischenstück | U11: ORTA DÜZEY | V11: KÖZTES
A12: 12 | B12: Trad12 | C12: Codice | D12: Kód | E12: 编码 | F12: Kod | G12: Code | H12: コード | I12: Κώδικας | J12: Code | K12: Kods | L12: Kod | M12: Código | N12: Cod | O12: Код | P12: Kód | Q12: Koda | R12: Código | S12: Koda | T12: Kodex | U12: kod | V12: Kód
A13: 13 | B13: Trad13 | C13: TIPO ANGOLO | D13: TYP ROHU | E13: 转角件类型 | F13: TIP UGLA | G13: TYPE D'ANGLE | H13: コーナータイプ | I13: ΤΥΠΟΣ ΓΩΝΙΑΣ | J13: CORNER TYPE | K13: STŪRA TIPS | L13: RODZAJ NAROŻNIKA | M13: TIPO ÂNGULO | N13: TIP COLȚAR | O13: ТИП УГЛОВОЙ | P13: ROHOVÝ TYP | Q13: VRTNI TIP | R13: Tipo de ángulo | S13: HÖRNTYP | T13: Art des Winkels | U13: KÖŞE TİPİ | V13: SARKOS TÍPUS
A14: 14 | B14: Trad14 | C14: TIPO NAVETTA | D14: TYP JEZDCE | E14: 滑梭类型 | F14: TIP TRANSPORTERA | G14: TYPE DE BATEAU | H14: シャトルタイプ | I14: ΤΥΠΟΣ ΜΕΤΑΦΟΡΑΣ | J14: SHUTTLE TYPE | K14: SLĪDŅA VEIDS | L14: TYP WAHADŁOWY | M14: TIPO DE SHUTTLE | N14: TIPUL DE CUTREMUR | O14: ТИП МАРШРУТКИ | P14: TYP KRÁTKODOBÝ | Q14: VRSTA ZAVAROVANJA | R14: TIPO DE carril | S14: SHUTTLE TYPE | T14: Art des Gleiters | U14: mekik tipi | V14: KOCSI TÍPUS
A15: 15 | B15: Trad15 | C15: NUMERO DI NAVETTE | D15: POČET JEZDCŮ | E15: 滑梭的数量 | F15: NO. TRANSPORTERA | G15: NB. DE BATEAUX | H15: シャトルの番号 | I15: ΑΡ. ΜΕΤΑΦΟΡΩΝ | J15: NO. OF SHUTTLES | K15: SLĪDŅU SKAITS | L15: NIE. WAŁÓWEK | M15: NUM. DE SHUTTLE | N15: NU. DE ȘOARETE | O15: НЕТ. МАРШРУТОК | P15: Č. ČÍSLA | Q15: NE. ŠKATLJEV | R15: NÚMERO DE CARRILES | S15: NEJ. AV FÖRBINDNINGAR | T15: Nr/Anzahl des Gleiters | U15: NUMARA. MERKEZLER | V15: KOCSIK SZÁMA
A16: 16 | B16: Trad16 | C16: N. DI NAVETTE PER LINEA VITA | D16: POČET JEZDCŮ NA LANKOVÝ SYSTÉM | E16: 生命线滑梭数量 | F16: NO. TRANSPORTERA ZA LINIJU ŽIVOTA | G16: NO. DE NAVETTES POUR LES LIGNES DE VIE | H16: ライフライン用シャトルの番号 | I16: ΑΡ. ΜΕΤΑΦΟΡΩΝ ΓΙΑ ΓΡΑΜΜΕΣ ΖΩΗΣ | J16: NO. OF SHUTTLES FOR LIFE LINES | K16: SLĪDŅU SKAITS DROŠĪBAS LĪNIJAI | L16: NIE. WACHTÓW NA LINIE ŻYCIA | M16: NUM. DE SHUTTLES PARA LINHAS DE VIDA | N16: NR. DE NAVETE PENTRU LINII DE VIAȚĂ | O16: NO. ЧЕЛНОКОВ ДЛЯ СПАСАТЕЛЬНЫХ ЛИНИЙ | P16: Č. RAKETOPLÁNOV PRE LINKY ZÁCHRANY | Q16: NO. ČOLNOV ZA REŠILNE PROGE | R16: NUM.CARRILES PARA LÍNEAS | S16: NEJ. AV SKYDD FÖR LIVSLINJER | T16: Nr/Anzahl der Gleiter für Lebenslinien | U16: NUMARA. YAŞAM HATLARI İÇİN MERKEZLER | V16: KÁBELES RENDSZEREKHEZ SZÜKSÉGES KOCSIK SZÁMA
A17: 17 | B17: Trad17 | C17: PASSANTE | D17: PRŮBĚŽNÝ | E17: 可通过 | F17: PROLAZNA | G17: PASSANT À TRAVERS | H17: 通過できる | I17: ΔΙΕΡΧΕΤΑΙ | J17: PASSING THROUGH | K17: ŠKĒRSOJAMAS | L17: PRZEJAZDEM | M17: PASSANTE | N17: CARE TREC PRIN | O17: ПРОХОДЯЩИЙ | P17: PRECHÁDZAJÚCE | Q17: KI POTEKAJO SKOZI | R17: Pasante | S17: PASSERAR GENOM | T17: DURCHLAUFEND | U17: İÇİNDEN GEÇMEK | V17: ÁTJÁRHATÓ
A18: 18 | B18: Trad18 | C18: NON PASSANTE | D18: NEPRŮBĚŽNÝ | E18: 不可通过 | F18: NIJE PROLAZNA | G18: NE PASSANT PAS À TRAVERS | H18: 通過できない | I18: ΔΕΝ ΔΙΕΡΧΕΤΑΙ | J18: NOT PASSING TROUGH | K18: NEŠĶĒRSOJAMAS | L18: NIE PRZECHODZĄ | M18: NÃO PASSANTE | N18: CARE NU TREC PRIN PASAJ | O18: НЕ ПРОХОДЯЩИЙ ЖЕЛОБ | P18: NEPRECHÁDZAJÚCE KORYTOM | Q18: KI NE POTEKAJO SKOZI KORITO | R18: No pasante | S18: GÅR INTE GENOM | T18: NICHT DURCHLAUFEND | U18: GEÇMİYOR | V18: NEM ÁTJÁRHAT
A19: 19 | B19: Trad19 | C19: LEGNO | D19: DŘEVO | E19: 木材 | F19: DRVO | G19: TIMBRE | H19: 木材 | I19: ΞΥΛΕΙΑ | J19: TIMBER | K19: KOKS | L19: DREWNO | M19: MADEIRA | N19: TIMBRUL | O19: БРУСЧАТКА | P19: DREVO | Q19: TIMBER | R19: MADERA | S19: TIMMER | T19: HOLZ | U19: KERESTE | V19: FA
A20: 20 | B20: Trad20 | C20: CEMENTO | D20: BETON | E20: 混凝土 | F20: BETON | G20: BÉTON | H20: コンクリート | I20: ΣΚΥΡΟΔΕΜΑ | J20: CONCRETE | K20: BETONS | L20: BETON | M20: BETÃO | N20: BETON | O20: КОНКРЕТ | P20: BETÓN | Q20: BETON | R20: HORMIGÓN | S20: BETONG | T20: BETON | U20: BETON | V20: BETON
A21: 21 | B21: Trad21 | C21: ACCIAIO | D21: OCEL | E21: 钢材 | F21: ŽELJEZO | G21: ACIER | H21: スティール | I21: ΑΤΣΑΛΙ | J21: STEEL | K21: TĒRAUDS | L21: STAL | M21: AÇO | N21: OȚEL | O21: СТАЛЬ | P21: OCEL | Q21: JEKLO | R21: ACERO | S21: STÅL | T21: STAHL | U21: ÇELİK | V21: ACÉL
A22: 22 | B22: Trad22 | C22: Descrizione | D22: Popis | E22: 描述 | F22: Opis | G22: Description | H22: 概要 | I22: Περιγραφή | J22: Description | K22: Apraksts | L22: Opis | M22: Descrição | N22: Descriere | O22: Описание | P22: Popis | Q22: Opis | R22: Descripción | S22: Beskrivning | T22: Beschreibung | U22: Açıklama | V22: Leírás
A23: 23 | B23: Trad23 | C23: n. | D23: č. | E23: 编号 | F23: Ne. | G23: Non. | H23: 番号 | I23: Αρ. | J23: No. | K23: Nr. | L23: Nr. | M23: Num. | N23: Nr. | O23: Нет. | P23: Č. | Q23: Št. | R23: Num. | S23: Nej. | T23: Nr. | U23: Numara. | V23: Sorszám
A24: 24 | B24: Trad24 | C24: Prezzo Lordo | D24: Doporučená cena | E24: 价格 | F24: Lord Price | G24: Prix Lordo | H24: 税込み総額 | I24: Ακαθάριστη τιμή | J24: Lord Price | K24: Cena | L24: Lord Price | M24: PREÇO BRUTO | N24: Prețul Domnului | O24: Лордо Цена | P24: Lord Cena | Q24: Lord Cena | R24: precio bruto | S24: Lord Price | T24: Bruttopreis | U24: Lord Fiyat | V24: Ár
A25: 25 | B25: Trad25 | C25: Subtotale Lordo | D25: Mezisoučet (dop. ceny) | E25: 主小计 | F25: Lord Međuzbir | G25: Sous-total Lord | H25: 税込み小計 | I25: Μικτό υποσύνολο | J25: Lord Subtotal | K25: Starpsumma | L25: Suma pośrednia Brutto | M25: SUBTOTAL BRUTO | N25: Lord Subtotal | O25: Лордо Итого | P25: Lord Medzisúčet | Q25: Lord vmesni seštevek | R25: Subtotal bruto | S25: Lord Subtotal | T25: Gesamtpreis | U25: Lord Ara Toplamı | V25: Részösszeg
A26: 26 | B26: Trad26 | C26: Sconto | D26: Sleva | E26: 折扣 | F26: Popust | G26: REMISE | H26: 割引 | I26: Εκπτωση | J26: Discount | K26: Atlaide | L26: Zniżka | M26: Desconto | N26: Reducere | O26: Скидка | P26: Zľava | Q26: Popust | R26: Descuento | S26: Rabatt | T26: Rabatt | U26: İndirim | V26: Kedvezmény
A27: 27 | B27: Trad27 | C27: ACCESSORI | D27: PŘÍSLUŠENSTVÍ | E27: 配件 | F27: PRIBOR | G27: ACCESSOIRES | H27: 付属品 | I27: ΑΞΕΣΟΥΑΡ | J27: ACCESSORIES | K27: PIEDERUMI | L27: AKCESORIA | M27: ACESSÓRIOS | N27: ACCESORII | O27: АКСЕССУАРЫ | P27: PRÍSLUŠENSTVO | Q27: DODATKI | R27: ACCESORIOS | S27: TILLBEHÖR | T27: ZUBEHÖR | U27: AKSESUARLAR | V27: KIEGÉSZÍTŐK
A28: 28 | B28: Trad28 | C28: TIPO DI SCALA | D28: TYP ŽEBŘÍKU | E28: 梯子类型 | F28: TIP LJESTAVA | G28: TYPE D'ÉCHELLE | H28: 梯子のタイプ | I28: ΤΥΠΟΣ ΣΚΑΛΑΣ | J28: LADDER TYPE | K28: KĀPŅU TIPS | L28: TYP DRABINY | M28: TIPO DE ESCADA | N28: TIPUL DE SCĂRIȚĂ | O28: ТИП МАСШТАБА | P28: TYP LADDER | Q28: VRSTA LEŽIŠČA | R28: Tipo de escalera | S28: LADDER TYPE | T28: LEITERTYP | U28: MERDİVEN TİPİ | V28: LÉTRA TÍPUS
A29: 29 | B29: Trad29 | C29: Normativa | D29: Standardní | E29: 规范性 | F29: Normativ | G29: NORMATIF | H29: 基準 | I29: Κανονισμός | J29: Normative | K29: Normatīvs | L29: Normatywne | M29: Norma | N29: Normativ | O29: НОРМАТИВ | P29: Normatívne | Q29: Normativni | R29: Normativa | S29: Normativ | T29: NORMATIV | U29: normatif | V29: Normatív
A30: 30 | B30: Trad30 | C30: CON GABBIA | D30: S KOŠEM | E30: 带笼 | F30: S KAVEZOM | G30: A CRINOLINE | H30: ケージ付き | I30: ΜΕ ΚΛΩΒΟ | J30: WITH CAGE | K30: AR drošības karkasu | L30: Z KLATKĄ | M30: COM GAIOLA | N30: CU CU CUȘCĂ | O30: С КЛЕТКОЙ | P30: S KLIETKOU | Q30: S KLETKO | R30: CON JAULA | S30: MED BUR | T30: MIT KÄFIG | U30: KAFESLİ | V30: KERETTEL
A31: 31 | B31: Trad31 | C31: SENZA GABBIA | D31: BEZ KOŠE | E31: 无笼 | F31: BEZ KAVEZA | G31: SANS CRINOLINE | H31: ケージなし | I31: ΧΩΡΙΣ ΚΛΩΒΟ | J31: WITHOUT CAGE | K31: BEZ drošības KARKASA | L31: BEZ KLATKI | M31: SEM GAIOLA | N31: FĂRĂ CUȘCĂ | O31: БЕЗ КЛЕТКИ | P31: BEZ KLIETKY | Q31: BREZ KLETKE | R31: SIN JAULA | S31: UTAN BUR | T31: OHNE KÄFIG | U31: KAFESSİZ | V31: KERET NÉLKÜL
A32: 32 | B32: Trad32 | C32: NO | D32: NE | E32: 否 | F32: NE | G32: NON | H32: いいえ | I32: ΟΧΙ | J32: NO | K32: BEZ | L32: NIE | M32: NÃO | N32: NU | O32: НЕТ | P32: BEZ | Q32: NE | R32: NO | S32: NEJ | T32: NEIN | U32: NUMARA | V32: NEM
A33: 33 | B33: Trad33 | C33: SI | D33: ANO | E33: 是 | F33: DA | G33: OUI | H33: はい | I33: ΝΑΙ | J33: YES | K33: JĀ | L33: TAK | M33: SIM | N33: DA | O33: ДА | P33: ÁNO | Q33: DA | R33: SI | S33: JA | T33: JA | U33: EVET | V33: IGEN
A34: 34 | B34: Trad34 | C34: Prezzo Netto | D34: Nákupní cena | E34: 净价 | F34: NETO cijena | G34: PRIX NET | H34: 税抜き合計 | I34: Καθαρή τιμή | J34: Net Price | K34: Neto cena | L34: Cena netto | M34: Preço líquido | N34: Preț net | O34: ЧИСТАЯ ЦЕНА | P34: Čistá cena | Q34: Neto cena | R34: Precio Neto | S34: Nettopris | T34: NETTO-PREIS | U34: Net fiyat | V34: Nettó ár
A35: 35 | B35: Trad35 | C35: ALTEZZA ALLO SBARCO | D35: POTŘEBNÁ VÝŠKA | E35: 到达的高度 | F35: VISINA ZA DOSEGNUTI | G35: HAUTEUR À L'ATTERRISSAGE | H35: 到達できる高さ | I35: ΜΕΓΙΣΤΟ ΥΨΟΣ | J35: HEIGHT TO REACH | K35: AUGSTUMS LĪDZ SASNIEDZAMAJAM PUNKTAM | L35: WYSOKOŚĆ DO OSIĄGNIĘCIA | M35: ALTURA A ATINGIR | N35: ÎNĂLȚIME PENTRU A AJUNGE | O35: ВЫСОТА ПРИ ПОСАДКЕ | P35: VÝŠKA NA DOSAH | Q35: VIŠINA ZA DOSEGO | R35: ALTURA DE PLATAFORMA | S35: HÖJD ATT NÅ | T35: HÖHE BEI DER LANDUNG | U35: ULAŞILACAK YÜKSEKLİK | V35: ELÉRENDŐ MAGASSÁG
A36: 36 | B36: Trad36 | C36: PROFONDITA' STAFFE | D36: VELKOST DRŽÁKU | E36: 支架尺寸 | F36: VELIČINA NOSAČA | G36: PROFONDEUR DES STIRRUPS | H36: ブラケット寸法 | I36: ΜΕΓΕΘΟΣ ΛΑΒΗΣ | J36: BRACKET SIZE | K36: STIPRINĀJUMA IZMĒRS | L36: ROZMIAR WSPORNIKA | M36: TAMANHO DE BRACKET | N36: DIMENSIUNEA SUPORTULUI | O36: ГЛУБИНА СТИРРУПОВ | P36: VEĽKOSŤ DRŽIAKA | Q36: VELIKOST NOSILCA | R36: PROFUNDIDAD DE SOPORTE | S36: FÄLGSTORLEK | T36: Befestigungs Tiefe | U36: BRAKET BOYUTU | V36: RÖGZÍTŐ MÉRETE
A37: 37 | B37: Trad37 | C37: PROTEZIONE FINALE | D37: KONEČNÁ OCHRANA | E37: 最终保护 | F37: ZAVRŠNA ZAŠTITA | G37: PROTECTION DÉFINITIVE | H37: 最終プロテクション | I37: ΤΕΛΙΚΗ ΠΡΟΣΤΑΣΙΑ | J37: FINAL PROTECTION | K37: GALA AIZSARDZĪBA | L37: OCHRONA KOŃCOWA | M37: PROTECÇÃO FINAL | N37: PROTECȚIE FINALĂ | O37: ОКОНЧАТЕЛЬНАЯ ЗАЩИТА | P37: KONEČNÁ OCHRANA | Q37: KONČNA ZAŠČITA | R37: PROTECCIÓN FINAL | S37: SLUTSKYDD | T37: entgültige Sicherung | U37: SON KORUMA | V37: VÉGSŐ VÉDELEM
A38: 38 | B38: Trad38 | C38: ESTENSIONE RIMOVIBILE | D38: ODNÍMATELNÉ ROZŠÍŘENÍ | E38: 可移动的延伸部分 | F38: NADOGRADNJA KOJA SE MOŽE UKLONITI | G38: EXTENSION AMOVIBLE | H38: 取外し可能なエクステンション | I38: ΑΦΑΙΡΟΥΜΕΝΗ ΕΠΕΚΤΑΣΗ | J38: REMOVABLE EXTENSION | K38: NOŅEMAMS PAGARINĀJUMS | L38: ZDEJMOWANE PRZEDŁUŻENIE | M38: EXTENSÃO AMOVÍVEL | N38: EXTENSIE DETAȘABILĂ | O38: СЪЕМНЫЙ УДЛИНИТЕЛЬ | P38: ODNÍMATEĽNÝ NADSTAVEC | Q38: ODSTRANLJIV PODALJŠEK | R38: EXTENSIÓN REMOVIBLE | S38: AVLÄGGBAR UTVIDGNING | T38: ABNEHMBARE VERLÄNGERUNG | U38: ÇIKARILABİLİR UZATMA | V38: LEVEHETŐ HOSSZABBÍTÓ
A39: 39 | B39: Trad39 | C39: PEDANA DI SBARCO | D39: VSTUPNÍ PLOŠINA | E39: 着陆平台 | F39: PLATFORMA ZA ISKRCAVANJE | G39: PLATE-FORME DE DÉBARQUEMENT | H39: ランディングプラットフォーム | I39: ΠΛΑΤΦΟΡΜΑ ΠΡΟΣΓΕΙΩΣΗΣ | J39: LANDING PLATFORM | K39: PIEZEMĒŠANĀS PLATFORMA | L39: PLATFORMA DO LĄDOWANIA | M39: PLATAFORMA DE ATERRAGEM | N39: PLATFORMĂ DE ATERIZARE | O39: ПЛАТФОРМА ДЛЯ ВЫСАДКИ | P39: PRISTÁVACIA PLOŠINA | Q39: PLOŠČAD ZA PRISTAJANJE | R39: PLATAFORMA DE DESENBARCO | S39: LANDANDE PLATTFORM | T39: AUSSCHIFFUNGSPLATTFORM | U39: İNİŞ PLATFORMU | V39: FOGADÓ ÁLLOMÁS
A40: 40 | B40: Trad40 | C40: SBARCO 500x500 | D40: PLOŠINA 500x500 | E40: 500x500着陆平台 | F40: 500x500 PODEST | G40: DÉCHARGEMENT 500x500 | H40: ランディング 500x500 | I40: 500Χ500 ΠΡΟΣΓΕΙΩΣΗ | J40: 500x500 LANDING | K40: 500x500 PLATFORMA | L40: 500x500 LĄDOWANIE | M40: 500x500 ATERRAGEM | N40: 500x500 ATERIZARE | O40: разгрузка 500х500 | P40: 500x500 PRÍSTAVNÁ PLOŠINA | Q40: 500x500 Pristanišče | R40: PLATAFORMA 500x500 | S40: 500x500 LANDNING | T40: ENTLADEN 500x500 | U40: 500x500 İNİŞ | V40: 500x500 FOGADÓ
A41: 41 | B41: Trad41 | C41: SBARCO 500x750 | D41: PLOŠINA 500x750 | E41: 500x750着陆平台 | F41: 500x750 PODEST | G41: DÉCHARGEMENT 500x750 | H41: ランディング 500x750 | I41: 500x750 ΠΡΟΣΓΕΙΩΣΗ | J41: 500x750 LANDING | K41: 500x750 Platforma | L41: LĄDOWANIE 500x750 | M41: 500x750 ATERRAGEM | N41: 500x750 Aterizare | O41: разгрузка 500x750 | P41: 500x750 PRÍSTAVNÁ PLOŠINA | Q41: 500x750 Pristanišče | R41: PLATAFORMA 500x750 | S41: 500x750 LANDNING | T41: ENTLADEN 500x750 | U41: 500x750 İNİŞ | V41: 500x750 FOGADÓ
A42: 42 | B42: Trad42 | C42: PROTEZIONE SBARCO | D42: PLOŠINOVÝ RÁM | E42: 着陆保护 | F42: ZAŠTITA PODESTA | G42: PROTECTION À L'ATTERRISSAGE | H42: ランディングプロテクション | I42: ΠΡΟΣΤΑΣΙΑ ΠΡΟΣΓΕΙΩΣΗΣ | J42: LANDING PROTECTION | K42: Platformas AIZSARDZĪBA | L42: OCHRONA LĄDOWANIA | M42: PROTECÇÃO DE ATERRAGEM | N42: PROTECȚIE LA ATERIZARE | O42: ЗАЩИТА ПРИ ПОСАДКЕ | P42: OCHRANA PRI PRISTÁTÍ | Q42: ZAŠČITA ZA PRISTAJANJE | R42: PROTECCIÓN DE PLATAFORMA | S42: LANDSKYDD | T42: LANDESCHUTZ | U42: İNİŞ KORUMASI | V42: LESZÁLLÁS ELLENI VÉDELEM
A43: 43 | B43: Trad43 | C43: PEDANA DI RIPOSO | D43: ODPOČINKOVÁ PLOŠINA | E43: 休息平台 | F43: OSTALE PLATFORME | G43: PLATE-FORME DE REPOS | H43: 休息プラットフォーム | I43: ΠΛΑΤΦΟΡΜΑ ΞΕΚΟΥΡΑΣΗΣ | J43: REST PLATFORM | K43: Atpūtas PLATFORMA | L43: PLATFORMA WYPOCZYNKOWA | M43: PLATAFORMA DE REPOSO | N43: PLATFORMĂ DE ODIHNĂ | O43: ПЛАТФОРМА ДЛЯ ОТДЫХА | P43: PLATFORMA NA ODSTAVENIE | Q43: PLATFORMA ZA POLETJE | R43: PLATAFORMA DE DESCANSO | S43: VILLA PLATTFORM | T43: Ruheplattform | U43: DİNLENME PLATFORMU | V43: PIHENŐPLATFORM
A44: 44 | B44: Trad44 | C44: PEDANA RIBALTABILE | D44: SKLÁPĚCÍ PLOŠINA | E44: 可折叠平台 | F44: SKLOPIVA PLATFORMA | G44: PLATE-FORME DE BASCULEMENT | H44: 折りたたみ可プラットフォーム | I44: ΠΤΥΣΣΟΜΕΝΗ ΠΛΑΤΦΟΡΜΑ | J44: FOLDABLE PLATFORM | K44: SALOKĀMA PLATFORMA | L44: SKŁADANA PLATFORMA | M44: PLATAFORMA DOBRÁVEL | N44: PLATFORMĂ PLIABILĂ | O44: ОПРОКИДЫВАЮЩАЯСЯ ПЛАТФОРМА | P44: SKLADACIA PLOŠINA | Q44: ZLOŽLJIVA PLOŠČAD | R44: PLATAFORMA BASCULANTE | S44: Fällbar plattform | T44: kippbare Plattform | U44: KATLANABİLİR PLATFORM | V44: ÖSSZECSUKHATÓ PLATFORM
A45: 45 | B45: Trad45 | C45: RIBALTABILE PER LV VERTICALE | D45: SKLÁPĚCÍ PLOŠINA PRO VERTIKÁLNÍ LS | E45: 可折叠的VII平台 | F45: MOGUĆE ZA VLL | G45: PLATE-FORME BASCULANTE POUR LV VERTICAL | H45: 垂直ライフライン用折りたたみ | I45: ΠΤΥΣΣΟΜΕΝΗ ΓΙΑ VLL | J45: FOLDABLE FOR VLL | K45: SALOKĀMA priekš VLL | L45: SKŁADANY DO VLL | M45: DOBRÁVEL PARA VLL | N45: PLIABILĂ PENTRU VLL | O45: ОПРОКИДЫВАЮЩАЯСЯ ПЛАТФОРМА ДЛЯ ВЕРТИКАЛЬНЫХ ЛЬВОВ | P45: SKLADACIA PRE VLL | Q45: ZLOŽLJIVA ZA VLL | R45: PLATAFORMA BASCULANTE PARA LV VERTICAL | S45: FALLBAR FÖR VLL | T45: kippbare Plattform für vertikale Lebenslinien | U45: VLL İÇİN KATLANABİLİR | V45: ÖSSZECSUKHATÓ A VLL-HEZ
A46: 46 | B46: Trad46 | C46: NORMATIVA PEDANA | D46: NORMATÍVNA PLOŠINA | E46: 平台规范性 | F46: PLATFORMA NORMATIVNA | G46: RÉGLEMENTATION DES PLATES-FORMES | H46: プラットフォームの基準 | I46: ΚΑΝΟΝΙΚΗ ΠΛΑΤΦΟΡΜΑ | J46: PLATFORM NORMATIVE | K46: PLATFORMAs normatīvs | L46: PLATFORMA NORMATYWNA | M46: NORMA DA PLATAFORMA | N46: PLATFORMĂ NORMATIVĂ | O46: ПРАВИЛА ПЛАТФОРМЫ | P46: PLOŠINA NORMATÍVNA | Q46: PLOŠČAD NORMATIVNA | R46: NORMAS DE LA PLATAFORMA | S46: PLATTFORM NORMATIV | T46: PLATTFORMVORSCHRIFTEN | U46: PLATFORM NORMATİFİ | V46: PLATFORM NORMATÍV
A47: 47 | B47: Trad47 | C47: BOTOLA DI CHIUSURA | D47: ZABEZPEČOVACÍ KRYT | E47: 安全关闭 | F47: SIGURNOSNO ZATVARANJE | G47: HATCH DE FERMETURE | H47: 不法侵入防止ふた | I47: ΚΛΕΙΣΙΜΟ ΑΣΦΑΛΕΙΑΣ | J47: SECURITY CLOSURE | K47: DROŠĪBAS AIZVĒRŠANA | L47: ZAMKNIĘCIE BEZPIECZEŃSTWA | M47: PORTA DE SEGURANÇA | N47: ÎNCHIDERE DE SECURITATE | O47: ЗАКРЫВАЮЩАЯСЯ ШЛЯПА | P47: BEZPEČNOSTNÝ UZÁVER | Q47: VARNOSTNO ZAPIRANJE | R47: TRAMPILLA ANTI-INTRUSIÓN | S47: SÄKERHETSSTÄNGNING | T47: Verschlusskappe | U47: GÜVENLİK KAPATMA | V47: BIZTONSÁGI ZÁR
A48: 48 | B48: Trad48 | C48: TIPO PIEDINI | D48: TYP NOHY | E48: 脚踏类型 | F48: VRSTA NOGE | G48: TYPE DE PIED | H48: 脚の種類 | I48: ΤΥΠΟΣ ΠΟΔΙΩΝ | J48: FEET TYPE | K48: PĒDU TIPS | L48: TYP STÓP | M48: TIPO DE PÉS | N48: TIP PICIOARE | O48: ТИП НОГИ | P48: TYP PÔD | Q48: TIP STOPAL | R48: TIPO DE PIES | S48: FÖTTYP | T48: Fuß-typ | U48: AYAK TİPİ | V48: LÁBAK TÍPUSA
A49: 49 | B49: Trad49 | C49: PIEDINI REGOLABILI | D49: NASTAVITELNÉ NOŽIČKY | E49: 可调节脚踏 | F49: PRILAGODLJIVE NOGE | G49: PIEDS RÉGLABLES | H49: 調整可能な脚 | I49: ΡΥΘΜΙΖΟΜΕΝΑ ΠΟΔΙΑ | J49: ADJUSTABLE FEET | K49: REGULĒJAMAS KĀJAS | L49: REGULOWANY SPÓD | M49: PÉS AJUSTÁVEIS | N49: PICIOARE REGLABILE | O49: РЕГУЛИРУЕМЫЕ НОЖКИ | P49: NASTAVITEĽNÉ NOŽIČKY | Q49: NASTAVLJIVE NOGE | R49: PIES AJUSTABLES | S49: JUSTERBARA FÖTTER | T49: STELLFÜSSE | U49: AYARLANABİLİR AYAK | V49: ÁLLÍTHATÓ LÁBAK
A50: 50 | B50: Trad50 | C50: PIEDINI SNODATI | D50: SKLOPNÉ NOHY | E50: 铰链式脚踏 | F50: RASKLOPLJIVE NOGE | G50: PIEDS ARTICULE' | H50: ヒンジ付脚 | I50: ΚΑΛΥΜΕΝΑ ΠΟΔΙΑ | J50: HINGED FEET | K50: PĒDAS AR EŅĢĒM | L50: STOPKI NA ZAWIASACH | M50: PÉ ROTULADO | N50: PICIOARE CU BALAMALE | O50: СОЕДИНЕННЫЕ НОГИ | P50: PODPÄTIA NA KĽÚČIKOCH | Q50: NOGE S KOTIČKAMI | R50: PIES ARTICULADOS | S50: GÅNGADE FÖTTER | T50: einstellbare Füße | U50: MENTEŞELİ AYAK | V50: FELSZERELHETŐ LÁBAK
A51: 51 | B51: Trad51 | C51: GANCIO PER SCALE | D51: HÁK PRO ŽEBŘÍKY | E51: 梯子挂钩 | F51: KUKA ZA LJESTVE | G51: CINTRE POUR ESCALIER | H51: 梯子用フック | I51: ΓΑΝΤΖΟΣ ΓΙΑ ΣΚΑΛΕΣ | J51: HOOK FOR LADDERS | K51: ĀĶIS KĀPNĒM | L51: HAKI DO DRABIN | M51: ANZOL PARA ESCADAS | N51: CÂRLIG PENTRU SCĂRI | O51: ВЕШАЛКА ДЛЯ ЛЕСТНИЦЫ | P51: HÁK NA REBRÍKY | Q51: KAVELJ ZA LESTVE | R51: GANCHO PARA ESCALERAS | S51: HOOK FÖR LADDERS | T51: Leiterhaken | U51: MERDİVEN KANCA | V51: LÉTRA AKASZTÓK
A52: 52 | B52: Trad52 | C52: MANIGLIONI | D52: ZÁBRADLÍ | E52: 手柄 | F52: RUČKE | G52: POIGNÉE | H52: ハンドル | I52: ΛΑΒΕΣ | J52: HANDLES | K52: ROKTURI | L52: UCHWYTY | M52: CORRIMÃO | N52: MÂNERE | O52: РУЧКА | P52: ÚCHYTKY | Q52: ROČKE | R52: MANIJAS | S52: HANDTAG | T52: HANDLAUF | U52: KOLLAR | V52: KAPASZKODÓK
A53: 53 | B53: Trad53 | C53: MODULI SCALE | D53: ŽEBŘÍKOVÉ MODULY | E53: 梯子组件 | F53: MODULI LJESTAVA | G53: MODULES D'ÉCHELLE | H53: 梯子モジュール | I53: ΤΜΗΜΑΤΑ ΣΚΑΛΑΣ | J53: LADDER MODULS | K53: Kāpņu MODUļi | L53: MODUŁY DRABINOWE | M53: MÓDULOS DE ESCADAS | N53: MODULURI PENTRU SCĂRIȚĂ | O53: ЛЕСТНИЧНЫЕ МОДУЛИ | P53: MODULY ŽEBRÍKOV | Q53: MODULI ZA LESTVICE | R53: MÓDULOS DE ESCALERA | S53: LADDER MODULS | T53: Leitermodule | U53: MERDİVEN MODÜLLERİ | V53: LÉTRA MODULOK
A54: 54 | B54: Trad54 | C54: PZ | D54: POČET | E54: 件 | F54: PCS | G54: PZ | H54: 個数 | I54: ΤΕΜ | J54: PCS | K54: Gab | L54: SZT | M54: Pcs | N54: PCS | O54: PZ | P54: PCS | Q54: PCS | R54: UD | S54: PCS | T54: Stk. | U54: PC'ler | V54: DB
A55: 55 | B55: Trad55 | C55: Gruppo | D55: Skupina | E55: 小组 | F55: Skupina | G55: Groupe | H55: グループ | I55: Ομάδα | J55: Group | K55: Grupa | L55: Grupa | M55: Grupo | N55: Grup | O55: Группа | P55: Skupina | Q55: Skupina | R55: Grupo | S55: Grupp | T55: Gruppe | U55: Grup | V55: Csoport
A56: 56 | B56: Trad56 | C56: ASTE GABBIA | D56: PROFILOVÉ TYČE PRO KOŠ | E56: 笼条 | F56: ŠIPKE ZA KAVEZ | G56: TIGES DE CAGE | H56: ケージバー | I56: ΚΑΓΚΕΛΑ | J56: CAGE BARS | K56: Karkasa stieņi | L56: PRĘTY KLATKI | M56: BARRAS DA GAIOLA | N56: BARE DE CUȘCĂ | O56: СТЕРЖНИ КЛЕТКИ | P56: KLIETKOVÉ TYČE | Q56: KLETKE ZA KLETKE | R56: BARRAS DE JAULA | S56: CAGE BARS | T56: Käfigstangen | U56: KAFES BARLAR | V56: RÁCS ELEMEK
A57: 57 | B57: Trad57 | C57: ANELLI | D57: PRSTENCE KOŠE | E57: 环 | F57: PRSTENOVI | G57: BAGUES | H57: リング | I57: ΔΑΧΤΥΛΙΔΙΑ | J57: RINGS | K57: GREDZENI | L57: OBRĘCZE | M57: ANEIS | N57: ANULE | O57: КОЛЬЦА | P57: KRÚŽKY | Q57: OBROČKI | R57: ANILLOS | S57: RINGAR | T57: RINGE | U57: YÜZÜKLER | V57: GYŰRŰK
A58: 58 | B58: Trad58 | C58: STAFFE | D58: DRŽÁK NA STĚNU | E58: 支架 | F58: NOSAČI | G58: SUPPORTS | H58: ブラケット | I58: ΛΑΒΕΣ | J58: BRACKETS | K58: STIPRINĀJUMI | L58: WSPORNIKI | M58: BRACKETS | N58: BRAȚE | O58: КРЕПЕЖ | P58: DRŽIAKY | Q58: OHRANILA | R58: SOPORTE | S58: FÄSTER | T58: Klammern | U58: PARANTEZ | V58: TARTÓK
A59: 59 | B59: Trad59 | C59: GIUNZIONI | D59: ŽEBŘÍKOVÝ SPOJ | E59: 连接件 | F59: SPOJEVI | G59: JOINTS | H59: ジャンクション | I59: ΣΥΝΔΕΣΕΙΣ | J59: JUNCTIONS | K59: SAVIENOJUMI | L59: WĘZŁY | M59: JUNÇÕES | N59: JUNCȚIUNI | O59: СОЮЗЫ | P59: JUNCTIONS | Q59: JUNCTIONS | R59: ARTICULACIONES | S59: JUNCTIONS | T59: Verbindung | U59: KAVŞAKLAR | V59: TOLDÓK
A60: 60 | B60: Trad60 | C60: TAPPI | D60: KRYTKY | E60: 帽子 | F60: KAPE | G60: CAPS | H60: キャップ | I60: CAPS | J60: CAPS | K60: Nosegi | L60: NASADY | M60: CAPS | N60: CAPS | O60: CAPS | P60: KAPSY | Q60: ZAHTEVE | R60: TAPONES | S60: CAPS | T60: Kappen | U60: BÜYÜK HARF | V60: VÉGELEM
A61: 61 | B61: Trad61 | C61: TARGHETTA | D61: ŠTÍTEK | E61: 标签 | F61: OZNAKA | G61: TAG | H61: ラベル | I61: ΕΤΙΚΕΤΑ | J61: LABEL | K61: Norādījumu plāksne | L61: ETYKIETA | M61: TARGA | N61: ETICHETA | O61: TAG | P61: ŠTÍTKY | Q61: ETIKETE | R61: TARJETA | S61: MÄRKA | T61: Typenschild | U61: ETİKET | V61: CÍMKE
A62: 62 | B62: Trad62 | C62: FISSAGGI | D62: UPEVNĚNÍ | E62: 紧固件 | F62: PRIČVRŠĆIVANJE | G62: FIXATIONS | H62: 締結具 | I62: ΣΤΕΡΕΩΣΕΙΣ | J62: FASTENINGS | K62: Stiprinājumi | L62: MOCOWANIA | M62: FIXAÇÕES | N62: FIXAȚII | O62: ФИКСИРОВАНИЕ | P62: PRÍSLUŠENSTVO | Q62: PRITRDILNI ELEMENTI | R62: FIJACIONES | S62: FÄSTNINGAR | T62: Befestigung | U62: BAĞLANTILAR | V62: RÖGZÍTŐK
A63: 63 | B63: Trad63 | C63: FISSAGGI STAFFE | D63: UPEVNĚNÍ DRŽÁKŮ | E63: 支架固定件 | F63: FIKSIRANJE NOSAČA | G63: FIXATIONS DES SUPPORTS | H63: ブラケットの締結具 | I63: ΣΤΕΡΕΩΣΕΙΣ ΛΑΒΩΝ | J63: BRACKETS FIXINGS | K63: KRONŠTEINu STIPRINĀJUMI | L63: MOCOWANIA WSPORNIKÓW | M63: FIXAÇÕES DOS SUPORTES | N63: SUPORTURI DE FIXARE | O63: КРЕПЛЕНИЯ КРОНШТЕЙНОВ | P63: DRŽIAKY UPEVŇOVACIE PRVKY | Q63: NOSILCI ZA PRITRDITEV | R63: FIJACIÓN DE SOPORTES | S63: FÄSTE Fästningar | T63: Klammerbefestigung | U63: BRAKET BAĞLANTILARI | V63: KONZOLOK RÖGZÍTÉSEK
A64: 64 | B64: Trad64 | C64: FISSAGGIO INTERMEDIO | D64: MEZILEHLÉ UPEVNĚNÍ | E64: 中间固定装置 | F64: FIKSIRANJE SREDNJIH NOSAČA | G64: FIXATION INTERMÉDIAIRE | H64: 中間部の締結 | I64: ΕΝΔΙΑΜΕΣΗ ΣΤΕΡΕΩΣΗ | J64: INTERMEDIATE FIXING | K64: STARPPOSMA STIPRINĀJUMS | L64: MOCOWANIE POŚREDNIE | M64: FIXAÇÃO INTERMÉDIA | N64: FIXARE INTERMEDIARĂ | O64: ПРОМЕЖУТОЧНОЕ КРЕПЛЕНИЕ | P64: MEDZIĽAHLÉ UPEVNENIE | Q64: VMESNA PRITRDITEV | R64: FIJACIÓN INTERMEDIA | S64: MELLANFIKTNING | T64: ZWISCHENBEFESTIGUNG | U64: ARA SABİTLEME | V64: KÖZBENSŐ RÖGZÍTÉS
A65: 65 | B65: Trad65 | C65: LINGUA TARGHETTA | D65: JAZYKOVÁ VERZE ŠTÍTKU | E65: 标签语言 | F65: JEZIK NA OZNACI | G65: LANGUE DE LA PLAQUE SIGNALÉTIQUE | H65: ラベルの言語 | I65: ΓΛΩΣΣΑ ΕΤΙΚΕΤΩΝ | J65: LABEL LANGUAGE | K65: Norādījumu plāksnes VALODAS | L65: JĘZYK ETYKIETY | M65: IDIOMA DA TARGA | N65: LIMBA ETICHETEI | O65: ПЛАСТИНЧАТЫЙ ЯЗЫЧОК | P65: JAZYK ŠTÍTKA | Q65: JEZIK OZNAČBE | R65: IDIOMA DE LA TARJETA | S65: ETIKETTSPRÅK | T65: TYPENSCHILDSPRACHE | U65: ETİKET DİLİ | V65: CÍMKE NYELVE
A66: 66 | B66: =+_xlfn.CONCAT("Trad",A66) -> Trad66 | C66: ESTENSIONE SUPERIORE | D66: HORNÍ ROZŠÍŘENÍ | E66: 上部延伸件 | F66: GORNJE PROŠIRENJE | G66: EXTENSION SUPÉRIEURE | H66: 上部の延長 | I66: ΑΝΩ ​​ΕΠΕΚΤΑΣΗ | J66: UPPER EXTENSION | K66: AUGŠĒJAIS PAGARINĀJUMS | L66: PRZEDŁUŻENIE GÓRNE | M66: EXTENSÃO SUPERIOR | N66: EXTENSIE SUPERIOARĂ | O66: ВЕРХНЕЕ РАСШИРЕНИЕ | P66: HORNÝ NADSTAVEC | Q66: ZGORNJI PODALJŠEK | R66: EXTENSIÓN SUPERIOR | S66: ÖVRE UTVIDGNING | T66: OBERE VERLÄNGERUNG | U66: ÜST UZANTI | V66: FELSŐ MEGHOSSZABBÍTÁS
A67: 67 | B67: Trad67 | C67: INTERASSE INTERMEDI | D67: STŘEDOVÉ ROZPĚTÍ | E67: 中间跨度 | F67: SREDNJI PROSTOR | G67: EMPATTEMENT INTERMÉDIAIRE | H67: 中間スパン | I67: ΕΝΔΙΑΜΕΣΟ ΑΝΟΙΓΜΑ | J67: INTERMEDIATE SPAN | K67: STARPPOSMS | L67: POŚREDNIA ROZPIĘTOŚĆ | M67: VÃO INTERMÉDIO | N67: EXTENSIE INTERMEDIARĂ | O67: ПРОМЕЖУТОЧНАЯ КОЛЁСНАЯ БАЗА | P67: MEDZIĽAHLÉ ROZPÄTIE | Q67: VMESNI RAZPON | R67: DISTANCIA ENTRE INTERMEDIOS | S67: MELLANMELLAN SPAN | T67: ZWISCHENRADSTAND | U67: ORTA AÇIKLIK | V67: KÖZBENSŐ FESZTÁVOLSÁG
A68: 68 | B68: Trad68 | C68: INTERASSE 5 MT (SUGGERITO) | D68: ROZPĚTÍ 5 M (DOPORUČENÁ) | E68: 跨度5米（建议）。 | F68: PROSTOR 5 MT (PREPORUČENO) | G68: DISTANCE CENTRALE 5 MT (SUGGÉRÉE) | H68: スパン5M（推奨） | I68: ΑΝΟΙΓΜΑ 5 MT (ΠΡΟΤΕΙΝΟΜΕΝΟ) | J68: SPAN 5 MT (SUGGESTED) | K68: STARPPOSMS 5 MT (IETEICAMAIS) | L68: ROZPIĘTOŚĆ 5 MT (SUGEROWANA) | M68: INTERVALO DE 5 MT (SUGERIDO) | N68: DESCHIDERE 5 MT (SUGERATĂ) | O68: МЕЖОСЕВОЕ РАССТОЯНИЕ 5 МТ (ПРЕДЛАГАЕТСЯ) | P68: ROZPÄTIE 5 MT (NAVRHOVANÉ) | Q68: RAZPON 5 MT (PREDLAGANO) | R68: DIST. ENTRE EJES 5 MT (SUGERIDO) | S68: SPAN 5 MT (FÖRESLAGT) | T68: ACHSABSTAND 5 MT (VORGESCHLAGEN) | U68: AÇIKLIK 5 MT (ÖNERİLEN) | V68: FESZTÁVOLSÁG 5 M (JAVASOLT)
A69: 69 | B69: Trad69 | C69: NESSUN INTERMEDIO | D69: ŽÁDNÝ MEZIPRODUKT | E69: 没有中间件 | F69: NEMA SREDNJEG | G69: PAS D'INTERMÉDIAIRE | H69: 中間なし | I69: ΟΧΙ ΕΝΔΙΑΜΕΣΟ | J69: NO INTERMEDIATE | K69: BEZ STARPPOSMA | L69: BRAK POŚREDNICH | M69: SEM INTERMÉDIO | N69: FĂRĂ INTERMEDIAR | O69: БЕЗ ПРОМЕЖУТОЧНЫХ | P69: BEZ MEDZIPODSTAVCA | Q69: BREZ VMESNEGA | R69: NINGÚN INTERMEDIO | S69: INGEN mellanliggande | T69: keine Zwischenhalterung | U69: ARA YOK | V69: NINCS KÖZTESELEM
A70: 70 | B70: Trad70 | C70: N.1 INTERMEDIO | D70: N.1 MEZIPRODUKT | E70: 1号中间件 | F70: Br. 1 SREDNJI | G70: N.1 INTERMÉDIAIRE | H70: No.1中間 | I70: Νο 1 ΕΝΔΙΑΜΕΣΟ | J70: No. 1 INTERMEDIATE | K70: Nr. 1 starpposms | L70: Nr 1 POŚREDNI | M70: Nº 1 INTERMÉDIO | N70: Nr. 1 INTERMEDIAR | O70: N.1 ПРОМЕЖУТОЧНЫЙ | P70: č. 1 MEDZINÁRODNÉ | Q70: št. 1 INTERMEDIATE | R70: N.1 INTERMEDIO | S70: Nr 1 MELLANMELLAN | T70: 1 Zwischenhalterung | U70: 1 ORTA | V70: 1. sz. KÖZTES ELEM
A71: 71 | B71: Trad71 | C71: N.2 INTERMEDIO | D71: N.2 MEZIPRODUKT | E71: 2号中间件 | F71: Br. 2 SREDNJI | G71: N.2 INTERMÉDIAIRE | H71: No.2中間 | I71: Αρ. 2 ΕΝΔΙΑΜΕΣΟΙ | J71: No. 2 INTERMEDIATES | K71: Nr. 2 starpposmi | L71: Nr 2 POŚREDNIKI | M71: N.º 2 INTERMÉDIOS | N71: Nr. 2 INTERMEDIARI | O71: N.2 ПРОМЕЖУТОЧНЫЙ | P71: č. 2 MEDZINÁRODNÉ | Q71: št. 2 MEDNARODNI | R71: N.2 INTERMEDIO | S71: Nr 2 mellanhänder | T71: 2 Zwischenhalterung | U71: 2 ARA ÜRÜNLER | V71: 2. sz. KÖZTES ELEM
A72: 72 | B72: Trad72 | C72: N.3 INTERMEDIO | D72: N.3 MEZIPRODUKT | E72: 3号中间件 | F72: Br. 3 SREDNJI | G72: N.3 INTERMÉDIAIRE | H72: No.3中間 | I72: Αρ. 3 ΕΝΔΙΑΜΕΣΟΙ | J72: No. 3 INTERMEDIATES | K72: Nr. 3 starpposmi | L72: Nr 3 POŚREDNIKI | M72: N.º 3 INTERMÉDIOS | N72: Nr. 3 INTERMEDIARI | O72: N.3 ПРОМЕЖУТОЧНЫЙ | P72: č. 3 MEDZINÁRODNÉ | Q72: št. 3 SREDNJEŠOLAKI | R72: N.3 INTERMEDIO | S72: Nr 3 INTERMEDIATER | T72: 3 Zwischenhalterung | U72: 3 ARA ÜRÜNLER | V72: 3. sz. KÖZTES ELEM
A73: 73 | B73: Trad73 | C73: N.4 INTERMEDIO | D73: N.4 MEZIPRODUKT | E73: 4号中间件 | F73: Br. 4 SREDNJI | G73: N.4 INTERMÉDIAIRE | H73: No.4中間 | I73: Αριθ. 4 ΕΝΔΙΑΜΕΣΟΙ | J73: No. 4 INTERMEDIATES | K73: Nr. 4 starpposmi | L73: Nr 4 POŚREDNIKI | M73: N.º 4 INTERMÉDIOS | N73: Nr. 4 INTERMEDIARI | O73: N.4 ПРОМЕЖУТОЧНЫЙ | P73: č. 4 INTERMEDIÁTI | Q73: št. 4 INTERMEDIATI | R73: N.4 INTERMEDIO | S73: Nr 4 mellanhänder | T73: 4 Zwischenhalterung | U73: 4 ARA ÜRÜNLER | V73: 4. sz. KÖZTES ELEM
A74: 74 | B74: Trad74 | C74: N.5 INTERMEDIO | D74: N.5 MEZIPRODUKT | E74: 5号中间件 | F74: Br. 5 SREDNJI | G74: N.5 INTERMÉDIAIRE | H74: No.5中間 | I74: Νο 5 ΕΝΔΙΑΜΕΣΟΙ | J74: No. 5 INTERMEDIATES | K74: Nr. 5 starpposmi | L74: Nr 5 POŚREDNIKI | M74: No. 5 INTERMÉDIOS | N74: Nr. 5 INTERMEDIARI | O74: N.5 ПРОМЕЖУТОЧНЫЙ | P74: č. 5 STREDNODOBÍ | Q74: št. 5 INTERMEDIATI | R74: N.5 INTERMEDIO | S74: Nr 5 mellanhänder | T74: 5 Zwischenhalterung | U74: 5 ARA ÜRÜNLER | V74: 5. sz. KÖZTES ELEM
A75: 75 | B75: Trad75 | C75: NAVETTA INCLUSA | D75: VČETNĚ JEZDCE | E75: 包括滑梭 | F75: UKLJUČENA ŠUTLA | G75: NAVETTE INCLUSE | H75: シャトル同梱 | I75: ΠΕΡΙΛΑΜΒΑΝΕΤΑΙ ΤΟ SHUTTLE | J75: INCLUDED SHUTTLE | K75: Slīdnis ietverts | L75: TRANSPORT W ZESTAWIE | M75: INCLUI SHUTTLE | N75: NAVETĂ INCLUSĂ | O75: ТРАНСФЕР ВКЛЮЧЕН | P75: VRÁTANE KYVADLOVEJ DOPRAVY | Q75: VKLJUČENI SHUTTLE | R75: CARRIL INCLUIDO | S75: INKLUDERAD SKYDD | T75: GLEITER INBEGRIFFEN | U75: DAHİL SERVİS | V75: A KOCSIT TARTALMAZZA
A76: 76 | B76: Trad76 | C76: MANIGLIE | D76: RUKOJEŤE | E76: 手柄 | F76: RUČKE | G76: POIGNÉES | H76: ハンドル | I76: ΧΕΙΡΟΛΑΒΕΣ | J76: HANDLES | K76: Rokturi | L76: UCHWYTY | M76: CORRIMÃO | N76: MANELE | O76: РУЧКИ | P76: HANDLES | Q76: ROČKE | R76: MANETA | S76: HANDTAG | T76: GRIFFE | U76: KOLLAR | V76: KAPASZKODÓK
A77: 77 | B77: Trad77 | C77: FISSAGGIO ALLA BASE | D77: UPEVNĚNÍ ZÁKLADNY | E77: 底座固定装置 | F77: OSNOVNO FIKSIRANJE | G77: FIXATION À LA BASE | H77: ベース締結 | I77: ΣΤΕΡΕΩΣΕΙΣ ΒΑΣΕΩΝ | J77: BASE FIXINGS | K77: BĀZES STIPRINĀJUMI | L77: MOCOWANIA PODSTAWOWE | M77: FIXAÇÕES DA BASE | N77: FIXAȚII DE BAZĂ | O77: КРЕПЛЕНИЕ К ОСНОВАНИЮ | P77: ZÁKLADŇOVÉ PRÍSLUŠENSTVO | Q77: OHRANITVE ZA BAZO | R77: FIJACIÓN A LA BASE | S77: BASFIKSNINGAR | T77: BEFESTIGUNG AN DER BASIS | U77: TABAN DÜZENLEMELERİ | V77: ALSÓ RÖGZÍTÉSEK
A78: 78 | B78: Trad78 | C78: RINFORZO PER SCALE | D78: ZPEVNĚNÍ SCHODŮ | E78: 梯子加固 | F78: OJAČANJE LJESTAVA | G78: RENFORCEMENT DES ESCALIERS | H78: 梯子の補強 | I78: ΕΝΙΣΧΥΣΗ ΣΚΑΛΩΝ | J78: LADDER REINFORCEMENT | K78: KĀPŅU NOSTIPRINĀŠANA | L78: WZMOCNIENIE DRABINKI | M78: REFORÇO DE ESCADA | N78: CONSOLIDAREA SCĂRII | O78: УКРЕПЛЕНИЕ СТУПЕНЕЙ | P78: VYSTUŽENIE REBRÍKA | Q78: OJAČITEV LESTVE | R78: REFUERZO DE ESCALERAS | S78: LADDERFORSTÄRKNING | T78: TREPPENBEWEHRUNG | U78: MERDİVEN GÜÇLENDİRME | V78: LÉTRA MEGERŐSÍTÉS
A79: 79 | B79: Trad79 | C79: Totale | D79: Celkem | E79: 总数 | F79: UKUPNO | G79: TOTAL | H79: 合計 | I79: ΣΥΝΟΛΟ | J79: TOTAL | K79: KOPĀ | L79: CAŁKOWITY | M79: TOTAL | N79: TOTAL | O79: ВСЕГО | P79: SPOLU | Q79: SKUPAJ | R79: TOTAL | S79: TOTAL | T79: gesamt | U79: TOPLAM | V79: ÖSSZES
A80: 80 | B80: Trad80 | C80: Totale prezzo Netto | D80: Celková cena Netto | E80: 总净价 | F80: Ukupna neto cijena | G80: PRIX NET TOTAL | H80: 税抜き合計価格 | I80: Συνολική Καθαρή Τιμή | J80: Total Net Price | K80: Kopējā neto cena | L80: Całkowita cena netto | M80: Preço total líquido | N80: Preț net total | O80: ОБЩАЯ ЧИСТАЯ ЦЕНА | P80: Celková čistá cena | Q80: Skupna neto cena | R80: PRECIO NETO TOTAL | S80: Totalt nettopris | T80: Gesamtpreis netto | U80: Toplam Net Fiyat | V80: Teljes nettó ár
A81: 81 | B81: Trad81 | C81: Info Cliente | D81: Informace o zákazníkovi | E81: 客户数据 | F81: Podaci o klijentima | G81: Données du client | H81: 顧客データ | I81: Δεδομένα πελατών | J81: Client data | K81: Klienta dati | L81: Dane klienta | M81: Dados do cliente | N81: Date despre client | O81: Данные клиента | P81: Údaje o klientovi | Q81: Podatki o stranki | R81: Datos del cliente | S81: Kunddata | T81: Kundendaten | U81: müşteri verileri | V81: Ügyfél adatai
A82: 82 | B82: Trad82 | C82: Numero Cliente | D82: Číslo zákazníka | E82: 客户编号 | F82: Broj klijenta | G82: Numéro de client | H82: 顧客番号 | I82: Αριθμός πελάτη | J82: Client Number | K82: Klienta numurs | L82: Numer klienta | M82: Número de cliente | N82: Numărul clientului | O82: Номер клиента | P82: Číslo klienta | Q82: Številka stranke | R82: Número de cliente | S82: Klient nummer | T82: Kundennummer | U82: Müşteri numarası | V82: Ügyfél száma
A83: 83 | B83: Trad83 | C83: Codice Semiramis | D83: Kód Semiramis | E83: Semiramis代码 | F83: SemiramIS kod | G83: Code Semiramis | H83: セミラミスコード | I83: Κώδικας Semiramis | J83: Semiramis Code | K83: Semiramis kods | L83: Kod Semiramis | M83: Código Semiramis | N83: Cod Semiramis | O83: Код Семирамиды | P83: Kód Semiramis | Q83: Koda Semiramis | R83: Código Semiramis | S83: Semiramis -kod | T83: Semiramis-Code | U83: Semiramis Kodu | V83: Semiramis kód
A84: 84 | B84: Trad84 | C84: Nome Cliente | D84: Jméno zákazníka | E84: 客户名称 | F84: ime klijenta | G84: Nom du client | H84: 顧客名 | I84: Όνομα Πελάτη | J84: Client Name | K84: Klienta nosaukums | L84: Nazwa klienta | M84: Nome do cliente | N84: Numele clientului | O84: имя клиента | P84: Názov klienta | Q84: Ime stranke | R84: Nombre del cliente | S84: Kundnamn | T84: Name des Kunden | U84: Müşteri Adı | V84: Ügyfél neve
A85: 85 | B85: Trad85 | C85: Email | D85: E-mail | E85: 电子邮件 | F85: E -pošta | G85: Courriel | H85: Eメール | I85: ΗΛΕΚΤΡΟΝΙΚΗ ΔΙΕΥΘΥΝΣΗ | J85: Email | K85: E-pasts | L85: E-mail | M85: Email | N85: Email | O85: Электронное письмо | P85: E-mail | Q85: Elektronska pošta | R85: Correo electrónico | S85: E-post | T85: E-Mail | U85: E-posta | V85: E-mail
A86: 86 | B86: Trad86 | C86: Telefono | D86: Telefon | E86: 电话 | F86: Telefon | G86: Téléphone | H86: 電話 | I86: Τηλέφωνο | J86: Phone | K86: Tālrunis | L86: Telefon | M86: Telefone | N86: Telefon | O86: Телефон | P86: Telefón | Q86: Telefon | R86: Teléfono | S86: Telefon | T86: Telefon | U86: Telefon | V86: Telefon
A87: 87 | B87: Trad87 | C87: Sito Web | D87: Internetové stránky | E87: 网站 | F87: Web stranica | G87: Site web | H87: Webサイト | I87: Δικτυακός τόπος | J87: Website | K87: Tīmekļa vietne | L87: Strona internetowa | M87: Sítio Web | N87: Site web | O87: Веб-сайт | P87: Webová stránka | Q87: Spletna stran | R87: Sitio web | S87: Hemsida | T87: Website | U87: İnternet sitesi | V87: Weboldal
A88: 88 | B88: Trad88 | C88: Tecnico Commerciale | D88: Technický obchodní zástupce | E88: 技术销售人员 | F88: Tehnički prodavač | G88: Technico-commercial | H88: テクニカルセールスマン | I88: Τεχνικός πωλητής | J88: Technical Salesman | K88: Tehniskais pārdevējs | L88: Sprzedawca techniczny | M88: Técnico Comercial | N88: Vânzător tehnic | O88: Технический продавец | P88: Technický predajca | Q88: Tehnični prodajalec | R88: Técnico Comercial | S88: Teknisk säljare | T88: Technischer Verkäufer | U88: Teknik Satıcı | V88: Műszaki értékesítő
A89: 89 | B89: Trad89 | C89: Partita IVA | D89: DIČ | E89: 增值税号码 | F89: PDV broj | G89: Numéro de TVA | H89: VAT番号 | I89: Αριθμός ΦΠΑ | J89: VAT Number | K89: PVN maksātāja numurs | L89: Numer VAT | M89: Numero Fiscal IVA | N89: Număr de TVA | O89: Номер НДС | P89: Číslo DPH | Q89: Številka DDV | R89: Número de IVA | S89: Momsregistreringsnummer | T89: MwSt.-Nummer | U89: KDV Numarası | V89: Adószám
A90: 90 | B90: Trad90 | C90: Codice IBAN | D90: Kód IBAN | E90: IBAN代码 | F90: IBAN BROJ | G90: Code IBAN | H90: IBANコード | I90: Κωδικός IBAN | J90: IBAN Code | K90: IBAN kods | L90: Kod IBAN | M90: Código IBAN | N90: Cod IBAN | O90: IBAN-код | P90: Kód IBAN | Q90: Koda IBAN | R90: Código IBAN | S90: Iban-nummer | T90: IBAN | U90: IBAN numarası | V90: IBAN kód
A91: 91 | B91: Trad91 | C91: Codice SWIFT | D91: Kód SWIFT | E91: SWIFT代码 | F91: SWIFT BROJ | G91: Code SWIFT | H91: SWIFTコード | I91: Κωδικός SWIFT | J91: SWIFT Code | K91: SWIFT kods | L91: Kod SWIFT | M91: Código SWIFT | N91: Cod SWIFT | O91: SWIFT-код | P91: Kód SWIFT | Q91: Koda SWIFT | R91: Código SWIFT | S91: SWIFT -kod | T91: SWIFT-Code | U91: Swift kodu | V91: SWIFT-kód
A92: 92 | B92: Trad92 | C92: Indirizzo Fatturazione | D92: Fakturační adresa | E92: 开票地址 | F92: Adresa za slanje računa | G92: Adresse de facturation | H92: 請求先住所 | I92: διεύθυνση χρέωσης | J92: Billing Address | K92: Norēķinu adrese | L92: Adres rozliczeniowy | M92: Endereço para facturação | N92: Adresa de facturare | O92: Адрес для выставления счета | P92: Fakturačná adresa | Q92: Obračunski naslov | R92: Dirección de facturación | S92: Fakturaadress | T92: Rechnungsadresse | U92: Fatura Adresi | V92: Számlázási cím
A93: 93 | B93: Trad93 | C93: Via | D93: Ulice | E93: 街道 | F93: Ulica | G93: Rue | H93: *noi non usiamo | I93: Δρόμος | J93: Street | K93: Iela | L93: Ulica | M93: Rua | N93: Strada | O93: улица | P93: Ulica | Q93: Ulica | R93: Calle | S93: Gata | T93: Straße | U93: sokak | V93: Utca
A94: 94 | B94: Trad94 | C94: Città | D94: Město | E94: 城市 | F94: Grad | G94: Ville | H94: 市町村 | I94: Πόλη | J94: City | K94: Pilsēta | L94: Miasto | M94: Cidade | N94: Oraș | O94: Город | P94: Mesto | Q94: Mesto | R94: Ciudad | S94: Stad | T94: Stadt | U94: Şehir | V94: Város
A95: 95 | B95: Trad95 | C95: CAP | D95: PSČ | E95: 邮政编码 | F95: Poštanski broj | G95: Code postal | H95: 郵便番号 | I95: Ταχυδρομικός κώδικας | J95: ZIP Code | K95: Pasta indeks | L95: Kod pocztowy | M95: Código Postal | N95: Cod poștal | O95: Почтовый индекс | P95: PSČ | Q95: Poštna številka | R95: Código postal | S95: Postnummer | T95: Postleitzahl | U95: Posta kodu | V95: Irányítószám
A96: 96 | B96: Trad96 | C96: Nazione | D96: Země | E96: 国家 | F96: Zemlja | G96: Pays | H96: 国 | I96: Χώρα | J96: Country | K96: Valsts | L96: Kraj | M96: País | N96: Țara | O96: Страна | P96: Krajina | Q96: Država | R96: País | S96: Land | T96: Land | U96: Ülke | V96: Ország
A97: 97 | B97: Trad97 | C97: Provincia | D97: Kraj | E97: 省份 | F97: Pokrajina | G97: Province | H97: 都道府県 | I97: Επαρχία | J97: Province | K97: Province | L97: Województwo | M97: Distrito | N97: Provincie | O97: Провинция | P97: Provincia | Q97: Pokrajina | R97: Provincia | S97: Provins | T97: Bundesland | U97: Vilayet | V97: Megye
A98: 98 | B98: Trad98 | C98: Indirizzo per la Spedizione | D98: Dodací adresa | E98: 送货地址 | F98: Adresa dostave | G98: Adresse de livraison | H98: 配送先住所 | I98: Διεύθυνση παράδοσης | J98: Delivery Address | K98: Piegādes adrese | L98: Adres dostawy | M98: Endereço de entrega | N98: Adresa de livrare | O98: Адресс доставки | P98: Doručovacia adresa | Q98: Naslov za dostavo | R98: Dirección de entrega | S98: Leveransadress | T98: Lieferadresse | U98: Teslimat adresi | V98: Szállítási cím
A99: 99 | B99: Trad99 | C99: Listino Prezzi e Valuta | D99: Ceník a měna | E99: 价格表和货币 | F99: Cjenik i valuta | G99: Liste de prix et devise | H99: 価格表と通貨 | I99: Τιμοκατάλογος και Νόμισμα | J99: Price List and Currency | K99: Cenrādis un valūta | L99: Cennik i waluta | M99: Lista de Preços e Moeda | N99: Lista de prețuri și moneda | O99: Прейскурант и валюта | P99: Cenník a mena | Q99: Cenik in valuta | R99: Lista de precios y moneda | S99: Prislista och valuta | T99: Preisliste und Währung | U99: Fiyat Listesi ve Para Birimi | V99: Árlista és pénznem
A100: 100 | B100: Trad100 | C100: Fatturato | D100: Obrat | E100: 营业额 | F100: Promet | G100: Chiffre d'affaires | H100: 売上高 | I100: Τζίρος | J100: Turnover | K100: Apgrozījums | L100: Obrót | M100: Volume de negócios | N100: Cifra de afaceri | O100: Оборот | P100: Obrat | Q100: Promet | R100: Facturación | S100: Omsättning | T100: Umsatz | U100: Devir | V100: Forgalom
A101: 101 | B101: Trad101 | C101: LINEA PRODOTTO | D101: PRODUKTOVÁ SKUPINA | E101: 产品系列 | F101: LINIJA PROIZVODA | G101: LIGNE DE PRODUITS | H101: 生産ライン | I101: ΓΡΑΜΜΗ ΠΑΡΑΓΩΓΗΣ | J101: PRODUCT LINE | K101: PRODUKTA LĪNIJA | L101: LINIA PRODUKCYJNA | M101: LINHA DE PRODUTOS | N101: LINIE DE PRODUSE | O101: ЛИНИЯ ПРОДУКЦИИ | P101: PRODUKTOVÁ LÍNIA | Q101: LINIJA IZDELKOV | R101: LÍNEA DE PRODUCTOS | S101: PRODUKTLINJE | T101: PRODUKTLINIE | U101: ÜRÜN HATTI | V101: TERMÉKCSALÁD
A102: 102 | B102: Trad102 | C102: PUNTI SINGOLI | D102: JEDNOTLIVÉ KOTVÍCÍ BODY | E102: 单一锚点 | F102: SIDRENE TOČKE | G102: POINTS D'ANCRAGE UNIQUES | H102: シングルアンカーポイント | I102: ΜΟΝΑ ΣΗΜΕΙΑ ΑΓΚΥΡΩΣΗΣ | J102: SINGLE ANCHOR POINTS | K102: ATSEVIŠĶI STIPRINĀJUMA PUNKTI | L102: POJEDYNCZE PUNKTY KOTWICZĄCE | M102: PONTOS ÚNICOS DE ANCORAGEM | N102: PUNCTE DE ANCORARE UNICE | O102: ОДИНОЧНЫЕ ТОЧКИ КРЕПЛЕНИЯ | P102: JEDNOTLIVÉ KOTVIACE BODY | Q102: POSAMEZNE SIDRNE TOČKE | R102: PUNTOS ÚNICOS | S102: ENKELA ANKERPUNKTER | T102: Einzelanschlagspunkte | U102: TEK ANKRAJ NOKTALARI | V102: EGYÉNI KIKÖTÉSI PONTOK
A103: 103 | B103: Trad103 | C103: LINEE VITA | D103: LANKOVÝ SYSTÉM | E103: 生命线 | F103: ŽIVOTNE LINIJE | G103: LIGNES DE VIE | H103: ライフライン | I103: ΓΡΑΜΜΕΣ ΖΩΗΣ | J103: LIFE LINES | K103: Drošības LĪNIJAS | L103: LINIE ŻYCIA | M103: LINHAS DE VIDA | N103: LINII DE VIAȚĂ | O103: ЛИНИИ ЖИЗНИ | P103: ŽIVOTNÉ LÍNIE | Q103: ŽIVLJENJSKE LINIJE | R103: LÍNEAS DE VIDA | S103: LIVSLINJER | T103: LEBENSLINIEN | U103: YAŞAM HATLARI | V103: KÁBELES RENDSZEREK
A104: 104 | B104: Trad104 | C104: SUPPORTI | D104: NOSIČE | E104: 支撑物 | F104: PODRŠKE | G104: SUPPORTS | H104: サポート | I104: ΥΠΟΣΤΗΡΙΓΜΑΤΑ | J104: SUPPORTS | K104: ATBALSTI | L104: PODPORY | M104: APOIOS | N104: SUPORTURI | O104: ПОДДЕРЖКИ | P104: PODPORY | Q104: PODPORE | R104: SOPORTES | S104: STÖD | T104: Grundplatten, Aufnahmen | U104: DESTEKLER | V104: TARTÓELEMEK
A105: 105 | B105: Trad105 | C105: COMPONENTI LINEE VITA | D105: KOMPONENTY LANKOVÉHO SYSTÉMU | E105: 生命线组件 | F105: KOMPONENTE ŽIVOTNIH LINIJA | G105: COMPOSANTS LIFE LINES | H105: ライフラインコンポーネント | I105: ΕΞΑΡΤΗΜΑΤΑ ΓΡΑΜΜΩΝ ΖΩΗΣ | J105: LIFE LINES COMPONENTS | K105: GLĀBŠANAS LĪNIJU KOMPONENTI | L105: KOMPONENTY LINII ŻYCIA | M105: COMPONENTES DAS LINHAS DE VIDA | N105: COMPONENTE PENTRU LINIILE DE VIAȚĂ | O105: КОМПОНЕНТЫ ЛИНИИ ЖИЗНИ | P105: KOMPONENTY ZÁCHRANNÝCH LÍNIÍ | Q105: SESTAVNI DELI LINIJ LIFE LINE | R105: COMPONENTES DE LÍNEAS DE VIDA | S105: LIFE LINES KOMPONENTER | T105: Komponenten Lebenslinien | U105: YAŞAM HATLARI BİLEŞENLERİ | V105: RENDSZERELEMEK
A106: 106 | B106: Trad106 | C106: ANTICADUTA | D106: OCHRANA PROTI PÁDU | E106: 坠落保护 | F106: ZAŠTITA OD PADA | G106: PROTECTION CONTRE LES CHUTES | H106: 墜落防止 | I106: ΠΡΟΣΤΑΣΙΑ ΑΠΌ ΠΤΩΣΗ | J106: FALL PROTECTION | K106: AIZSARDZĪBA PRET KRITIENIEM | L106: OCHRONA PRZED UPADKIEM | M106: PROTECÇÃO ANTI-QUEDA | N106: PROTECȚIE ÎMPOTRIVA CĂDERILOR | O106: ЗАЩИТА ОТ ПАДЕНИЯ | P106: OCHRANA PROTI PÁDU | Q106: ZAŠČITA PRED PADCEM | R106: PROTECCIÓN ANTICAÍDAS | S106: FALLSKYDD | T106: Absturzsicherung | U106: DÜŞME TEHLİKESİNE KARŞİ KORUMA | V106: LEESÉS ELLENI VÉDELEM
A107: 107 | B107: Trad107 | C107: PROTEZIONI COLLETTIVE | D107: KOLEKTIVNÍ OCHRANA | E107: 集体防护 | F107: grupna ZAŠTITA | G107: PROTECTION COLLECTIVE | H107: 共同保護具 | I107: ΣΥΛΛΟΓΙΚΗ ΠΡΟΣΤΑΣΙΑ | J107: COLLECTIVE PROTECTION | K107: KOLEKTĪVĀ AIZSARDZĪBA | L107: OCHRONA ZBIOROWA | M107: PROTECÇÃO COLECTIVA | N107: PROTECȚIE COLECTIVĂ | O107: КОЛЛЕКТИВНАЯ ЗАЩИТА | P107: KOLEKTÍVNA OCHRANA | Q107: KOLEKTIVNA ZAŠČITA | R107: PROTECCIÓN COLECTIVA | S107: KOLLEKTIVT SKYDD | T107: Kollektivschutz | U107: TOPLU KORUMA | V107: KOLLEKTÍV VÉDELEM
A108: 108 | B108: Trad108 | C108: DPI - DISPOSITIVI DI PROTEZIONE INDIVIDUALE | D108: OSOBNÍ OCHRANNÉ PROSTŘEDKY | E108: PPE - 个人防护设备 | F108: OZO - OSOBNA ZAŠTITNA OPREMA | G108: PPE - ÉQUIPEMENT DE PROTECTION INDIVIDUELLE | H108: PPE-個人用保護具 | I108: ΜΑΠ - ΕΞΟΠΛΙΣΜΟΣ ΠΡΟΣΩΠΙΚΗΣ ΠΡΟΣΤΑΣΙΑΣ | J108: PPE - PERSONAL PROTECTION EQUIPMENT | K108: PPE - INDIVIDUĀLIE AIZSARDZĪBAS LĪDZEKĻI | L108: ŚOI - ŚRODKI OCHRONY OSOBISTEJ | M108: EPI - EQUIPAMENTO DE PROTECÇÃO INDIVIDUAL | N108: PPE - ECHIPAMENT DE PROTECȚIE PERSONALĂ | O108: СИЗ - СРЕДСТВА ИНДИВИДУАЛЬНОЙ ЗАЩИТЫ | P108: PPE - OSOBNÉ OCHRANNÉ PROSTRIEDKY | Q108: PPE - OSEBNA ZAŠČITNA OPREMA | R108: PPE - EQUIPO DE PROTECCIÓN PERSONAL | S108: PPE - PERSONLIGT SKYDDSUTRUSTNING | T108: PSA - PERSÖNLICHE SCHUTZAUSRÜSTUNG | U108: KKD - KİŞİSEL KORUMA EKİPMANI | V108: PPE - EGYÉNI VÉDŐFELSZERELÉS
A109: 109 | B109: Trad109 | C109: ALTRE LINEE VITA | D109: DALŠÍ LANKOVÉ ZÁCHYTNÉ SYSTÉMY | E109: 其他生命线 | F109: OSTALE ŽIVOTNE LINIJE | G109: AUTRES LIGNES DE VIE | H109: その他のライフライン | I109: ΑΛΛΕΣ ΓΡΑΜΜΕΣ ΖΩΗΣ | J109: OTHER LIFE LINES | K109: CITAS GLĀBŠANAS LĪNIJAS | L109: INNE LINIE ŻYCIA | M109: OUTRAS LINHAS DE VIDA | N109: ALTE LINII DE VIAȚĂ | O109: ДРУГИЕ ЛИНИИ ЖИЗНИ | P109: INÉ ZÁCHRANNÉ LANÁ | Q109: DRUGE ŽIVLJENJSKE LINIJE | R109: OTRAS LÍNEAS DE VIDA | S109: ANDRA LIVSLINJER | T109: andere Lebenslinien | U109: DİĞER YAŞAM HATLARI | V109: EGYÉB RENDSZEREK
A110: 110 | B110: Trad110 | C110: CAVO IN ACCIAIO | D110: OCELOVÝ KABEL | E110: 钢丝 | F110: ČELIČNA ŽICA | G110: FIL D'ACIER | H110: スティールワイヤ | I110: ΑΤΣΑΛΙΝΟ ΣΥΡΜΑ | J110: STEEL WIRE | K110: TĒRAUDA troses | L110: STALOWY DRUT | M110: CABO DE AÇO | N110: CABLU DE OȚEL | O110: СТАЛЬНАЯ ПРОВОЛОКА | P110: OCEĽOVÉ DRÔTY | Q110: JEKLENI VODNIKI | R110: ALAMBRE DE ACERO | S110: STÅLTRÅD | T110: Stahlseil | U110: ÇELİK TEL | V110: ACÉLHUZAL
A111: 111 | B111: Trad111 | C111: Tasso di cambio: | D111: Směnný kurz: | E111: 汇率： | F111: Tečajna lista: | G111: Taux de change : | H111: 為替レート： | I111: Συναλλαγματική ισοτιμία: | J111: Exchange Rate: | K111: Valūtas maiņas kurss: | L111: Kurs wymiany: | M111: Taxa de Câmbio: | N111: Curs de schimb: | O111: Курс обмена: | P111: Výmenný kurz: | Q111: Menjalni tečaj: | R111: Tipo de cambio: | S111: Växlingskurs: | T111: Umrechnungskurs: | U111: Döviz kuru: | V111: Árfolyam:
A112: 112 | B112: Trad112 | C112: Pagamento | D112: Platba | E112: 付款方式 | F112: Plaćanje | G112: Paiement | H112: 支払い | I112: Πληρωμή | J112: Payment | K112: Maksājums | L112: Zapłata | M112: Pagamento | N112: Plata | O112: Оплата | P112: Platba | Q112: Plačilo | R112: Pago | S112: Betalning | T112: Zahlung | U112: Ödeme | V112: Fizetési feltételek
A113: 113 | B113: Trad113 | C113: ORDINE | D113: OBJEDNÁVKA | E113: 订单 | F113: NARUDŽBA | G113: COMMANDE | H113: 注文 | I113: ΠΑΡΑΓΓΕΛΙΑ | J113: ORDER | K113: PASŪTĪjums | L113: ZAMÓWIENIE | M113: ENCOMENDA | N113: COMANDĂ | O113: ПРИКАЗ | P113: OBJEDNÁVKA | Q113: NAROČILO | R113: PEDIDO | S113: BESTÄLLA | T113: BESTELLUNG | U113: EMİR | V113: MEGRENDELÉS
A114: 114 | B114: Trad114 | C114: Rif. | D114: Ref. | E114: 参考资料 | F114: Ref. | G114: Réf. | H114: 参照 | I114: Αναφ. | J114: Ref. | K114: Ref. | L114: Nr ref. | M114: Ref. | N114: Ref. | O114: Ссылка | P114: Ref. | Q114: Ref. | R114: Ref. | S114: Ref. | T114: Ref. | U114: Referans | V114: Ref.
A115: 115 | B115: Trad115 | C115: Data | D115: Datum | E115: 日期 | F115: Datum | G115: Date | H115: 日にち | I115: Ημερομηνία | J115: Date | K115: Datums | L115: Data | M115: Data | N115: Data | O115: Дата | P115: Dátum | Q115: Datum | R115: Fecha | S115: Datum | T115: Datum | U115: Tarih | V115: Dátum
A116: 116 | B116: Trad116 | C116: Cellulare | D116: Mobilní tel.: | E116: 手机 | F116: MoBILNI | G116: Mobile | H116: 携帯電話 | I116: Κινητό | J116: Mobile | K116: Mobilais | L116: mobilny | M116: Telemovél | N116: Mobil | O116: Мобильный | P116: Mobilný telefón | Q116: Mobilni telefon | R116: Móvil | S116: Mobil | T116: Mobil | U116: Mobil | V116: Mobil
A117: 117 | B117: Trad117 | C117: Persona di riferimento | D117: Kontaktní osoba | E117: 推荐人 | F117: Referentna osoba | G117: Personne de référence | H117: 担当者 | I117: Πρόσωπο αναφοράς | J117: Reference person | K117: Atsauces persona | L117: Osoba referencyjna | M117: Pessoa de referência | N117: Persoana de referință | O117: Референтное лицо | P117: Referenčná osoba | Q117: Referenčna oseba | R117: Persona de referencia | S117: Referens person | T117: Bezugsperson | U117: Aracı kişi | V117: Kapcsolattartó
A118: 118 | B118: Trad118 | C118: Linea | D118: Řádek | E118: 线路 | F118: Crta | G118: Ligne | H118: ライン | I118: Γραμμή | J118: Line | K118: Līnija | L118: Linia | M118: Linha | N118: Linia | O118: Линия | P118: Linka | Q118: Linija | R118: Línea | S118: Linje | T118: Zeile | U118: Hat | V118: Vonal
A119: 119 | B119: Trad119 | C119: Qt. | D119: Množství | E119: 季度 | F119: Qt. | G119: Qt. | H119: Qt | I119: ΠΟΣΟΤΗΤΑ | J119: Qt. | K119: Skaits | L119: Ilość | M119: Qt. | N119: Qt. | O119: кв. | P119: Qt. | Q119: Qt. | R119: Qt. | S119: Qt. | T119: Anz. | U119: Qt. | V119: Qt.
A120: 120 | B120: Trad120 | C120: Subtotale | D120: Mezisoučet | E120: 小计 | F120: SubTotal | G120: Sous-total | H120: 小計 | I120: ΜΕΡΙΚΟ ΣΥΝΟΛΟ | J120: SubTotal | K120: Starpsumma | L120: Suma częściowa | M120: SubTotal | N120: SubTotal | O120: Промежуточный итог | P120: SubTotal | Q120: SubTotal | R120: SubTotal | S120: Delsumma | T120: Zwischensumme | U120: Ara toplam | V120: Részösszeg
A121: 121 | B121: Trad121 | C121: Peso | D121: Hmotnost | E121: 重量 | F121: Težina | G121: Poids | H121: 重量 | I121: Βάρος | J121: Weight | K121: Svars | L121: Waga | M121: Peso | N121: Greutate | O121: Масса | P121: Hmotnosť | Q121: Teža | R121: Peso | S121: Vikt | T121: Gewicht | U121: Ağırlık | V121: Súly
A122: 122 | B122: Trad122 | C122: Note | D122: Poznámky | E122: 备注 | F122: Bilješke | G122: Notes | H122: 注記 | I122: Σημειώσεις | J122: Notes | K122: Piezīmes | L122: Uwagi | M122: Notas | N122: Note | O122: Примечания | P122: Poznámky | Q122: Opombe | R122: Notas | S122: Anteckningar | T122: Anmerkungen | U122: Notlar | V122: Megjegyzések
A123: 123 | B123: Trad123 | C123: Cliente | D123: Zákazník | E123: 客户 | F123: Klijent | G123: Client | H123: 顧客 | I123: Πελάτης | J123: Client | K123: Klients | L123: Klient | M123: Cliente | N123: Client | O123: Клиент | P123: Klient | Q123: Stranka | R123: Cliente | S123: Klient | T123: Kunde | U123: Müşteri | V123: Ügyfél
A124: 124 | B124: Trad124 | C124: RETI DI SICUREZZA | D124: BEZPEČNOSTNÍ SÍTĚ | E124: 安全网 | F124: SIGURNOSNE MREŽE | G124: FILETS DE SECURITE | H124: セーフティネット | I124: ΔΙΚΤΥΑ ΑΣΦΑΛΕΙΑΣ | J124: SAFETY NETS | K124: DROŠĪBAS TĪKLI | L124: SIATKI BEZPIECZEŃSTWA | M124: REDES DE SEGURANÇA | N124: PLASE DE SIGURANȚĂ | O124: ЗАЩИТНЫЕ СЕТКИ | P124: BEZPEČNOSTNÉ SIETE | Q124: VARNOSTNE MREŽE | R124: REDES DE SEGURIDAD | S124: SÄKERHETSNÄT | T124: SICHERHEITSNETZE | U124: GÜVENLİK AĞLARI | V124: BIZTONSÁGI HÁLÓ
A125: 125 | B125: Trad125 | C125: PARAPETTI | D125: ZÁBRADLÍ | E125: 栏杆防护装置 | F125: ŠTITNICE ZA OGRADE | G125: RAILINGS | H125: 手すりガード | I125: ΠΑΡΑΠΕΤΙΑ | J125: RAILING GUARDS | K125: MARGU AIZSARGI | L125: BALUSTRADY | M125: PARAPEITOS | N125: GĂRZILE DE PROTECȚIE A BALUSTRADELOR | O125: ЗАЩИТА ПЕРИЛ | P125: OCHRANNÉ ZÁBRADLIA | Q125: VAROVALA ZA OGRAJE | R125: BARANDILLAS | S125: RÄNGSKYDD | T125: GELÄNDER | U125: KORKULUK KORUMALARI | V125: BIZTONSÁGI KORLÁT
A126: 126 | B126: Trad126 | C126: GANCI SCALE | D126: HÁKY NA ŽEBŘÍKY | E126: 梯子吊钩 | F126: KUKE za ljestve | G126: CROCHETS D'ÉCHELLE | H126: 梯子フック | I126: ΑΓΚΥΣΤΡΑ ΓΙΑ ΣΚΑΛΕΣ | J126: LADDERS HOOKS | K126: Kāpņu āķi | L126: HAKI DO DRABIN | M126: GANCHO PARA ESCADAS | N126: CÂRLIGE DE CĂRUCIOR | O126: КРЮЧКИ ДЛЯ ЛЕСТНИЦ | P126: HÁČKY NA VODIDLÁ | Q126: KLJUKE ZA VODILA | R126: GANCHOS DE ESCALA | S126: LADDERS HOOKS | T126: Leiterhaken | U126: MERDİVEN KANCALARI | V126: LÉTRA AKASZTÓK
A127: 127 | B127: Trad127 | C127: CASCHI | D127: PŘILBY | E127: 安全帽 | F127: kacige | G127: HELMETS | H127: ヘルメット | I127: ΚΡΑΝΗ | J127: HELMETS | K127: Ķiveres | L127: KASKI | M127: CAPACETES | N127: CĂȘTI DE PROTECȚIE | O127: ШЛЕМЫ | P127: PRILBY | Q127: PRIPOROČNIKI | R127: CASCOS | S127: HJÄLMAR | T127: Helme | U127: KASKLAR | V127: SISAKOK
A128: 128 | B128: Trad128 | C128: IMBRACHI | D128: ZACHYCOVACÍ POSTROJE | E128: 绳索 | F128: pojasevi | G128: EMBALLAGE | H128: ハーネス | I128: ΖΩΝΕΣ | J128: HARNESSES | K128: Drošības sistēmas | L128: SZELKI | M128: ARNÊSES | N128: HARNESSES | O128: ЖГУТЫ | P128: ZÁVESY | Q128: OHRANILA | R128: EMBALAJE | S128: HARNESS | T128: Gurte | U128: KOŞUMLAR | V128: HEVEDEREK
A129: 129 | B129: Trad129 | C129: CORDINI | D129: LANKOVÉ SYSTÉMY | E129: 绳索 | F129: DVORIŠTA | G129: CORDINI | H129: ランヤード | I129: ΣΧΟΙΝΙΑ | J129: LANYARDS | K129: Drošības striķi | L129: SMYCZE | M129: CORDAS POSICIONAMENTO | N129: LANYARDS | O129: СТРЕПКИ | P129: LANYARDS | Q129: LANYARDS | R129: CORDONES | S129: LANYARDS | T129: Seile | U129: LANYARLAR | V129: BIZTONSÁGI KÖTELEK
A130: 130 | B130: =+_xlfn.CONCAT("Trad",A130) -> Trad130 | C130: DISCENSORI | D130: SLAŇOVACÍ BRZDA | E130: 感应器 | F130: UREĐAJI ZA SPUŠTANJE | G130: DISCENSEURS | H130: 下降器 | I130: ΔΙΑΧΩΡΙΣΤΕΣ | J130: DISCENSORS | K130: Nolaidēji | L130: DYSKENSORY | M130: DESCENSORES | N130: DISCENSORI | O130: ДИССЕНСОРЫ | P130: DISCENZORY | Q130: DISCENZORJI | R130: DESCENDEDORES | S130: DISCENSORER | T130: Abseilgeräte | U130: DİSKENSÖRLER | V130: ERESZKEDŐK
A131: 131 | B131: Trad131 | C131: RETRATTILI | D131: ZATAHOVACÍ ZÁCHYTNÉ ZAŘÍZENÍ | E131: 伸缩装置 | F131: UREĐAJI NA uvlačenje | G131: RETRACTORS | H131: リトラクタブルデバイス | I131: ΣΥΣΚΕΥΕΣ ΑΝΑΚΤΗΣΗΣ | J131: RETRACTABLE DEVICES | K131: IEVELKAMAS IERĪCES | L131: WYSUWANE URZĄDZENIA | M131: DISPOSITIVOS RETRÁCTEIS | N131: DISPOZITIVE RETRACTABILE | O131: ВЫДВИЖНЫЕ УСТРОЙСТВА | P131: VÝSUVNÉ ZARIADENIA | Q131: IZVLEČNE NAPRAVE | R131: RETRÁCTILES | S131: UTKASTBARA ENHETER | T131: Höhensicherungsgerät | U131: ÇEKİLEBİLİR CİHAZLAR | V131: BEHÚZHATÓ ESZKÖZÖK
A132: 132 | B132: Trad132 | C132: POSIZIONAMENTO | D132: POZICIOVÁNÍ | E132: 定位 | F132: POLOŽAJ | G132: POSITIONNEMENT | H132: ポジショニング | I132: ΣΤΑΘΕΡΟΠΟΙΗΣΗ | J132: POSITIONING | K132: POZICIONĒŠANA | L132: POZYCJONOWANIE | M132: POSICIONAMENTO | N132: POZIȚIONARE | O132: ПОЗИЦИОНИРОВАНИЕ | P132: POLOHOVANIE | Q132: POLOŽAJ | R132: POSICIONAMIENTO | S132: POSITIONERING | T132: POSITIONIERUNG | U132: KONUMLANDIRMA | V132: POZÍCIONÁLÁS
A133: 133 | B133: Trad133 | C133: ANCORANTI | D133: KOTVY | E133: 锚固装置 | F133: SIDRA | G133: ANCERS | H133: アンカー | I133: ΑΓΚΥΡΙΑ | J133: ANCHORS | K133: Stiprinājums | L133: KOTWY | M133: ANCORANTES | N133: ANCHETE | O133: ЯКОРЯ | P133: KOTVY | Q133: KOTVE | R133: ANCLAJES | S133: ANKRAR | T133: Anker | U133: ANCHORLAR | V133: KIKÖTÉSI PONTOK
A134: 134 | B134: Trad134 | C134: CONNETTORI | D134: SPOJKY | E134: 连接装置 | F134: PRIKLJUČCI | G134: CONNECTEURS | H134: コネクタ | I134: ΣΥΝΔΕΣΜΟΙ | J134: CONNECTORS | K134: SAVIENOTĀJI | L134: ZŁĄCZA | M134: CONECTORES | N134: CONECTORI | O134: СОЕДИНИТЕЛИ | P134: KONEKTORY | Q134: PRIKLJUČEVALCI | R134: CONECTORES | S134: ANSLUTNINGAR | T134: Verbinder | U134: KONEKTÖRLER | V134: CSATLAKOZÓK
A135: 135 | B135: Trad135 | C135: TRIPODI | D135: TROJNOŽKY | E135: 三脚架 | F135: TRIPODI | G135: TRIPODS | H135: 三脚 | I135: ΤΡΙΠΟΔΕΣ | J135: TRIPODS | K135: Trijkāji | L135: STATYWY | M135: TRIPODS | N135: TRIPODE | O135: ШТАТИВЫ | P135: TRIPODY | Q135: TRIPODI | R135: TRIPODES | S135: TRIPODER | T135: Dreibein | U135: TRİPODLAR | V135: TRIPODOK
A136: 136 | B136: Trad136 | C136: BIPODI | D136: DVOJNOŽKY | E136: 臂架 | F136: BIPODI | G136: BIPODS | H136: 二脚 | I136: ΔΙΠΟΔΕΣ | J136: BIPODS | K136: Trijkāji | L136: dwójnogi | M136: BIPODS | N136: BIPODE | O136: сошки | P136: BIPODY | Q136: BIPODI | R136: BIPODES | S136: BIPODS | T136: Zweibein | U136: BİPODLAR | V136: BIPODOK
A137: 137 | B137: Trad137 | C137: GUANTI | D137: RUKAVICE | E137: 护目镜 | F137: RUKAVICE | G137: GANTS | H137: グローブ | I137: ΓΑΝΤΙΑ | J137: GLOVES | K137: Cimdi | L137: RĘKAWICZKI | M137: LUVAS | N137: MÂINI | O137: ПЕРЧАТКИ | P137: RUKAVICE | Q137: ROKAVICE | R137: GUANTES | S137: HANDSKAR | T137: HANDSCHUHE | U137: ELDİVENLER | V137: KESZTYŰK
A138: 138 | B138: Trad138 | C138: ORECCHIE | D138: CHRÁNIČE SLUCHU | E138: 耳朵 | F138: UŠI | G138: OREILLES | H138: 耳 | I138: ΑΥΤΙΑ | J138: EARS | K138: Ausis | L138: USZY | M138: ORELHAS | N138: URECHI | O138: УШИ | P138: UŠI | Q138: UŠI | R138: AURICULARES | S138: ÖRON | T138: Ohren | U138: KULAKLAR | V138: FÜLEK
A139: 139 | B139: Trad139 | C139: OCCHI | D139: OCHRANA ZRAKU | E139: 眼睛 | F139: OČI | G139: YEUX | H139: 目 | I139: ΜΑΤΙΑ | J139: EYES | K139: Acis | L139: OCZY | M139: OLHOS | N139: OCHI | O139: ГЛАЗА | P139: OČI | Q139: OČI | R139: CASCOS AUDITIVOS | S139: ÖGON | T139: AUGEN | U139: GÖZLER | V139: SZEMEK
A140: 140 | B140: Trad140 | C140: FISSAGGI | D140: OPRAVY | E140: 固定装置 | F140: FIKSIRANJA | G140: FIXATIONS | H140: 締結具 | I140: ΣΤΕΡΕΩΣΕΙΣ | J140: FIXINGS | K140: FIKSATORI | L140: MOCOWANIA | M140: FIXAÇÕES | N140: FIXAȚII | O140: КРЕПЛЕНИЯ | P140: PRÍSLUŠENSTVO | Q140: PRIPOMBE | R140: FIJACIONES | S140: FIXERINGAR | T140: Befestigung | U140: DÜZENLEMELER | V140: RÖGZÍTŐK
A141: 141 | B141: Trad141 | C141: SITEMI DI FISSAGGIO | D141: UPEVŇOVACÍ SYSTÉMY | E141: 紧固件系统 | F141: SISTEMI PRIČVRŠČIVANJA | G141: SYSTÈMES DE FIXATION | H141: 締結システム | I141: ΣΥΣΤΗΜΑΤΑ ΣΤΕΡΕΩΣΗΣ | J141: FASTENINGS SYSTEMS | K141: STIPRINĀJUMU SISTĒMAS | L141: SYSTEMY ZAMOCOWAŃ | M141: SISTEMAS DE FIXAÇÃO | N141: SISTEME DE FIXARE | O141: СИСТЕМЫ КРЕПЛЕНИЯ | P141: UPEVŇOVACIE SYSTÉMY | Q141: PRITRDILNI SISTEMI | R141: SISTEMAS DE FIJACIÓN | S141: FÄSTNINGSSYSTEM | T141: BEFESTIGUNGSSYSTEME | U141: BAĞLANTI SİSTEMLERİ | V141: RÖGZÍTŐ RENDSZEREK
A142: 142 | B142: Trad142 | C142: Corrimano | D142: Zábradlí | E142: 扶手栏杆 | F142: Rukohvat | G142: Main courante | H142: 手すり | I142: Κουπαστή | J142: Handrail | K142: Margas | L142: Poręcz | M142: Corrimão | N142: Balustradă | O142: Поручень | P142: Zábradlie | Q142: Ograje | R142: Pasamanos | S142: Ledstång | T142: Handlauf | U142: Küpeşte | V142: Kapaszkodó
A143: 143 | B143: Trad143 | C143: Dritto | D143: Přímo | E143: 直立 | F143: RAVAN | G143: Droit | H143: 真直ぐ | I143: Στρέιτ | J143: Straight | K143: Taisni | L143: Prosto | M143: Direito | N143: Streight | O143: прямой | P143: Priamy | Q143: Preproga | R143: RECTO | S143: Streight | T143: Gerade | U143: düz | V143: Egyenes
A144: 144 | B144: Trad144 | C144: Inclinato | D144: Nakloněný | E144: 倾斜的 | F144: NAGNUT | G144: Incliné | H144: 傾斜 | I144: Κεκλιμένος | J144: Inclined | K144: Slīpi | L144: Skłonny | M144: Inclinado | N144: Înclinat | O144: Наклонный | P144: Šikmé | Q144: Nagnjeno | R144: Inclinado | S144: Lutande | T144: Geneigt | U144: eğimli | V144: Ferde
A145: 145 | B145: Trad145 | C145: Tavola Fermapiede | D145: Okopová lišta | E145: 托板 | F145: ŠIRINA STOPALA | G145: Planche de la main courante | H145: トーボード | I145: Πλάκα ποδιών | J145: Toeboard | K145: Kājas dēļis | L145: Krawężnik | M145: Tabuleiro | N145: Toeboard | O145: Носочная доска | P145: Toeboard | Q145: Talna deska | R145: Rodapié | S145: Toeboard | T145: Bordbrett | U145: Süpürgelik | V145: Bokaléc
A146: 146 | B146: Trad146 | C146: Prezzo Listino/ml | D146: Cena/m | E146: 价格表/m | F146: Cjenik/m | G146: Liste de prix/ml | H146: 定価 / m | I146: Τιμοκατάλογος/μ | J146: Price List/m | K146: Cenrādis/m | L146: Cennik/m | M146: Lista de preços/m | N146: Lista de prețuri/m | O146: Прайс-лист/м | P146: Cenník/m | Q146: Cenik/m | R146: Lista de precios/ml | S146: Prislista/m | T146: Preisliste/ml | U146: Fiyat Listesi/m | V146: Árlista/m
A147: 147 | B147: Trad147 | C147: Lingua | D147: Jazyk | E147: 语言 | F147: Jezik | G147: Langue | H147: 言語 | I147: Γλώσσα | J147: Language | K147: Valoda | L147: Język | M147: Idioma | N147: Limba | O147: Язык | P147: Jazyk | Q147: Jezik | R147: Idioma | S147: Språk | T147: Sprache | U147: Dilim | V147: Nyelv
A148: 148 | B148: Trad148 | C148: AUTOPORTANTE | D148: SAMONOSNÁ /ZÁTĚŽOVÁ | E148: 弹力板 | F148: ISPUNJEN BALASTOM | G148: AUTOPORTANT | H148: 自立 | I148: ΣΦΡΑΓΙΣΜΕΝΟ | J148: BALLASTED | K148: Ar atsvaru | L148: BALASTOWANE | M148: BALASTRO | N148: BALLASTED | O148: БАЛЛАСТ | P148: BALLASTED | Q148: BALASTED | R148: AUTOPORTANTE | S148: BALLASTAD | T148: SELBSTTRAGEND | U148: BALASTLI | V148: SÚLYOZOTT
A149: 149 | B149: Trad149 | C149: Montante | D149: Vzpřímený | E149: 直立式 | F149: Uspravno | G149: Debout | H149: 直立 | I149: Ορθιος | J149: Upright | K149: Vertikālais | L149: Pionowo | M149: Montante | N149: Vertical | O149: Вертикальный | P149: Vzpriamená | Q149: Navpično | R149: MONTANTE | S149: Upprätt | T149: Pfosten | U149: Dik | V149: Felálló
A150: 150 | B150: Trad150 | C150: Diritto | D150: Přímý | E150: 直的 | F150: Ravno | G150: Droit | H150: 真直ぐ | I150: Ευθεία | J150: Straight | K150: Taisni | L150: Proste | M150: Alinhado | N150: Drept | O150: Прямой | P150: Rovná | Q150: Ravna | R150: Recto | S150: Hetero | T150: Gerade | U150: Düz | V150: Egyenes
A151: 151 | B151: Trad151 | C151: Corrente | D151: Středová tyč | E151: 中间杆 | F151: SREDIŠNJA ŠIPKA | G151: Actuel | H151: 中間バー | I151: Ενδιάμεσο Μπάρα | J151: Intermediate Bar | K151: Starpposma stienis | L151: Pośredni pasek | M151: Barra intermédia | N151: Bară intermediară | O151: Промежуточный бар | P151: Stredná tyč | Q151: Vmesna palica | R151: CORRIENTE | S151: Mellanliggande bar | T151: Strom | U151: Orta Çubuk | V151: Köztes rúd
A152: 152 | B152: Trad152 | C152: Altezza Montante | D152: Výška slouku | E152: 直立高度 | F152: GORNJA visina | G152: Hauteur du mât | H152: 直立高さ | I152: Όρθιο ύψος | J152: Upright height | K152: Vertikālais augstums | L152: Wysokość w pionie | M152: Altura montante | N152: Înălțime verticală | O152: Высота в вертикальном положении | P152: Výška stojana | Q152: Višina pokončne mize | R152: Altura del montante | S152: Upprätt höjd | T152: Pfostenhöhe | U152: dik yükseklik | V152: Magasság
A153: 153 | B153: Trad153 | C153: Normativa di riferimento | D153: Referenční standard | E153: 规范性参考 | F153: Referentna norma | G153: Norme de référence | H153: 参照基準 | I153: Κανονισμος | J153: Reference Normative | K153: Atsauces Normatīvs | L153: Odniesienie normatywne | M153: Norma de referência | N153: Referință Normativ | O153: Справочный норматив | P153: Referenčná normatívna hodnota | Q153: Referenčna normativna | R153: Normativa de referencia | S153: Referens Normativ | T153: Referenznorm | U153: Referans Normatifi | V153: Hivatkozás Normatív
A154: 154 | B154: Trad154 | C154: Composizione Parapetto | D154: Složení zábradlí | E154: 护栏组成 | F154: Sastav ZAŠTITNE ograde | G154: Composition du parapet | H154: ガードレール構成 | I154: Σύνθεση προστατευτικού κιγκλιδώματος | J154: Guardrail composition | K154: Aizsargu margu sastāvs | L154: Skład balustrady | M154: Composição do parapeito | N154: Compoziția balustradei | O154: Состав ограждения | P154: Zloženie zábradlia | Q154: Sestava ograje | R154: Composición de la barandilla | S154: Skyddsräckkomposition | T154: Zusammensetzung der Brüstung | U154: korkuluk bileşimi | V154: VÉDŐKORLÁT ÖSSZEÁLLÍTÁSA
A155: 155 | B155: Trad155 | C155: Lunghezza totale parapetto | D155: Celková délka zábradlí | E155: 护栏的总长度 | F155: Ukupna duljina zaštitne ograde | G155: Longueur totale du parapet | H155: ガードレール全長 | I155: Συνολικό μήκος προστατευτικού κιγκλιδώματος | J155: Total length of guardrail | K155: Aizsargu margas kopējais garums | L155: Całkowita długość poręczy | M155: Comprimento total do parapeito | N155: Lungimea totală a parapetului de protecție | O155: Общая длина ограждения | P155: Celková dĺžka zábradlia | Q155: Skupna dolžina ograje | R155: Longitud total de la barandilla | S155: Total längd av räcke | T155: Gesamtlänge der Brüstung | U155: Toplam korkuluk uzunluğu | V155: A korlát teljes hossza
A156: 156 | B156: Trad156 | C156: Angoli | D156: Rohy | E156: 拐角 | F156: Kutovi | G156: Coins | H156: コーナー | I156: Γωνίες | J156: Corners | K156: Stūri | L156: Narożniki | M156: Cantos | N156: Colțuri | O156: Углы | P156: Rohy | Q156: Vogali | R156: ángulos | S156: Hörn | T156: Ecken | U156: köşeler | V156: Sarkok
A157: 157 | B157: Trad157 | C157: Fissaggi a muro | D157: Upevnění na stěnu | E157: 墙体固定装置 | F157: Zidni pričvršćivači | G157: Fixations murales | H157: 壁の締結 | I157: Στερέωση τοίχων | J157: Wall fixings | K157: Sienas stiprinājumi | L157: Mocowania ścienne | M157: Fixações de parede | N157: Fixări de perete | O157: Крепления к стене | P157: Upevnenie na stenu | Q157: Pritrditev na steno | R157: Fijaciones a pared | S157: Väggfästen | T157: Befestigung an der Wand | U157: Duvar sabitlemeleri | V157: Fali rögzítések
A158: 158 | B158: Trad158 | C158: Terminali non a muro | D158: Nestěnové svorky | E158: 非墙端 | F158: BEZ ZIDNIH ZAVRŠETAKA | G158: Bornes non murales | H158: 壁の端ではない | I158: Όχι άκρα τοίχου | J158: Not wall ends | K158: Ne sienas gali | L158: Nie kończy się ściana | M158: Não extremidades de parede | N158: Nu la capetele pereților | O158: Не кончается стена | P158: Nie konce stien | Q158: Ne na koncih stene | R158: No extremos a pared | S158: Inte väggändar | T158: Nicht-Wandterminals | U158: Duvar bitmez | V158: Nem fali végek
A159: 159 | B159: Trad159 | C159: Kit cancelletto | D159: Dvířka set | E159: 闸门套件 | F159: Komplet za vrata | G159: Porte du kit | H159: ゲートキット | I159: Κιτ Πύλης | J159: Gate Kit | K159: Vārtu komplekts | L159: Zestaw bramek | M159: Kit de Portão | N159: Kit pentru poartă | O159: Комплект ворот | P159: Súprava brány | Q159: Komplet vrat | R159: Kit de cerradura | S159: Gate Kit | T159: Bausatz Tor | U159: Kapı Kiti | V159: Kapu
A160: 160 | B160: Trad160 | C160: Versione Alu | D160: Verze Alu | E160: 铝制版本 | F160: Alu verzija | G160: Version Alu | H160: Aluバージョン | I160: Έκδοση Alu | J160: Alu version | K160: Alumīnija versija | L160: Wersja alu | M160: Versão Alu | N160: Versiunea Alu | O160: алюминиевая версия | P160: Alu verzia | Q160: Različica iz aluminija | R160: Versión de aluminio | S160: Alu version | T160: Alu-Ausführung | U160: Alüminyum versiyonu | V160: Alumínium változat
A161: 161 | B161: Trad161 | C161: Tipo Montante | D161: Typ sloupku | E161: 直立型 | F161: Uspravan tip | G161: Type de mât | H161: 直立タイプ | I161: Όρθιος τύπος | J161: Upright type | K161: Statīvais tips | L161: Typ pionowy | M161: Tipo montante | N161: Tip vertical | O161: Вертикальный тип | P161: Vzpriamený typ | Q161: Navpična izvedba | R161: Tipo montante | S161: Upprätt typ | T161: Pfostentyp | U161: dik tip | V161: Támaszték típusa
A162: 162 | B162: Trad162 | C162: Arrodondamento ml | D162: Zaokrouhlování v m | E162: 圆弧形ml | F162: Zaokruživanje ml | G162: Arrondissement ml | H162: 四捨五入したml | I162: Στρογγυλοποίηση ml | J162: Rounding ml | K162: Noapaļojums ml | L162: Zaokrąglanie ml | M162: Arredondamento de ml | N162: Rotunjire ml | O162: Округление мл | P162: Zaoblenie ml | Q162: Zaokrožitev ml | R162: Redondeo ml | S162: Avrundning ml | T162: Rundung ml | U162: Yuvarlama ml | V162: Kerekítés ml
A163: 163 | B163: Trad163 | C163: Interasse Montanti | D163: Rozteč sloupků | E163: 直立柱跨度 | F163: Raspon stupova | G163: Espacement des poteaux | H163: 直立スパン | I163: Όρθιο εύρος | J163: Uprights span | K163: Statņu diapazons | L163: Rozpiętość słupków | M163: Vão entre montantes | N163: Ampatamentul montanților | O163: Пролет стоек | P163: Rozpätie stĺpikov | Q163: Razpon pokončnikov | R163: Distancia entre montantes | S163: Stolpar sträcker sig | T163: Abstand zwischen den Pfosten | U163: Direkler açıklığı | V163: Támaszok fesztávolsága
A164: 164 | B164: Trad164 | C164: N. montanti | D164: Počet sloupků | E164: 直立柱数量 | F164: Uspravi br. | G164: Nombre de montants | H164: 直立番号 | I164: Όρθιοι αρ. | J164: Uprights no. | K164: Statņu skaits | L164: Stojaki nr. | M164: N.º de montantes. | N164: Montanți nr. | O164: Стойки нет. | P164: Stojany č. | Q164: Št. pokončnih stebričkov | R164: Número de montantes | S164: Stolpar nr. | T164: Anzahl der Stützen | U164: Direkler hayır. | V164: Támaszok száma
A165: 165 | B165: Trad165 | C165: Input n. montanti | D165: Vstupní počet sloupků | E165: 输入直立柱数量 | F165: Ulazni stupovi br. | G165: Nombre de montants en entrée | H165: 入力直立番号 | I165: Εισαγωγή Όρθιοι αρ. | J165: Input Uprights no. | K165: Statņu skaits | L165: Słupki wejściowe nr. | M165: Entrada num. de montantes | N165: Intrare Nr. montanți nr. | O165: Входные стойки нет. | P165: Vstupné stĺpiky č. | Q165: Vhod Višine št. | R165: Número de entrada de los montantes | S165: Ingångsstolpar nr. | T165: Eingabe Anzahl der Stützen | U165: Giriş Direkleri no. | V165: Bemeneti támaszok száma
A166: 166 | B166: Trad166 | C166: Larghezza | D166: Šířka | E166: 宽度 | F166: Širina | G166: Largeur | H166: 幅 | I166: Πλάτος | J166: Width | K166: Platums | L166: Szerokość | M166: Largura | N166: Lățime | O166: Ширина | P166: Šírka | Q166: Širina | R166: Ancho | S166: Bredd | T166: Breite | U166: Genişlik | V166: Szélesség
A167: 167 | B167: Trad167 | C167: Peso Totale | D167: Celková hmotnost | E167: 总重量 | F167: Totalna težina | G167: Poids total | H167: 総重量 | I167: Συνολικό βάρος | J167: Total Weight | K167: Kopējais svars | L167: Waga całkowita | M167: Peso total | N167: Greutate totală | O167: Общий вес | P167: Celková hmotnosť | Q167: Skupna teža | R167: Peso total | S167: Totalvikt | T167: Gesamtgewicht | U167: Toplam ağırlık | V167: Teljes súly
A168: 168 | B168: Trad168 | C168: Costo Gestione Ordine | D168: Náklady na vyřízení objednávky | E168: 订单管理成本 | F168: Troškovi upravljanja narudžbom | G168: Coût de traitement des commandes | H168: 注文管理コスト | I168: Κόστος διαχείρισης παραγγελιών | J168: Order managment cost | K168: Pasūtījuma pārvaldības izmaksas | L168: Koszt zarządzania zamówieniami | M168: Custo de gestão de encomendas | N168: Costul de gestionare a comenzii | O168: Стоимость управления заказами | P168: Náklady na správu objednávky | Q168: Stroški upravljanja naročila | R168: Coste de gestión del pedido | S168: Orderhanteringskostnad | T168: Kosten der Auftragsabwicklung | U168: Sipariş yönetimi maliyeti | V168: Megrendelés kezelési költség
A169: 169 | B169: Trad169 | C169: Totale Prezzo Lordo | D169: Celková prodejní cena | E169: 总价 | F169: Ukupna bruto cijena | G169: Prix brut total | H169: 税込み総額 | I169: Συνολική ακκαθάριστη τιμή | J169: Total Lord Price | K169: Kopējā cena | L169: Całkowita cena Lorda | M169: Preço Total Bruto | N169: Prețul total al Domnului | O169: Общая цена лорда | P169: Celková cena lorda | Q169: Skupna cena Gospoda | R169: Precio bruto total | S169: Totalt Lord -pris | T169: Gesamtbruttopreis | U169: Toplam Lord Fiyatı | V169: Teljes ár
A170: 170 | B170: Trad170 | C170: Costo di trasporto | D170: Náklady na dopravu | E170: 运输成本 | F170: Trošak dostave | G170: Coût du transport | H170: 輸送費 | I170: Κόστος αποστολής | J170: Shipping Cost | K170: Piegādes izmaksas | L170: Koszty wysyłki | M170: Custo de envio | N170: Costul de expediere | O170: Стоимость доставки | P170: Náklady na dopravu | Q170: Stroški pošiljanja | R170: Coste del transporte | S170: Fraktkostnad | T170: Transportkosten | U170: Nakliye maliyeti | V170: Szállítási költség
A171: 171 | B171: Trad171 | C171: Prezzo Netto/ml | D171: Nákupní cena/m | E171: 净价/米 | F171: Neto cijena/m | G171: Prix net/ml | H171: 税抜き合計/ m | I171: Καθαρή Τιμή/m | J171: Net Price/m | K171: Neto cena/m | L171: Cena netto/m² | M171: Preço líquido/m | N171: Preț net/m | O171: Цена нетто/м | P171: Čistá cena/m | Q171: Neto cena/m | R171: Precio neto/ml | S171: Nettopris/m | T171: Nettopreis/ml | U171: Net Fiyat/m | V171: Nettó ár/m
A172: 172 | B172: Trad172 | C172: Costo Materiale + trasporto e gestione | D172: Náklady na materiál + doprava a manipulace | E172: 材料费+运费和管理费 | F172: Cijena materijala + dostava i upravljanje | G172: Coût du matériel + transport et manutention | H172: 材料費+送料と手配 | I172: Κόστος υλικού + αποστολή και διαχείριση | J172: Material cost + shipping and managment | K172: Materiālu izmaksas + piegādes un pārvaldības izmaksas | L172: Koszt materiałów + wysyłka i zarządzanie | M172: Custo do material + envio e gestão | N172: Costul materialelor + transport și gestionare | O172: Стоимость материала + доставка и управление | P172: Náklady na materiál + náklady na dopravu a správu | Q172: Stroški materiala + stroški pošiljanja in upravljanja | R172: Coste del material + transporte y manipulación | S172: Materialkostnad + frakt och hantering | T172: Materialkosten + Transport und Handhabung | U172: Malzeme maliyeti + nakliye ve yönetim | V172: Anyagköltség + szállítási és kezelési költség
A173: 173 | B173: Trad173 | C173: Costo Materiale + altre spese/ml | D173: Náklady na materiál + ostatní náklady/m | E173: 材料费+其他费用/m | F173: Cijena materijala + ostali troškovi/m | G173: Coût du matériel + autres dépenses/ml | H173: 材料費+その他の費用/ ml | I173: Κόστος Υλικού + άλλα έξοδα/m | J173: Material Cost + other costs/m | K173: Materiālu izmaksas + citas izmaksas/m | L173: Koszt materiału + inne koszty/m | M173: Custo do material + outros custos/m | N173: Costul materialelor + alte costuri/m | O173: Стоимость материала + прочие затраты/м | P173: Náklady na materiál + ostatné náklady/m | Q173: Stroški materiala + drugi stroški/m | R173: Coste del material + otros gastos/ml | S173: Materialkostnad + andra kostnader/m | T173: Materialkosten + sonstige Kosten/ml | U173: Malzeme Maliyeti + diğer maliyetler/m | V173: Anyagköltség + egyéb költségek/m
A174: 174 | B174: Trad174 | C174: Kit Impermeabilizzazione | D174: Hydroizolační sada | E174: 防水套装 | F174: Kit za hidroizolaciju | G174: Kit d'imperméabilisation | H174: 防水キット | I174: Σετ στεγανοποίησης | J174: Waterproofing Kit | K174: Hidroizolācijas komplekts | L174: Zestaw hydroizolacyjny | M174: Kit de impermeabilização | N174: Kit de impermeabilizare | O174: Гидроизоляционный комплект | P174: Súprava na hydroizoláciu | Q174: Komplet za hidroizolacijo | R174: Kit de impermeabilización | S174: Vattentätningssats | T174: Abdichtungs-Kit | U174: Su Yalıtım Kiti | V174: Vízszigetelő készlet
A175: 175 | B175: Trad175 | C175: % Cuneo spessore/montanti | D175: %Vyrovnávací klíny sloupků | E175: 修整楔子 | F175: UČVRŠĆIVANJE KLINOM/USPRAVNO | G175: Cale d'épaississement | H175: % シミングウェッジ/直立 | I175: Γυαλιστερή σφήνα | J175: % Shimming wedge/Uprights | K175: Regulēšanas ķīlis | L175: Podkładki klinowe | M175: Cunha | N175: Cuier de calibrare | O175: % регулировочный клин/стойки | P175: Vyrovnávací klin | Q175: Ključ za premikanje | R175: Cuña espesor/montante | S175: Skimrande kil | T175: Verdickungskeil | U175: Şimşek kaması | V175: Simító ék
A176: 176 | B176: Trad176 | C176: Distanza Extra | D176: Vzdálenost navíc | E176: 额外距离 | F176: Dodatna udaljenost | G176: Distance supplémentaire | H176: 余分の距離 | I176: Επιπλέον απόσταση | J176: Extra distance | K176: Papildu attālums | L176: Dodatkowa odległość | M176: Distância extra | N176: Distanța suplimentară | O176: Дополнительное расстояние | P176: Dodatočná vzdialenosť | Q176: Dodatna razdalja | R176: Distancia extra | S176: Extra distans | T176: Extra Abstand | U176: Ekstra mesafe | V176: Extra távolság
A177: 177 | B177: Trad177 | C177: Tipo Base Verticale | D177: Vertikální typ základny | E177: 垂直底座类型 | F177: Okomita vrsta baze | G177: Type de base Vertical | H177: バーティカルベースタイプ | I177: Τύπος κάθετης βάσης | J177: Vertical Base Type | K177: Vertikālās pamatnes tips | L177: Pionowy typ podstawy | M177: Tipo de Base Vertical | N177: Tip de bază verticală | O177: Вертикальный базовый тип | P177: Typ vertikálnej základne | Q177: Vertikalni podstavek | R177: Tipo de base vertical | S177: Vertikal bastyp | T177: Sockel Typ Vertikal | U177: Dikey Taban Tipi | V177: Függőleges alap típusa
A178: 178 | B178: Trad178 | C178: Dati Progetti | D178: Údaje o projektu | E178: 项目数据 | F178: Podaci o projektu | G178: Données du projet | H178: プロジェクトデータ | I178: Δεδομένα έργου | J178: Project Data | K178: Projekta dati | L178: Dane projektu | M178: Dados do projecto | N178: Date despre proiect | O178: Данные проекта | P178: Podatki o projektu | Q178: Údaje o projekte | R178: Datos del proyecto | S178: Uppgifter om projektet | T178: Projektdaten | U178: Proje Verileri | V178: Projekt adatok
A179: 179 | B179: Trad179 | C179: Versione Plastica | D179: Plastová verze | E179: 塑料版 | F179: Plastična verzija | G179: Version en plastique | H179: プラスチックバージョン | I179: Πλαστική έκδοση | J179: Plastic version | K179: Plastmasas versija | L179: Wersja plastikowa | M179: Versão plástica | N179: Versiunea din plastic | O179: Пластиковая версия | P179: Plastična različica | Q179: Plastová verzia | R179: Versión de plástico | S179: Plastversion | T179: Kunststoffausführung | U179: Plastik versiyon | V179: Műanyag változat
A180: 180 | B180: Trad180 | C180: Cartaceo | D180: Papír | E180: 纸张 | F180: Papir | G180: Papier | H180: 紙 | I180: Χαρτί | J180: Paper | K180: Papīrs | L180: Papier | M180: Papel | N180: Hârtie | O180: Бумага | P180: Papir | Q180: Papier | R180: Papel | S180: Papper | T180: Papier | U180: Kağıt | V180: Papír
A181: 181 | B181: Trad181 | C181: Online | D181: Online | E181: 在线 | F181: Online | G181: En ligne | H181: オンライン | I181: Online | J181: Online | K181: Tiešsaistē | L181: Online | M181: Online | N181: Online | O181: онлайн | P181: Spletna stran | Q181: Online | R181: En línea | S181: Online | T181: Online | U181: İnternet üzerinden | V181: Online
A182: 182 | B182: Trad182 | C182: Manuale | D182: Manuální | E182: 手册 | F182: Priručnik | G182: Manuel | H182: マニュアル | I182: Χειροκίνητο | J182: Manual | K182: Rokasgrāmata | L182: Podręcznik | M182: Manual | N182: Manual | O182: Руководство | P182: Priročnik | Q182: Manuálne | R182: Manual | S182: Manuell | T182: Handbuch | U182: Manuel | V182: Útmutató
A183: 183 | B183: Trad183 | C183: da spedire | D183: které mají být odeslány | E183: 待发送 | F183: poslati | G183: à envoyer | H183: 送信する | I183: να αποσταλεί | J183: to be sent | K183: jānosūta | L183: do wysłania | M183: a enviar | N183: să fie trimisă | O183: быть отправленным | P183: ki jih je treba poslati | Q183: ktoré sa majú odoslať | R183: que se enviará | S183: som ska skickas. | T183: zu versenden | U183: gönderilecek | V183: elküldendő
A184: 184 | B184: Trad184 | C184: Interasse greche pannello | D184: Rozpětí boku panelu | E184: 板间距 | F184: Razmak između ploča | G184: Découpage des panneaux | H184: サンドイッチパネル山間隔 | I184: Απόσταση πάνελ | J184: Panel hips span | K184: paneļu atstatums | L184: Grecki odstęp między panelami | M184: Espaçamento da onda do painel | N184: Spațierea dintre panouri grecești | O184: Размах бедер панели | P184: Panel bokov rozpätie | Q184: Panel razpon bokov | R184: Envergadura de las caderas del panel | S184: Panel höfter spänna | T184: Sickenabstand | U184: Panel kalça açıklığı | V184: Panel csípőfesz
A185: 185 | B185: Trad185 | C185: Fissaggi Inclusi | D185: Včetně upevňovacích prvků | E185: 包括固定装置 | F185: Pričvršćivači uključeni | G185: Fixations incluses | H185: 締結具同梱 | I185: Περιλαμβάνονται εξαρτήματα | J185: Fixings included | K185: Iekļauti stiprinājumi | L185: W zestawie mocowania | M185: Fixações incluídas | N185: Fixări incluse | O185: Крепления включены | P185: Upevňovacie prvky v cene | Q185: Pritrdilni elementi vključeni | R185: Fijaciones incluidas | S185: Fästen ingår | T185: Befestigungsmaterial enthalten | U185: Sabitleme dahil | V185: Rögzítések mellékelve
A186: 186 | B186: Trad186 | C186: Rondella in EPDM | D186: Podložka z EPDM | E186: 三元乙丙垫圈 | F186: EPDM podloška | G186: Rondelle en EPDM | H186: EPDMワッシャー | I186: Ροδέλα EPDM | J186: EPDM washer | K186: EPDM paplāksne | L186: Podkładka EPDM | M186: Anilha de EPDM | N186: masina de spalat EPDM | O186: Шайба из ЭПДМ | P186: EPDM podložka | Q186: EPDM podložka | R186: Arandela EPDM | S186: EPDM bricka | T186: EPDM-Unterlegscheibe | U186: EPDM yıkayıcı | V186: EPDM alátét
A187: 187 | B187: Trad187 | C187: TIPO DI CHIUSURA | D187: TYP ZÁMKU | E187: 锁类型 | F187: VRSTA ZATVARANJA | G187: TYPE DE SERRURE | H187: 鍵タイプ | I187: ΤΥΠΟΣ ΚΛΕΙΣΜΑΤΟΣ | J187: TYPE OF LOCK | K187: SLĒGŠANAS VEIDS | L187: RODZAJ ZAMKNIĘCIA | M187: TIPO DE FECHO | N187: TIP DE ÎNCHIDERE | O187: ТИП ЗАМКА | P187: TYP ZÁMKU | Q187: VRSTA KLJUČAVNICE | R187: TIPO DE CERRADURA | S187: TYP AV LÅS | T187: SCHLOSSTYP | U187: KİLİT TÜRÜ | V187: ZÁRTÍPUS
A188: 188 | B188: Trad188 | C188: PORTA DI CHIUSURA | D188: ZAMYKÁNÍ DVEŘÍ | E188: 关门 | F188: VRATA KOJA SE ZATVARAJU | G188: PORTE VERROUILLÉE | H188: ドアを閉める | I188: ΠΟΡΤΑ ΠΟΥ ΚΛΕΙΝΕΙ | J188: LOCKING DOOR | K188: AIZSLĒGŠANAS DURVIS | L188: ZAMYKANIE DRZWI | M188: PORTA DE SEGURANÇA | N188: ÎNCHIDERE UȘĂ | O188: ЗАПИРАНИЕ ДВЕРИ | P188: ZAMYKANIE DVERÍ | Q188: ZAKLEPNA VRATA | R188: PUERTA DE BLOQUEO | S188: LÅSAR DÖRREN | T188: abschließbare Tür | U188: KİLİTLİ KAPI | V188: ZÁRÓ AJTÓ
A189: 189 | B189: Trad189 | C189: SCALA SGANCIABILE | D189: ODNÍMATELNÝ ŽEBŘÍK | E189: 可拆卸梯子 | F189: ODJELJIVE LJESTVE | G189: ÉCHELLE AMOVIBLE | H189: 取外し可能な梯子 | I189: ΑΦΑΙΡΟΥΜΕΝΗ ΣΚΑΛΑ | J189: DETACHABLE LADDER | K189: NOŅEMAMAS KĀPNES | L189: ZDEJMOWANA DRABINA | M189: ESCADA DESTACÁVEL | N189: SCARA DETASABILE | O189: СЪЕМНАЯ ЛЕСТНИЦА | P189: ODNÍMATEĽNÝ REBRÍK | Q189: LOHLJIVA LESTVA | R189: ESCALERA DESMONTABLE | S189: AVTAGBAR STEGE | T189: ABNEHMBARE LEITER | U189: SÖKÜLEBİLİR MERDİVEN | V189: LESZERELHETŐ LÉTRA
A190: 190 | B190: Trad190 | C190: Parallela alle greche | D190: Rovnoběžně s boky | E190: 与板平行 | F190: Paralelno s bokovima | G190: Parallèle aux lames | H190: サンドイッチパネル山線と平行 | I190: Παράλληλη με την ελληνική | J190: Parallel to hips | K190: Paralēli | L190: Równolegle do greckiego | M190: Paralelo à onda | N190: Paralel cu grecul | O190: Параллельно бедрам | P190: Paralelne s bokmi | Q190: Vzporedno s boki | R190: Paralelo a las caderas | S190: Parallellt med höfter | T190: parallel zur Sicke | U190: Kalçalara paralel | V190: Élszarufára párhuzamos
A191: 191 | B191: Trad191 | C191: Perpendicolare alle greche | D191: Kolmo k bokům | E191: 垂直于板 | F191: Okomito na bokove | G191: Perpendiculaire aux volets | H191: サンドイッチパネル山線に垂直 | I191: Κάθετα στην ελληνική | J191: Perpendicular to hips | K191: Perpendikulāri | L191: Prostopadle do greki | M191: Perpendicular à onda | N191: Perpendicular pe greacă | O191: Перпендикулярно бедрам | P191: Kolmo na boky | Q191: Pravokotno na boke | R191: Perpendicular a las caderas | S191: Vinkelrätt mot höfterna | T191: senkrecht zur Sicke | U191: kalçalara dik | V191: Élszarufára merőleges
A192: 192 | B192: Trad192 | C192: SISTEMA DI RIPOSO | D192: ODPOČÍVACÍ SYSTÉM | E192: 支撑系统 | F192: SUSTAV ZA ODMOR | G192: SYSTÈME DE REPOS | H192: 休息システム | I192: ΣΥΣΤΗΜΑ ΑΝΑΠΑΥΣΗΣ | J192: RESTING SYSTEM | K192: ATPŪTAS SISTĒMA | L192: SYSTEM WYPOCZYNKU | M192: SISTEMA DE REPOUSO | N192: SISTEM DE ODIHNA | O192: СИСТЕМА ОТДЫХА | P192: ODPOČINOVÝ SYSTÉM | Q192: SISTEM POČIVANJA | R192: SISTEMA DE DESCANSO | S192: VILOSYSTEM | T192: RUHESYSTEM | U192: DİNLENME SİSTEMİ | V192: PIHENŐ RENDSZER
A193: 193 | B193: Trad193 | C193: MODULO DI SDOPPIAMENTO | D193: ROZDĚLOVACÍ MODUL | E193: 分裂模块 | F193: DIJELJIVI MODUL | G193: MODULE DE FRACTIONNEMENT | H193: 分割モジュール | I193: ΑΠΟΣΠΩΜΕΝΗ ΕΚΔΟΣΗ | J193: SPLITTING MODULE | K193: IZLAIDINĀŠANAS MODULIS | L193: MODUŁ WYDANIA | M193: MÓDULO DE DESENGANCHO | N193: MODUL DE LANSAREA | O193: РАЗДЕЛИТЕЛЬНЫЙ МОДУЛЬ | P193: ŠTIEPACÍ MODUL | Q193: MODUL ZA DELITEV | R193: MÓDULO DE DIVISIÓN | S193: DELNINGSMODUL | T193: SPALTMODUL | U193: AYIRMA MODÜLÜ | V193: OSZTÓ MODUL
A194: 194 | B194: =+_xlfn.CONCAT("Trad",A194) -> Trad194 | C194: DESTRA | D194: PRAVÁ | E194: 右边 | F194: DESNO | G194: DROIT | H194: 右 | I194: ΔΕΞΙΑ | J194: RIGHT | K194: PA LABI | L194: PRAWIDŁOWY | M194: DIREITA | N194: DREAPTA | O194: ПРАВИЛЬНО | P194: SPRÁVNY | Q194: PRAV | R194: DERECHO | S194: HÖGER | T194: RECHTS | U194: SAĞ | V194: JOBB
A195: 195 | B195: Trad195 | C195: SINISTRA | D195: LEVÝ | E195: 左边 | F195: LIJEVO | G195: GAUCHE | H195: 左 | I195: ΑΡΙΣΤΕΡΑ | J195: LEFT | K195: PA kreisi | L195: LEWO | M195: ESQUERDA | N195: STÂNGA | O195: ЛЕВЫЙ | P195: LEFT | Q195: LEVO | R195: IZQUIERDA | S195: VÄNSTER | T195: LINKS | U195: AYRILDI | V195: BAL
A196: 196 | B196: Trad196 | C196: DIREZIONE PRIMO SDOPPIAMENTO | D196: SMĚR PRVNÍHO DĚLENÍ | E196: 优先分割方向 | F196: PRAVAC PRVOG DIJELJENJA | G196: DIRECTION DU PREMIER FRACTIONNEMENT | H196: 第一分割ディレクション | I196: ΚΑΤΕΥΘΥΝΣΗ ΠΡΟΣ ΠΡΩΤΟ ΔΙΑΧΩΡΙΣΜΟ | J196: DIRECTION OF FIRST SPLITTING | K196: VIRZIENS | L196: PIERWSZY SPLIT KIERUNKU | M196: DIREÇÃO DA PRIMEIRA DIVISÃO | N196: DIRECȚIA PRIMUL SPLIT | O196: НАПРАВЛЕНИЕ ПЕРВОЙ РАСКОЛКИ | P196: SMER PRVÉHO DELENIA | Q196: SMER PRVE DELITVE | R196: DIRECCIÓN antes de división | S196: RIKTNING FÖR FÖRSTA DELNING | T196: RICHTUNG DER ERSTEN SPALTUNG | U196: İLK AYIRMA YÖNÜ | V196: AZ ELSŐ OSZTÁS IRÁNYA
A197: 197 | B197: Trad197 | C197: PRIMO MODULO REMOVIBILE | D197: PRVNÍ VYJÍMATELNÝ MODUL | E197: 第一个可拆卸模块 | F197: PRVI MODUL koji se može ukloniti | G197: PREMIER MODULE AMOVIBLE | H197: 最初の取外し可能モジュール | I197: ΠΡΩΤΗ ΑΦΑΙΡΟΥΜΕΝΗ ΜΟΝΑΔΑ | J197: FIRST REMOVABLE MODULE | K197: PIRMAIS NOŅEMAMAIS MODULIS | L197: PIERWSZY WYJMOWANY MODUŁ | M197: PRIMEIRO MÓDULO REMOVÍVEL | N197: PRIMUL MODUL DETASAL | O197: ПЕРВЫЙ СЪЕМНЫЙ МОДУЛЬ | P197: PRVÝ ODNÍMATEĽNÝ MODUL | Q197: PRVI ODSTRANLJIV MODUL | R197: PRIMER MÓDULO DESMONTABLE | S197: FÖRSTA AVTAGNINGSBAR MODUL | T197: erstes Modul abnehmbar | U197: İLK ÇIKARILABİLİR MODÜL | V197: ELSŐ KISZERELHETŐ MODUL
A198: 198 | B198: Trad198 | C198: TIPO VERSIONE ACCIAIO | D198: TYP PROVEDENÍ OCELI | E198: 型钢版 | F198: TIP ČELIČNA VERZIJA | G198: TYPE VERSION ACIER | H198: スティールバージョン | I198: ΕΚΔΟΣΗ ΑΠΟ ΑΤΣΑΛΙ | J198: TYPE VERSION STEEL | K198: TIPA TĒRAUDA VERSIJA | L198: TYP WERSJA STALOWA | M198: TIPO VERSÃO EM AÇO | N198: TIP VERSIUNE STEEL | O198: ТИП ВЕРСИЯ СТАЛЬ | P198: TYPOVÉ PREVEDENIE OCEL | Q198: VRSTA VERZIJA JEKLO | R198: TIPO VERSIÓN ACERO | S198: TYP VERSION STÅL | T198: TYPENAUSFÜHRUNG STAHL | U198: TİP VERSİYON ÇELİK | V198: ACÉL TÍPUSÚ VÁLTOZAT
A199: 199 | B199: Trad199 | C199: ACCIAIO INOX A2 | D199: NEREZOVÁ OCEL A2 | E199: 不锈钢 A2 | F199: INOX A2 | G199: ACIER INOXYDABLE A2 | H199: ステンレス鋼A2 | I199: ΑΝΟΞΕΙΔΩΤΟ Α2 | J199: STAINLESS STEEL A2 | K199: NErūsējošais tērauds A2 | L199: STAL NIERDZEWNA A2 | M199: AÇO INOX A2 | N199: OȚEL INOX A2 | O199: НЕРЖАВЕЮЩАЯ СТАЛЬ A2 | P199: NEREZ A2 | Q199: NErjaveče jeklo A2 | R199: ACERO INOXIDABLE A2 | S199: ROSTFRITT STÅL A2 | T199: EDELSTAHL A2 | U199: PASLANMAZ ÇELİK A2 | V199: ROZSDAMENTES ACÉL A2
A200: 200 | B200: Trad200 | C200: ACCIAIO INOX A4 | D200: NEREZOVÁ OCEL A4 | E200: 不锈钢 A4 | F200: INOX A4 | G200: ACIER INOXYDABLE A4 | H200: ステンレス鋼A4 | I200: ΑΝΟΞΕΙΔΩΤΟ Α4 | J200: STAINLESS STEEL A4 | K200: Nerūsējošais Tērauds A4 | L200: STAL NIERDZEWNA A4 | M200: AÇO INOX A4 | N200: OȚEL INOX A4 | O200: НЕРЖАВЕЮЩАЯ СТАЛЬ А4 | P200: NEREZ A4 | Q200: INOX A4 | R200: ACERO INOXIDABLE A4 | S200: ROSTFRITT STÅL A4 | T200: EDELSTAHL A4 | U200: PASLANMAZ ÇELİK A4 | V200: ROZSDAMENTES ACÉL A4
... 600 more rows
